{"text_format":"1","workbook":"xlsx","n_sheets":42,"sheets":["Лист","c11","Лист (14)","самос1","Лист5","Лист1 (3)","Лист1 (2)","Лист1 (7)","Лист1 (8)","Лист1 (9)","Лист1 (10)","Лист1 (11)","Лист1 (12)","Лист1 (6)","Лист1 (5)","Лист1 (4)","Лист1 (13)","Лист1 (14)","Лист1 (15)","Лист1 (16)","Лист (2)","Лист1","Лист (3)","Лист (4)","Лист2","Лист (5)","самос1 (2)","Лист (6)","Лист (7)","Лист (8)","самос1 (3)","Лист (9)","самос1 (4)","Лист (10)","Лист (12)","Лист (11)","Лист (13)","Лист (15)","Лист (16)","Лист3","Лист (17)","Лист4"],"not_rendered":{"charts":0,"images":0,"macros":1,"external_links":0,"defined_names":23,"comments":0,"pivot_tables":0},"unopened":[],"bounds":{"document_bytes":16777216,"sheet_cells":100000,"rows_first":2000,"rows_last":500,"rows_between":2000,"halvings":0,"cell_chars":16384,"cell_head_chars":4096},"cells_cut":0,"cells_raw":0,"read":"whole","date_system":"1900"}

{"sheet":"Лист","index":0,"n_rows":49,"n_cols":10,"rows_kept":49,"cut":false,"hidden":false,"merged":[]}
["Form 4",null,null,null,null,"Form 4"]
[{"$f":"J2","v":1},{"$f":"K2","v":0},{"$f":"L2","v":0},{"$f":"M2","v":0},null,{"$f":"A2","v":1},{"$f":"B2","v":0},{"$f":"C2","v":0},{"$f":"D2","v":0},1]
[{"$f":"J3","v":2},0,0,0,null,{"$f":"A3","v":2},0,0,0,2]
[3,0,0,0,null,3,0,0,0,3]
[4,0,0,0,null,4,0,0,0,4]
[5,0,0,0,null,5,{"$f":"B6","v":0},0,0,5]
[6,{"$f":"K7","v":0},0,0,null,6,0,0,0,6]
[7,0,0,0,null,7,0,0,0,7]
[8,0,0,0,null,8,0,0,0,8]
[]
["Form 4",null,null,null,null,"Form 4"]
[1,{"$f":"B2","v":0},0,0,null,1,{"$f":"B12","v":0},{"$f":"C12","v":0},{"$f":"D12","v":0}]
[2,0,0,0,null,2,{"$f":"B13","v":0},0,0]
[3,0,0,0,null,3,0,0,0]
[4,0,0,0,null,4,0,0,0]
[5,0,0,0,null,5,0,0,0]
[6,0,0,0,null,6,0,0,0]
[7,0,0,0,null,7,0,0,0]
[8,0,0,0,null,8,0,0,0]
[]
["Form 4",null,null,null,null,"Form 4"]
[1,{"$f":"B12","v":0},0,0,null,1,{"$f":"B22","v":0},{"$f":"C22","v":0},{"$f":"D22","v":0}]
[2,0,0,0,null,2,{"$f":"B23","v":0},0,0]
[3,0,0,0,null,3,0,0,0]
[4,0,0,0,null,4,0,0,0]
[5,0,0,0,null,5,0,0,0]
[6,0,0,0,null,6,0,0,0]
[7,0,0,0,null,7,0,0,0]
[8,0,0,0,null,8,0,0,0]
[]
["Form 4",null,null,null,null,"Form 4"]
[1,{"$f":"B22","v":0},0,0,null,1,{"$f":"B32","v":0},{"$f":"C32","v":0},{"$f":"D32","v":0}]
[2,0,0,0,null,2,{"$f":"B33","v":0},0,0]
[3,0,0,0,null,3,0,0,0]
[4,0,0,0,null,4,0,0,0]
[5,0,0,0,null,5,0,0,0]
[6,0,0,0,null,6,0,0,0]
[7,0,0,0,null,7,0,0,0]
[8,0,0,0,null,8,0,0,0]
[]
["Form 4",null,null,null,null,"Form 4"]
[1,{"$f":"B32","v":0},0,0,null,1,{"$f":"B42","v":0},{"$f":"C42","v":0},{"$f":"D42","v":0}]
[2,0,0,0,null,2,{"$f":"B43","v":0},0,0]
[3,0,0,0,null,3,0,0,0]
[4,0,0,0,null,4,0,0,0]
[5,0,0,0,null,5,0,0,0]
[6,0,0,0,null,6,0,0,0]
[7,0,0,0,null,7,0,0,0]
[8,0,0,0,null,8,0,0,0]

{"sheet":"c11","index":1,"n_rows":49,"n_cols":13,"rows_kept":49,"cut":false,"hidden":false,"merged":[]}
["Form 4",null,null,null,null,"Form 4"]
[{"$f":"J2","v":1},{"$f":"K2","v":"Spain"},{"$f":"L2","v":"спеін"},{"$f":"M2","v":"Іспанія"},null,{"$f":"A2","v":1},{"$f":"B2","v":"Spain"},{"$f":"C2","v":"спеін"},{"$f":"D2","v":"Іспанія"},1,"Spain","спеін","Іспанія"]
[{"$f":"J3","v":2},"France","фраанс","Франція",null,{"$f":"A3","v":2},"France","фраанс","Франція",2,"France","фраанс","Франція"]
[3,"Greece","ґрііс","Греція",null,3,"Greece","ґрііс","Греція",3,"Greece","ґрііс","Греція"]
[4,"The UK","зе ю кей","Велика Британія",null,4,"The UK","зе ю кей","Велика Британія",4,"The UK","зе ю кей","Велика Британія"]
[5,"England","інґленд","Англія",null,5,{"$f":"B6","v":"England"},"інґленд","Англія",5,"England","інґленд","Англія"]
[6,{"$f":"K7","v":"Italy"},"ітелі","Італія",null,6,"Italy","ітелі","Італія",6,"Italy","ітелі","Італія"]
[7,"Germany","джемені","Німеччина",null,7,"Germany","джемені","Німеччина",7,"Germany","джемені","Німеччина"]
[8,"The USA","зе ю ес ей","США",null,8,"The USA","зе ю ес ей","США",8,"The USA","зе ю ес ей","США"]
[]
["Form 4",null,null,null,null,"Form 4"]
[1,{"$f":"B2","v":"Spain"},"спеін","Іспанія",null,1,{"$f":"B12","v":"Spain"},{"$f":"C12","v":"спеін"},{"$f":"D12","v":"Іспанія"}]
[2,"France","фраанс","Франція",null,2,{"$f":"B13","v":"France"},"фраанс","Франція"]
[3,"Greece","ґрііс","Греція",null,3,"Greece","ґрііс","Греція"]
[4,"The UK","зе ю кей","Велика Британія",null,4,"The UK","зе ю кей","Велика Британія"]
[5,"England","інґленд","Англія",null,5,"England","інґленд","Англія"]
[6,"Italy","ітелі","Італія",null,6,"Italy","ітелі","Італія"]
[7,"Germany","джемені","Німеччина",null,7,"Germany","джемені","Німеччина"]
[8,"The USA","зе ю ес ей","США",null,8,"The USA","зе ю ес ей","США"]
[]
["Form 4",null,null,null,null,"Form 4"]
[1,{"$f":"B12","v":"Spain"},"спеін","Іспанія",null,1,{"$f":"B22","v":"Spain"},{"$f":"C22","v":"спеін"},{"$f":"D22","v":"Іспанія"}]
[2,"France","фраанс","Франція",null,2,{"$f":"B23","v":"France"},"фраанс","Франція"]
[3,"Greece","ґрііс","Греція",null,3,"Greece","ґрііс","Греція"]
[4,"The UK","зе ю кей","Велика Британія",null,4,"The UK","зе ю кей","Велика Британія"]
[5,"England","інґленд","Англія",null,5,"England","інґленд","Англія"]
[6,"Italy","ітелі","Італія",null,6,"Italy","ітелі","Італія"]
[7,"Germany","джемені","Німеччина",null,7,"Germany","джемені","Німеччина"]
[8,"The USA","зе ю ес ей","США",null,8,"The USA","зе ю ес ей","США"]
[]
["Form 4",null,null,null,null,"Form 4"]
[1,{"$f":"B22","v":"Spain"},"спеін","Іспанія",null,1,{"$f":"B32","v":"Spain"},{"$f":"C32","v":"спеін"},{"$f":"D32","v":"Іспанія"}]
[2,"France","фраанс","Франція",null,2,{"$f":"B33","v":"France"},"фраанс","Франція"]
[3,"Greece","ґрііс","Греція",null,3,"Greece","ґрііс","Греція"]
[4,"The UK","зе ю кей","Велика Британія",null,4,"The UK","зе ю кей","Велика Британія"]
[5,"England","інґленд","Англія",null,5,"England","інґленд","Англія"]
[6,"Italy","ітелі","Італія",null,6,"Italy","ітелі","Італія"]
[7,"Germany","джемені","Німеччина",null,7,"Germany","джемені","Німеччина"]
[8,"The USA","зе ю ес ей","США",null,8,"The USA","зе ю ес ей","США"]
[]
["Form 4",null,null,null,null,"Form 4"]
[1,{"$f":"B32","v":"Spain"},"спеін","Іспанія",null,1,{"$f":"B42","v":"Spain"},{"$f":"C42","v":"спеін"},{"$f":"D42","v":"Іспанія"}]
[2,"France","фраанс","Франція",null,2,{"$f":"B43","v":"France"},"фраанс","Франція"]
[3,"Greece","ґрііс","Греція",null,3,"Greece","ґрііс","Греція"]
[4,"The UK","зе ю кей","Велика Британія",null,4,"The UK","зе ю кей","Велика Британія"]
[5,"England","інґленд","Англія",null,5,"England","інґленд","Англія"]
[6,"Italy","ітелі","Італія",null,6,"Italy","ітелі","Італія"]
[7,"Germany","джемені","Німеччина",null,7,"Germany","джемені","Німеччина"]
[8,"The USA","зе ю ес ей","США",null,8,"The USA","зе ю ес ей","США"]

{"sheet":"Лист (14)","index":2,"n_rows":49,"n_cols":10,"rows_kept":49,"cut":false,"hidden":false,"merged":[]}
["Form 4",null,null,null,null,"Form 4"]
[{"$f":"J2","v":1},{"$f":"K2","v":0},{"$f":"L2","v":0},{"$f":"M2","v":0},null,{"$f":"A2","v":1},{"$f":"B2","v":0},{"$f":"C2","v":0},{"$f":"D2","v":0},1]
[{"$f":"J3","v":2},0,0,0,null,{"$f":"A3","v":2},0,0,0,2]
[3,0,0,0,null,3,0,0,0,3]
[4,0,0,0,null,4,0,0,0,4]
[5,0,0,0,null,5,{"$f":"B6","v":0},0,0,5]
[6,{"$f":"K7","v":0},0,0,null,6,0,0,0,6]
[7,0,0,0,null,7,0,0,0,7]
[8,0,0,0,null,8,0,0,0,8]
[]
["Form 4",null,null,null,null,"Form 4"]
[1,{"$f":"B2","v":0},0,0,null,1,{"$f":"B12","v":0},{"$f":"C12","v":0},{"$f":"D12","v":0}]
[2,0,0,0,null,2,{"$f":"B13","v":0},0,0]
[3,0,0,0,null,3,0,0,0]
[4,0,0,0,null,4,0,0,0]
[5,0,0,0,null,5,0,0,0]
[6,0,0,0,null,6,0,0,0]
[7,0,0,0,null,7,0,0,0]
[8,0,0,0,null,8,0,0,0]
[]
["Form 4",null,null,null,null,"Form 4"]
[1,{"$f":"B12","v":0},0,0,null,1,{"$f":"B22","v":0},{"$f":"C22","v":0},{"$f":"D22","v":0}]
[2,0,0,0,null,2,{"$f":"B23","v":0},0,0]
[3,0,0,0,null,3,0,0,0]
[4,0,0,0,null,4,0,0,0]
[5,0,0,0,null,5,0,0,0]
[6,0,0,0,null,6,0,0,0]
[7,0,0,0,null,7,0,0,0]
[8,0,0,0,null,8,0,0,0]
[]
["Form 4",null,null,null,null,"Form 4"]
[1,{"$f":"B22","v":0},0,0,null,1,{"$f":"B32","v":0},{"$f":"C32","v":0},{"$f":"D32","v":0}]
[2,0,0,0,null,2,{"$f":"B33","v":0},0,0]
[3,0,0,0,null,3,0,0,0]
[4,0,0,0,null,4,0,0,0]
[5,0,0,0,null,5,0,0,0]
[6,0,0,0,null,6,0,0,0]
[7,0,0,0,null,7,0,0,0]
[8,0,0,0,null,8,0,0,0]
[]
["Form 4",null,null,null,null,"Form 4"]
[1,{"$f":"B32","v":0},0,0,null,1,{"$f":"B42","v":0},{"$f":"C42","v":0},{"$f":"D42","v":0}]
[2,0,0,0,null,2,{"$f":"B43","v":0},0,0]
[3,0,0,0,null,3,0,0,0]
[4,0,0,0,null,4,0,0,0]
[5,0,0,0,null,5,0,0,0]
[6,0,0,0,null,6,0,0,0]
[7,0,0,0,null,7,0,0,0]
[8,0,0,0,null,8,0,0,0]

{"sheet":"самос1","index":3,"n_rows":52,"n_cols":21,"rows_kept":52,"cut":false,"hidden":false,"merged":[]}
[" Form 4   Name_________________________    Date_______",null,null,null,null," Form 4   Name_________________________    Date_______",null,null,null," Form 4   Name_________________________    Date_______",null,null,null," Form 4   Name_________________________    Date_______"]
[]
[null,{"$f":"S3","v":0},1,{"$f":"V3","v":0},null,null,{"$f":"S3","v":0},1,{"$f":"V3","v":0},{"$f":"S16","v":0},null,null,null,{"$f":"J3","v":0},null,null,null,null,null,null,1]
[null,0,2,0,null,null,{"$f":"S4","v":0},2,{"$f":"V4","v":0},{"$f":"S17","v":0},null,null,null,{"$f":"J4","v":0},null,null,null,null,null,null,2]
[null,0,3,0,null,null,0,3,0,0,null,null,null,0,null,null,null,null,null,null,3]
[null,0,4,0,null,null,0,4,0,0,null,null,null,0,null,null,null,null,null,null,4]
[null,0,5,0,null,null,0,5,0,0,null,null,null,0,null,null,null,null,null,null,5]
[null,0,6,0,null,null,0,6,0,0,null,null,null,0,null,null,null,null,null,null,6]
[null,0,7,0,null,null,0,7,0,0,null,null,null,0,null,null,null,null,null,null,7]
[null,0,8,0,null,null,0,8,0,0,null,null,null,0,null,null,null,null,null,null,8]
[null,0,9,0,null,null,0,9,0,0,null,null,null,0,null,null,null,null,null,null,9]
[null,0,10,0,null,null,0,10,0,0,null,null,null,0,null,null,null,null,null,null,10]
[null,0,11,0,null,null,0,11,0,0,null,null,null,0,null,null,null,null,null,null,11]
[]
[" Form 4   Name_________________________    Date_______",null,null,null,null," Form 4   Name_________________________    Date_______",null,null,null," Form 4   Name_________________________    Date_______",null,null,null," Form 4   Name_________________________    Date_______"]
[]
[null,{"$f":"S3","v":0},1,{"$f":"V3","v":0},null,null,{"$f":"B17","v":0},1,{"$f":"D17","v":0},{"$f":"J3","v":0},null,null,null,{"$f":"J17","v":0}]
[null,{"$f":"S4","v":0},2,{"$f":"V4","v":0},null,null,{"$f":"B18","v":0},2,{"$f":"D18","v":0},{"$f":"J4","v":0},null,null,null,{"$f":"J18","v":0}]
[null,0,3,0,null,null,0,3,0,0,null,null,null,0]
[null,0,4,0,null,null,0,4,0,0,null,null,null,0]
[null,0,5,0,null,null,0,5,0,0,null,null,null,0]
[null,0,6,0,null,null,0,6,0,0,null,null,null,0]
[null,0,7,0,null,null,0,7,0,0,null,null,null,0]
[null,0,8,0,null,null,0,8,0,0,null,null,null,0]
[null,0,9,0,null,null,0,9,0,0,null,null,null,0]
[null,0,10,0,null,null,0,10,0,0,null,null,null,0]
[null,0,11,0,null,null,0,11,0,0,null,null,null,0]
[]
[" Form 4   Name_________________________    Date_______",null,null,null,null," Form 4   Name_________________________    Date_______",null,null,null," Form 4   Name_________________________    Date_______",null,null,null," Form 4   Name_________________________    Date_______"]
[]
[null,{"$f":"B17","v":0},1,{"$f":"D17","v":0},null,null,{"$f":"B31","v":0},1,{"$f":"D31","v":0},{"$f":"J17","v":0},null,null,null,{"$f":"J31","v":0}]
[null,{"$f":"B18","v":0},2,{"$f":"D18","v":0},null,null,{"$f":"B32","v":0},2,{"$f":"D32","v":0},{"$f":"J18","v":0},null,null,null,{"$f":"J32","v":0}]
[null,0,3,0,null,null,0,3,0,0,null,null,null,0]
[null,0,4,0,null,null,0,4,0,0,null,null,null,0]
[null,0,5,0,null,null,0,5,0,0,null,null,null,0]
[null,0,6,0,null,null,0,6,0,0,null,null,null,0]
[null,0,7,0,null,null,0,7,0,0,null,null,null,0]
[null,0,8,0,null,null,0,8,0,0,null,null,null,0]
[null,0,9,0,null,null,0,9,0,0,null,null,null,0]
[null,0,10,0,null,null,0,10,0,0,null,null,null,0]
[null,0,11,0,null,null,0,11,0,0,null,null,null,0]
[]
[" Form 4   Name_________________________    Date_______",null,null,null,null,null,null,null,null," Form 4   Name_________________________    Date_______"]
[]
[null,{"$f":"B31","v":0},1,{"$f":"D31","v":0},null,null,{"$f":"B39","v":0},9,{"$f":"D39","v":0},{"$f":"J31","v":0},null,null,null,{"$f":"J39","v":0}]
[null,{"$f":"B32","v":0},2,{"$f":"D32","v":0},null,null,{"$f":"B40","v":0},10,{"$f":"D40","v":0},{"$f":"J32","v":0},null,null,null,{"$f":"J40","v":0}]
[null,0,3,0,null,null,{"$f":"B41","v":0},11,{"$f":"D41","v":0},0,null,null,null,{"$f":"J41","v":0}]
[null,0,4,0,null,null,null,null,null,0]
[null,0,5,0,null,null,null,null,null,0]
[null,0,6,0,null,null,null,null,null,0]
[null,{"$f":"B37","v":0},7,{"$f":"D37","v":0},null,null,null,null,null,{"$f":"J37","v":0}]
[null,{"$f":"B38","v":0},8,{"$f":"D38","v":0},null,null,null,null,null,{"$f":"J38","v":0}]

{"sheet":"Лист5","index":4,"n_rows":44,"n_cols":17,"rows_kept":44,"cut":false,"hidden":false,"merged":[]}
[{"$f":"J1","v":1},{"$f":"K1","v":"he"},{"$f":"L1","v":"хі:"},{"$f":"M1","v":"він"},null,{"$f":"A1","v":1},{"$f":"B1","v":"he"},{"$f":"C1","v":"хі:"},{"$f":"D1","v":"він"},1,"he","хі:","він"]
[{"$f":"J2","v":2},"she","ші:","вона",null,{"$f":"A2","v":2},"she","ші:","вона",2,"she","ші:","вона"]
[3,"we","ві:","ми",null,3,"we","ві:","ми",3,"we","ві:","ми"]
[4,"you","ю:","ти ви",null,4,"you","ю:","ти ви",4,"you","ю:","ти ви",null,null,null,"weather"]
[5,"they","зей","вони",null,5,{"$f":"B5","v":"they"},"зей","вони",5,"they","зей","вони",null,null,null,"warm"]
[6,{"$f":"K6","v":"board"},"бо:д","дошка",null,6,"board","бо:д","дошка",6,"board","бо:д","дошка",null,null,null,"nice"]
[7,"sea","сі:","море",null,7,"sea","сі:","море",7,"sea","сі:","море",null,null,null,"hot"]
[8,0,0,0,null,8,0,0,0,8,null,null,null,null,null,null,"evening"]
[null,null,null,null,null,null,null,null,null,null,null,null,null,null,null,null,"cold"]
[1,{"$f":"B1","v":"he"},"хі:","він",null,1,{"$f":"B10","v":"he"},{"$f":"C10","v":"хі:"},{"$f":"D10","v":"він"}]
[2,"she","ші:","вона",null,2,{"$f":"B11","v":"she"},"ші:","вона"]
[3,"we","ві:","ми",null,3,"we","ві:","ми"]
[4,"you","ю:","ти ви",null,4,"you","ю:","ти ви"]
[5,"they","зей","вони",null,5,"they","зей","вони"]
[6,"board","бо:д","дошка",null,6,"board","бо:д","дошка"]
[7,"sea","сі:","море",null,7,"sea","сі:","море"]
[8,0,0,0,null,8,0,0,0]
[]
[1,{"$f":"B10","v":"he"},"хі:","він",null,1,{"$f":"B19","v":"he"},{"$f":"C19","v":"хі:"},{"$f":"D19","v":"він"}]
[2,"she","ші:","вона",null,2,{"$f":"B20","v":"she"},"ші:","вона"]
[3,"we","ві:","ми",null,3,"we","ві:","ми"]
[4,"you","ю:","ти ви",null,4,"you","ю:","ти ви"]
[5,"they","зей","вони",null,5,"they","зей","вони"]
[6,"board","бо:д","дошка",null,6,"board","бо:д","дошка"]
[7,"sea","сі:","море",null,7,"sea","сі:","море"]
[8,0,0,0,null,8,0,0,0]
[]
[1,{"$f":"B19","v":"he"},"хі:","він",null,1,{"$f":"B28","v":"he"},{"$f":"C28","v":"хі:"},{"$f":"D28","v":"він"}]
[2,"she","ші:","вона",null,2,{"$f":"B29","v":"she"},"ші:","вона"]
[3,"we","ві:","ми",null,3,"we","ві:","ми"]
[4,"you","ю:","ти ви",null,4,"you","ю:","ти ви"]
[5,"they","зей","вони",null,5,"they","зей","вони"]
[6,"board","бо:д","дошка",null,6,"board","бо:д","дошка"]
[7,"sea","сі:","море",null,7,"sea","сі:","море"]
[8,0,0,0,null,8,0,0,0]
[]
[1,{"$f":"B28","v":"he"},"хі:","він",null,1,{"$f":"B37","v":"he"},{"$f":"C37","v":"хі:"},{"$f":"D37","v":"він"}]
[2,"she","ші:","вона",null,2,{"$f":"B38","v":"she"},"ші:","вона"]
[3,"we","ві:","ми",null,3,"we","ві:","ми"]
[4,"you","ю:","ти ви",null,4,"you","ю:","ти ви"]
[5,"they","зей","вони",null,5,"they","зей","вони"]
[6,"board","бо:д","дошка",null,6,"board","бо:д","дошка"]
[7,"sea","сі:","море",null,7,"sea","сі:","море"]
[8,0,0,0,null,8,0,0,0]

{"sheet":"Лист1 (3)","index":5,"n_rows":44,"n_cols":17,"rows_kept":44,"cut":false,"hidden":false,"merged":[]}
[{"$f":"J1","v":1},{"$f":"K1","v":"what"},{"$f":"L1","v":"вот"},{"$f":"M1","v":"що"},null,{"$f":"A1","v":1},{"$f":"B1","v":"what"},{"$f":"C1","v":"вот"},{"$f":"D1","v":"що"},1,"what","вот","що"]
[{"$f":"J2","v":2},"who","ху:","хто",null,{"$f":"A2","v":2},"who","ху:","хто",2,"who","ху:","хто"]
[3,"where","вее","де",null,3,"where","вее","де",3,"where","вее","де"]
[4,"always","о:лвейз","завжди",null,4,"always","о:лвейз","завжди",4,"always","о:лвейз","завжди",null,null,null,"weather"]
[5,"sometimes","самтаймз","інколи",null,5,{"$f":"B5","v":"sometimes"},"самтаймз","інколи",5,"sometimes","самтаймз","інколи",null,null,null,"warm"]
[6,{"$f":"K6","v":"never"},"неве","ніколи",null,6,"never","неве","ніколи",6,"never","неве","ніколи",null,null,null,"nice"]
[7,0,0,0,null,7,0,0,0,7,null,null,null,null,null,null,"hot"]
[8,0,0,0,null,8,0,0,0,8,null,null,null,null,null,null,"evening"]
[null,null,null,null,null,null,null,null,null,null,null,null,null,null,null,null,"cold"]
[1,{"$f":"B1","v":"what"},"вот","що",null,1,{"$f":"B10","v":"what"},{"$f":"C10","v":"вот"},{"$f":"D10","v":"що"}]
[2,"who","ху:","хто",null,2,{"$f":"B11","v":"who"},"ху:","хто"]
[3,"where","вее","де",null,3,"where","вее","де"]
[4,"always","о:лвейз","завжди",null,4,"always","о:лвейз","завжди"]
[5,"sometimes","самтаймз","інколи",null,5,"sometimes","самтаймз","інколи"]
[6,"never","неве","ніколи",null,6,"never","неве","ніколи"]
[7,0,0,0,null,7,0,0,0]
[8,0,0,0,null,8,0,0,0]
[]
[1,{"$f":"B10","v":"what"},"вот","що",null,1,{"$f":"B19","v":"what"},{"$f":"C19","v":"вот"},{"$f":"D19","v":"що"}]
[2,"who","ху:","хто",null,2,{"$f":"B20","v":"who"},"ху:","хто"]
[3,"where","вее","де",null,3,"where","вее","де"]
[4,"always","о:лвейз","завжди",null,4,"always","о:лвейз","завжди"]
[5,"sometimes","самтаймз","інколи",null,5,"sometimes","самтаймз","інколи"]
[6,"never","неве","ніколи",null,6,"never","неве","ніколи"]
[7,0,0,0,null,7,0,0,0]
[8,0,0,0,null,8,0,0,0]
[]
[1,{"$f":"B19","v":"what"},"вот","що",null,1,{"$f":"B28","v":"what"},{"$f":"C28","v":"вот"},{"$f":"D28","v":"що"}]
[2,"who","ху:","хто",null,2,{"$f":"B29","v":"who"},"ху:","хто"]
[3,"where","вее","де",null,3,"where","вее","де"]
[4,"always","о:лвейз","завжди",null,4,"always","о:лвейз","завжди"]
[5,"sometimes","самтаймз","інколи",null,5,"sometimes","самтаймз","інколи"]
[6,"never","неве","ніколи",null,6,"never","неве","ніколи"]
[7,0,0,0,null,7,0,0,0]
[8,0,0,0,null,8,0,0,0]
[]
[1,{"$f":"B28","v":"what"},"вот","що",null,1,{"$f":"B37","v":"what"},{"$f":"C37","v":"вот"},{"$f":"D37","v":"що"}]
[2,"who","ху:","хто",null,2,{"$f":"B38","v":"who"},"ху:","хто"]
[3,"where","вее","де",null,3,"where","вее","де"]
[4,"always","о:лвейз","завжди",null,4,"always","о:лвейз","завжди"]
[5,"sometimes","самтаймз","інколи",null,5,"sometimes","самтаймз","інколи"]
[6,"never","неве","ніколи",null,6,"never","неве","ніколи"]
[7,0,0,0,null,7,0,0,0]
[8,0,0,0,null,8,0,0,0]

{"sheet":"Лист1 (2)","index":6,"n_rows":44,"n_cols":17,"rows_kept":44,"cut":false,"hidden":false,"merged":[]}
[{"$f":"J1","v":1},{"$f":"K1","v":"our"},{"$f":"L1","v":"ауе"},{"$f":"M1","v":"наша, наша"},null,{"$f":"A1","v":1},{"$f":"B1","v":"our"},{"$f":"C1","v":"ауе"},{"$f":"D1","v":"наша, наша"},1,"our","ауе","наша, наша"]
[{"$f":"J2","v":2},"their","зее","їхній, їхня",null,{"$f":"A2","v":2},"their","зее","їхній, їхня",2,"their","зее","їхній, їхня"]
[3,"win","він","перемагати",null,3,"win","він","перемагати",3,"win","він","перемагати"]
[4,"chess","чес","шахи",null,4,"chess","чес","шахи",4,"chess","чес","шахи",null,null,null,"weather"]
[5,"skip","скіп","стрибати",null,5,{"$f":"B5","v":"skip"},"скіп","стрибати",5,"skip","скіп","стрибати",null,null,null,"warm"]
[6,{"$f":"K6","v":"touch"},"тач","торкнутися",null,6,"touch","тач","торкнутися",6,"touch","тач","торкнутися",null,null,null,"nice"]
[7,0,0,0,null,7,0,0,0,7]
[8,0,0,0,null,8,0,0,0,8]
[]
[1,{"$f":"B1","v":"our"},"ауе","наша, наша",null,1,{"$f":"B10","v":"our"},{"$f":"C10","v":"ауе"},{"$f":"D10","v":"наша, наша"}]
[2,"their","зее","їхній, їхня",null,2,{"$f":"B11","v":"their"},"зее","їхній, їхня"]
[3,"win","він","перемагати",null,3,"win","він","перемагати"]
[4,"chess","чес","шахи",null,4,"chess","чес","шахи"]
[5,"skip","скіп","стрибати",null,5,"skip","скіп","стрибати"]
[6,"touch","тач","торкнутися",null,6,"touch","тач","торкнутися"]
[7,0,0,0,null,7,0,0,0]
[8,0,0,0,null,8,0,0,0]
[]
[1,{"$f":"B10","v":"our"},"ауе","наша, наша",null,1,{"$f":"B19","v":"our"},{"$f":"C19","v":"ауе"},{"$f":"D19","v":"наша, наша"}]
[2,"their","зее","їхній, їхня",null,2,{"$f":"B20","v":"their"},"зее","їхній, їхня"]
[3,"win","він","перемагати",null,3,"win","він","перемагати"]
[4,"chess","чес","шахи",null,4,"chess","чес","шахи"]
[5,"skip","скіп","стрибати",null,5,"skip","скіп","стрибати"]
[6,"touch","тач","торкнутися",null,6,"touch","тач","торкнутися"]
[7,0,0,0,null,7,0,0,0]
[8,0,0,0,null,8,0,0,0]
[]
[1,{"$f":"B19","v":"our"},"ауе","наша, наша",null,1,{"$f":"B28","v":"our"},{"$f":"C28","v":"ауе"},{"$f":"D28","v":"наша, наша"}]
[2,"their","зее","їхній, їхня",null,2,{"$f":"B29","v":"their"},"зее","їхній, їхня"]
[3,"win","він","перемагати",null,3,"win","він","перемагати"]
[4,"chess","чес","шахи",null,4,"chess","чес","шахи"]
[5,"skip","скіп","стрибати",null,5,"skip","скіп","стрибати"]
[6,"touch","тач","торкнутися",null,6,"touch","тач","торкнутися"]
[7,0,0,0,null,7,0,0,0]
[8,0,0,0,null,8,0,0,0]
[]
[1,{"$f":"B28","v":"our"},"ауе","наша, наша",null,1,{"$f":"B37","v":"our"},{"$f":"C37","v":"ауе"},{"$f":"D37","v":"наша, наша"}]
[2,"their","зее","їхній, їхня",null,2,{"$f":"B38","v":"their"},"зее","їхній, їхня"]
[3,"win","він","перемагати",null,3,"win","він","перемагати"]
[4,"chess","чес","шахи",null,4,"chess","чес","шахи"]
[5,"skip","скіп","стрибати",null,5,"skip","скіп","стрибати"]
[6,"touch","тач","торкнутися",null,6,"touch","тач","торкнутися"]
[7,0,0,0,null,7,0,0,0]
[8,0,0,0,null,8,0,0,0]

{"sheet":"Лист1 (7)","index":7,"n_rows":44,"n_cols":17,"rows_kept":44,"cut":false,"hidden":false,"merged":[]}
[{"$f":"J1","v":1},{"$f":"K1","v":"snow"},{"$f":"L1","v":"сноу"},{"$f":"M1","v":"сніг"},null,{"$f":"A1","v":1},{"$f":"B1","v":"snow"},{"$f":"C1","v":"сноу"},{"$f":"D1","v":"сніг"},1,"snow","сноу","сніг"]
[{"$f":"J2","v":2},"listen to music","лісен ту м'юзік","слухати музику",null,{"$f":"A2","v":2},"listen to music","лісен ту м'юзік","слухати музику",2,"listen to music","лісен ту м'юзік","слухати музику"]
[3,"work","во:к","робота, працювати",null,3,"work","во:к","робота, працювати",3,"work","во:к","робота, працювати"]
[4,"do homework","ду хоумвок","робити домаш. роб",null,4,"do homework","ду хоумвок","робити домаш. роб",4,"do homework","ду хоумвок","робити домаш. роб",null,null,null,"weather"]
[5,"do sums","ду самс","робити задачі",null,5,{"$f":"B5","v":"do sums"},"ду самс","робити задачі",5,"do sums","ду самс","робити задачі",null,null,null,"warm"]
[6,{"$f":"K6","v":"our cat"},"ауе кет","наша кішка",null,6,"our cat","ауе кет","наша кішка",6,"our cat","ауе кет","наша кішка",null,null,null,"nice"]
[7,"our dog","ауе доґ","наш собака",null,7,"our dog","ауе доґ","наш собака",7,"our dog","ауе доґ","наш собака",null,null,null,"hot"]
[8,"we ","ві:","ми",null,8,"we ","ві:","ми",8,"we ","ві:","ми",null,null,null,"evening"]
[null,null,null,null,null,null,null,null,null,null,null,null,null,null,null,null,"cold"]
[1,{"$f":"B1","v":"snow"},"сноу","сніг",null,1,{"$f":"B10","v":"snow"},{"$f":"C10","v":"сноу"},{"$f":"D10","v":"сніг"}]
[2,"listen to music","лісен ту м'юзік","слухати музику",null,2,{"$f":"B11","v":"listen to music"},"лісен ту м'юзік","слухати музику"]
[3,"work","во:к","робота, працювати",null,3,"work","во:к","робота, працювати"]
[4,"do homework","ду хоумвок","робити домаш. роб",null,4,"do homework","ду хоумвок","робити домаш. роб"]
[5,"do sums","ду самс","робити задачі",null,5,"do sums","ду самс","робити задачі"]
[6,"our cat","ауе кет","наша кішка",null,6,"our cat","ауе кет","наша кішка"]
[7,"our dog","ауе доґ","наш собака",null,7,"our dog","ауе доґ","наш собака"]
[8,"we ","ві:","ми",null,8,"we ","ві:","ми"]
[]
[1,{"$f":"B10","v":"snow"},"сноу","сніг",null,1,{"$f":"B19","v":"snow"},{"$f":"C19","v":"сноу"},{"$f":"D19","v":"сніг"}]
[2,"listen to music","лісен ту м'юзік","слухати музику",null,2,{"$f":"B20","v":"listen to music"},"лісен ту м'юзік","слухати музику"]
[3,"work","во:к","робота, працювати",null,3,"work","во:к","робота, працювати"]
[4,"do homework","ду хоумвок","робити домаш. роб",null,4,"do homework","ду хоумвок","робити домаш. роб"]
[5,"do sums","ду самс","робити задачі",null,5,"do sums","ду самс","робити задачі"]
[6,"our cat","ауе кет","наша кішка",null,6,"our cat","ауе кет","наша кішка"]
[7,"our dog","ауе доґ","наш собака",null,7,"our dog","ауе доґ","наш собака"]
[8,"we ","ві:","ми",null,8,"we ","ві:","ми"]
[]
[1,{"$f":"B19","v":"snow"},"сноу","сніг",null,1,{"$f":"B28","v":"snow"},{"$f":"C28","v":"сноу"},{"$f":"D28","v":"сніг"}]
[2,"listen to music","лісен ту м'юзік","слухати музику",null,2,{"$f":"B29","v":"listen to music"},"лісен ту м'юзік","слухати музику"]
[3,"work","во:к","робота, працювати",null,3,"work","во:к","робота, працювати"]
[4,"do homework","ду хоумвок","робити домаш. роб",null,4,"do homework","ду хоумвок","робити домаш. роб"]
[5,"do sums","ду самс","робити задачі",null,5,"do sums","ду самс","робити задачі"]
[6,"our cat","ауе кет","наша кішка",null,6,"our cat","ауе кет","наша кішка"]
[7,"our dog","ауе доґ","наш собака",null,7,"our dog","ауе доґ","наш собака"]
[8,"we ","ві:","ми",null,8,"we ","ві:","ми"]
[]
[1,{"$f":"B28","v":"snow"},"сноу","сніг",null,1,{"$f":"B37","v":"snow"},{"$f":"C37","v":"сноу"},{"$f":"D37","v":"сніг"}]
[2,"listen to music","лісен ту м'юзік","слухати музику",null,2,{"$f":"B38","v":"listen to music"},"лісен ту м'юзік","слухати музику"]
[3,"work","во:к","робота, працювати",null,3,"work","во:к","робота, працювати"]
[4,"do homework","ду хоумвок","робити домаш. роб",null,4,"do homework","ду хоумвок","робити домаш. роб"]
[5,"do sums","ду самс","робити задачі",null,5,"do sums","ду самс","робити задачі"]
[6,"our cat","ауе кет","наша кішка",null,6,"our cat","ауе кет","наша кішка"]
[7,"our dog","ауе доґ","наш собака",null,7,"our dog","ауе доґ","наш собака"]
[8,"we ","ві:","ми",null,8,"we ","ві:","ми"]

{"sheet":"Лист1 (8)","index":8,"n_rows":44,"n_cols":17,"rows_kept":44,"cut":false,"hidden":false,"merged":[]}
[{"$f":"J1","v":1},{"$f":"K1","v":"a big cat"},{"$f":"L1","v":"."},{"$f":"M1","v":"великий кіт"},null,{"$f":"A1","v":1},{"$f":"B1","v":"a big cat"},{"$f":"C1","v":"."},{"$f":"D1","v":"великий кіт"},1,"a big cat",".","великий кіт"]
[{"$f":"J2","v":2},"a little car",".","маленький автомобіль",null,{"$f":"A2","v":2},"a little car",".","маленький автомобіль",2,"a little car",".","маленький автомобіль"]
[3,"a house","хауз","будинок",null,3,"a house","хауз","будинок",3,"a house","хауз","будинок"]
[4,"our house","ауе хауз","наш будинок",null,4,"our house","ауе хауз","наш будинок",4,"our house","ауе хауз","наш будинок",null,null,null,"weather"]
[5,"a small car","смол ка:","маленький кіт",null,5,{"$f":"B5","v":"a small car"},"смол ка:","маленький кіт",5,"a small car","смол ка:","маленький кіт",null,null,null,"warm"]
[6,{"$f":"K6","v":"a small house"},"смол хауз","маленький будинок",null,6,"a small house","смол хауз","маленький будинок",6,"a small house","смол хауз","маленький будинок",null,null,null,"nice"]
[7,"a very big cat","вері біг кет","дуже великий кіт",null,7,"a very big cat","вері біг кет","дуже великий кіт",7,"a very big cat","вері біг кет","дуже великий кіт",null,null,null,"hot"]
[8,"our street","ауе стрі:т","наша вулиця",null,8,"our street","ауе стрі:т","наша вулиця",8,"our street","ауе стрі:т","наша вулиця",null,null,null,"evening"]
[null,null,null,null,null,null,null,null,null,null,null,null,null,null,null,null,"cold"]
[1,{"$f":"B1","v":"a big cat"},".","великий кіт",null,1,{"$f":"B10","v":"a big cat"},{"$f":"C10","v":"."},{"$f":"D10","v":"великий кіт"}]
[2,"a little car",".","маленький автомобіль",null,2,{"$f":"B11","v":"a little car"},".","маленький автомобіль"]
[3,"a house","хауз","будинок",null,3,"a house","хауз","будинок"]
[4,"our house","ауе хауз","наш будинок",null,4,"our house","ауе хауз","наш будинок"]
[5,"a small car","смол ка:","маленький кіт",null,5,"a small car","смол ка:","маленький кіт"]
[6,"a small house","смол хауз","маленький будинок",null,6,"a small house","смол хауз","маленький будинок"]
[7,"a very big cat","вері біг кет","дуже великий кіт",null,7,"a very big cat","вері біг кет","дуже великий кіт"]
[8,"our street","ауе стрі:т","наша вулиця",null,8,"our street","ауе стрі:т","наша вулиця"]
[]
[1,{"$f":"B10","v":"a big cat"},".","великий кіт",null,1,{"$f":"B19","v":"a big cat"},{"$f":"C19","v":"."},{"$f":"D19","v":"великий кіт"}]
[2,"a little car",".","маленький автомобіль",null,2,{"$f":"B20","v":"a little car"},".","маленький автомобіль"]
[3,"a house","хауз","будинок",null,3,"a house","хауз","будинок"]
[4,"our house","ауе хауз","наш будинок",null,4,"our house","ауе хауз","наш будинок"]
[5,"a small car","смол ка:","маленький кіт",null,5,"a small car","смол ка:","маленький кіт"]
[6,"a small house","смол хауз","маленький будинок",null,6,"a small house","смол хауз","маленький будинок"]
[7,"a very big cat","вері біг кет","дуже великий кіт",null,7,"a very big cat","вері біг кет","дуже великий кіт"]
[8,"our street","ауе стрі:т","наша вулиця",null,8,"our street","ауе стрі:т","наша вулиця"]
[]
[1,{"$f":"B19","v":"a big cat"},".","великий кіт",null,1,{"$f":"B28","v":"a big cat"},{"$f":"C28","v":"."},{"$f":"D28","v":"великий кіт"}]
[2,"a little car",".","маленький автомобіль",null,2,{"$f":"B29","v":"a little car"},".","маленький автомобіль"]
[3,"a house","хауз","будинок",null,3,"a house","хауз","будинок"]
[4,"our house","ауе хауз","наш будинок",null,4,"our house","ауе хауз","наш будинок"]
[5,"a small car","смол ка:","маленький кіт",null,5,"a small car","смол ка:","маленький кіт"]
[6,"a small house","смол хауз","маленький будинок",null,6,"a small house","смол хауз","маленький будинок"]
[7,"a very big cat","вері біг кет","дуже великий кіт",null,7,"a very big cat","вері біг кет","дуже великий кіт"]
[8,"our street","ауе стрі:т","наша вулиця",null,8,"our street","ауе стрі:т","наша вулиця"]
[]
[1,{"$f":"B28","v":"a big cat"},".","великий кіт",null,1,{"$f":"B37","v":"a big cat"},{"$f":"C37","v":"."},{"$f":"D37","v":"великий кіт"}]
[2,"a little car",".","маленький автомобіль",null,2,{"$f":"B38","v":"a little car"},".","маленький автомобіль"]
[3,"a house","хауз","будинок",null,3,"a house","хауз","будинок"]
[4,"our house","ауе хауз","наш будинок",null,4,"our house","ауе хауз","наш будинок"]
[5,"a small car","смол ка:","маленький кіт",null,5,"a small car","смол ка:","маленький кіт"]
[6,"a small house","смол хауз","маленький будинок",null,6,"a small house","смол хауз","маленький будинок"]
[7,"a very big cat","вері біг кет","дуже великий кіт",null,7,"a very big cat","вері біг кет","дуже великий кіт"]
[8,"our street","ауе стрі:т","наша вулиця",null,8,"our street","ауе стрі:т","наша вулиця"]

{"sheet":"Лист1 (9)","index":9,"n_rows":44,"n_cols":17,"rows_kept":44,"cut":false,"hidden":false,"merged":[]}
[{"$f":"J1","v":1},{"$f":"K1","v":"balcony"},{"$f":"L1","v":"белкені"},{"$f":"M1","v":"балкон"},null,{"$f":"A1","v":1},{"$f":"B1","v":"balcony"},{"$f":"C1","v":"белкені"},{"$f":"D1","v":"балкон"},1,"balcony","белкені","балкон"]
[{"$f":"J2","v":2},"flat","флет","квартира",null,{"$f":"A2","v":2},"flat","флет","квартира",2,"flat","флет","квартира"]
[3,"yard","я:д","подвір'я",null,3,"yard","я:д","подвір'я",3,"yard","я:д","подвір'я"]
[4,"flower","флауе","квітка",null,4,"flower","флауе","квітка",4,"flower","флауе","квітка",null,null,null,"weather"]
[5,"flowerbed","флауебед","клумба",null,5,{"$f":"B5","v":"flowerbed"},"флауебед","клумба",5,"flowerbed","флауебед","клумба",null,null,null,"warm"]
[6,{"$f":"K6","v":"city"},"сіті","місто",null,6,"city","сіті","місто",6,"city","сіті","місто",null,null,null,"nice"]
[7,"town","таун","містечко",null,7,"town","таун","містечко",7,"town","таун","містечко",null,null,null,"hot"]
[8,0,0,0,null,8,0,0,0,8,null,null,null,null,null,null,"evening"]
[null,null,null,null,null,null,null,null,null,null,null,null,null,null,null,null,"cold"]
[1,{"$f":"B1","v":"balcony"},"белкені","балкон",null,1,{"$f":"B10","v":"balcony"},{"$f":"C10","v":"белкені"},{"$f":"D10","v":"балкон"}]
[2,"flat","флет","квартира",null,2,{"$f":"B11","v":"flat"},"флет","квартира"]
[3,"yard","я:д","подвір'я",null,3,"yard","я:д","подвір'я"]
[4,"flower","флауе","квітка",null,4,"flower","флауе","квітка"]
[5,"flowerbed","флауебед","клумба",null,5,"flowerbed","флауебед","клумба"]
[6,"city","сіті","місто",null,6,"city","сіті","місто",null,"♥"]
[7,"town","таун","містечко",null,7,"town","таун","містечко"]
[8,0,0,0,null,8,0,0,0]
[]
[1,{"$f":"B10","v":"balcony"},"белкені","балкон",null,1,{"$f":"B19","v":"balcony"},{"$f":"C19","v":"белкені"},{"$f":"D19","v":"балкон"}]
[2,"flat","флет","квартира",null,2,{"$f":"B20","v":"flat"},"флет","квартира"]
[3,"yard","я:д","подвір'я",null,3,"yard","я:д","подвір'я"]
[4,"flower","флауе","квітка",null,4,"flower","флауе","квітка"]
[5,"flowerbed","флауебед","клумба",null,5,"flowerbed","флауебед","клумба"]
[6,"city","сіті","місто",null,6,"city","сіті","місто"]
[7,"town","таун","містечко",null,7,"town","таун","містечко"]
[8,0,0,0,null,8,0,0,0]
[]
[1,{"$f":"B19","v":"balcony"},"белкені","балкон",null,1,{"$f":"B28","v":"balcony"},{"$f":"C28","v":"белкені"},{"$f":"D28","v":"балкон"}]
[2,"flat","флет","квартира",null,2,{"$f":"B29","v":"flat"},"флет","квартира"]
[3,"yard","я:д","подвір'я",null,3,"yard","я:д","подвір'я"]
[4,"flower","флауе","квітка",null,4,"flower","флауе","квітка"]
[5,"flowerbed","флауебед","клумба",null,5,"flowerbed","флауебед","клумба"]
[6,"city","сіті","місто",null,6,"city","сіті","місто"]
[7,"town","таун","містечко",null,7,"town","таун","містечко"]
[8,0,0,0,null,8,0,0,0]
[]
[1,{"$f":"B28","v":"balcony"},"белкені","балкон",null,1,{"$f":"B37","v":"balcony"},{"$f":"C37","v":"белкені"},{"$f":"D37","v":"балкон"}]
[2,"flat","флет","квартира",null,2,{"$f":"B38","v":"flat"},"флет","квартира"]
[3,"yard","я:д","подвір'я",null,3,"yard","я:д","подвір'я"]
[4,"flower","флауе","квітка",null,4,"flower","флауе","квітка"]
[5,"flowerbed","флауебед","клумба",null,5,"flowerbed","флауебед","клумба"]
[6,"city","сіті","місто",null,6,"city","сіті","місто"]
[7,"town","таун","містечко",null,7,"town","таун","містечко"]
[8,0,0,0,null,8,0,0,0]

{"sheet":"Лист1 (10)","index":10,"n_rows":44,"n_cols":13,"rows_kept":44,"cut":false,"hidden":false,"merged":[]}
[{"$f":"J1","v":1},{"$f":"K1","v":"what"},{"$f":"L1","v":"воч"},{"$f":"M1","v":"що"},null,{"$f":"A1","v":1},{"$f":"B1","v":"what"},{"$f":"C1","v":"воч"},{"$f":"D1","v":"що"},1,"what","воч","що"]
[{"$f":"J2","v":2},"live","лів","жити",null,{"$f":"A2","v":2},"live","лів","жити",2,"live","лів","жити"]
[3,"nice","найс","гарна",null,3,"nice","найс","гарна",3,"nice","найс","гарна"]
[4,"a nice day","найс дей","гарна дівчина",null,4,"a nice day","найс дей","гарна дівчина",4,"a nice day","найс дей","гарна дівчина"]
[5,"many","мені","багато",null,5,{"$f":"B5","v":"many"},"мені","багато",5,"many","мені","багато"]
[6,{"$f":"K6","v":"many pens"},"мені пенс","багато ручок",null,6,"many pens","мені пенс","багато ручок",6,"many pens","мені пенс","багато ручок"]
[7,"a blue pen","блу: пен","синя ручка",null,7,"a blue pen","блу: пен","синя ручка",7,"a blue pen","блу: пен","синя ручка"]
[8,"always","о:лвейз","завжди",null,8,"always","о:лвейз","завжди",8,"always","о:лвейз","завжди"]
[]
[1,{"$f":"B1","v":"what"},"воч","що",null,1,{"$f":"B10","v":"what"},{"$f":"C10","v":"воч"},{"$f":"D10","v":"що"}]
[2,"live","лів","жити",null,2,{"$f":"B11","v":"live"},"лів","жити"]
[3,"nice","найс","гарна",null,3,"nice","найс","гарна"]
[4,"a nice day","найс дей","гарна дівчина",null,4,"a nice day","найс дей","гарна дівчина"]
[5,"many","мені","багато",null,5,"many","мені","багато"]
[6,"many pens","мені пенс","багато ручок",null,6,"many pens","мені пенс","багато ручок"]
[7,"a blue pen","блу: пен","синя ручка",null,7,"a blue pen","блу: пен","синя ручка"]
[8,"always","о:лвейз","завжди",null,8,"always","о:лвейз","завжди"]
[]
[1,{"$f":"B10","v":"what"},"воч","що",null,1,{"$f":"B19","v":"what"},{"$f":"C19","v":"воч"},{"$f":"D19","v":"що"}]
[2,"live","лів","жити",null,2,{"$f":"B20","v":"live"},"лів","жити"]
[3,"nice","найс","гарна",null,3,"nice","найс","гарна"]
[4,"a nice day","найс дей","гарна дівчина",null,4,"a nice day","найс дей","гарна дівчина"]
[5,"many","мені","багато",null,5,"many","мені","багато"]
[6,"many pens","мені пенс","багато ручок",null,6,"many pens","мені пенс","багато ручок"]
[7,"a blue pen","блу: пен","синя ручка",null,7,"a blue pen","блу: пен","синя ручка"]
[8,"always","о:лвейз","завжди",null,8,"always","о:лвейз","завжди"]
[]
[1,{"$f":"B19","v":"what"},"воч","що",null,1,{"$f":"B28","v":"what"},{"$f":"C28","v":"воч"},{"$f":"D28","v":"що"}]
[2,"live","лів","жити",null,2,{"$f":"B29","v":"live"},"лів","жити"]
[3,"nice","найс","гарна",null,3,"nice","найс","гарна"]
[4,"a nice day","найс дей","гарна дівчина",null,4,"a nice day","найс дей","гарна дівчина"]
[5,"many","мені","багато",null,5,"many","мені","багато"]
[6,"many pens","мені пенс","багато ручок",null,6,"many pens","мені пенс","багато ручок"]
[7,"a blue pen","блу: пен","синя ручка",null,7,"a blue pen","блу: пен","синя ручка"]
[8,"always","о:лвейз","завжди",null,8,"always","о:лвейз","завжди"]
[]
[1,{"$f":"B28","v":"what"},"воч","що",null,1,{"$f":"B37","v":"what"},{"$f":"C37","v":"воч"},{"$f":"D37","v":"що"}]
[2,"live","лів","жити",null,2,{"$f":"B38","v":"live"},"лів","жити"]
[3,"nice","найс","гарна",null,3,"nice","найс","гарна"]
[4,"a nice day","найс дей","гарна дівчина",null,4,"a nice day","найс дей","гарна дівчина"]
[5,"many","мені","багато",null,5,"many","мені","багато"]
[6,"many pens","мені пенс","багато ручок",null,6,"many pens","мені пенс","багато ручок"]
[7,"a blue pen","блу: пен","синя ручка",null,7,"a blue pen","блу: пен","синя ручка"]
[8,"always","о:лвейз","завжди",null,8,"always","о:лвейз","завжди"]

{"sheet":"Лист1 (11)","index":11,"n_rows":44,"n_cols":13,"rows_kept":44,"cut":false,"hidden":false,"merged":[]}
[{"$f":"J1","v":1},{"$f":"K1","v":"garden"},{"$f":"L1","v":"ґа:дн"},{"$f":"M1","v":"сад"},null,{"$f":"A1","v":1},{"$f":"B1","v":"garden"},{"$f":"C1","v":"ґа:дн"},{"$f":"D1","v":"сад"},1,"garden","ґа:дн","сад"]
[{"$f":"J2","v":2},"behind","біхайнд","позаду",null,{"$f":"A2","v":2},"behind","біхайнд","позаду",2,"behind","біхайнд","позаду"]
[3,"walk","во:к","ходити пішки",null,3,"walk","во:к","ходити пішки",3,"walk","во:к","ходити пішки"]
[4,"in front","ін франт","попереду",null,4,"in front","ін франт","попереду",4,"in front","ін франт","попереду"]
[5,"side","сайд","бік",null,5,{"$f":"B5","v":"side"},"сайд","бік",5,"side","сайд","бік"]
[6,{"$f":"K6","v":"right side"},"райт сайд","правий бік",null,6,"right side","райт сайд","правий бік",6,"right side","райт сайд","правий бік"]
[7,"garage","ґера:ж","гараж",null,7,"garage","ґера:ж","гараж",7,"garage","ґера:ж","гараж"]
[8,0,0,0,null,8,0,0,0,8]
[]
[1,{"$f":"B1","v":"garden"},"ґа:дн","сад",null,1,{"$f":"B10","v":"garden"},{"$f":"C10","v":"ґа:дн"},{"$f":"D10","v":"сад"}]
[2,"behind","біхайнд","позаду",null,2,{"$f":"B11","v":"behind"},"біхайнд","позаду"]
[3,"walk","во:к","ходити пішки",null,3,"walk","во:к","ходити пішки"]
[4,"in front","ін франт","попереду",null,4,"in front","ін франт","попереду"]
[5,"side","сайд","бік",null,5,"side","сайд","бік"]
[6,"right side","райт сайд","правий бік",null,6,"right side","райт сайд","правий бік"]
[7,"garage","ґера:ж","гараж",null,7,"garage","ґера:ж","гараж"]
[8,0,0,0,null,8,0,0,0]
[]
[1,{"$f":"B10","v":"garden"},"ґа:дн","сад",null,1,{"$f":"B19","v":"garden"},{"$f":"C19","v":"ґа:дн"},{"$f":"D19","v":"сад"}]
[2,"behind","біхайнд","позаду",null,2,{"$f":"B20","v":"behind"},"біхайнд","позаду"]
[3,"walk","во:к","ходити пішки",null,3,"walk","во:к","ходити пішки"]
[4,"in front","ін франт","попереду",null,4,"in front","ін франт","попереду"]
[5,"side","сайд","бік",null,5,"side","сайд","бік"]
[6,"right side","райт сайд","правий бік",null,6,"right side","райт сайд","правий бік"]
[7,"garage","ґера:ж","гараж",null,7,"garage","ґера:ж","гараж"]
[8,0,0,0,null,8,0,0,0]
[]
[1,{"$f":"B19","v":"garden"},"ґа:дн","сад",null,1,{"$f":"B28","v":"garden"},{"$f":"C28","v":"ґа:дн"},{"$f":"D28","v":"сад"}]
[2,"behind","біхайнд","позаду",null,2,{"$f":"B29","v":"behind"},"біхайнд","позаду"]
[3,"walk","во:к","ходити пішки",null,3,"walk","во:к","ходити пішки"]
[4,"in front","ін франт","попереду",null,4,"in front","ін франт","попереду"]
[5,"side","сайд","бік",null,5,"side","сайд","бік"]
[6,"right side","райт сайд","правий бік",null,6,"right side","райт сайд","правий бік"]
[7,"garage","ґера:ж","гараж",null,7,"garage","ґера:ж","гараж"]
[8,0,0,0,null,8,0,0,0]
[]
[1,{"$f":"B28","v":"garden"},"ґа:дн","сад",null,1,{"$f":"B37","v":"garden"},{"$f":"C37","v":"ґа:дн"},{"$f":"D37","v":"сад"}]
[2,"behind","біхайнд","позаду",null,2,{"$f":"B38","v":"behind"},"біхайнд","позаду"]
[3,"walk","во:к","ходити пішки",null,3,"walk","во:к","ходити пішки"]
[4,"in front","ін франт","попереду",null,4,"in front","ін франт","попереду"]
[5,"side","сайд","бік",null,5,"side","сайд","бік"]
[6,"right side","райт сайд","правий бік",null,6,"right side","райт сайд","правий бік"]
[7,"garage","ґера:ж","гараж",null,7,"garage","ґера:ж","гараж"]
[8,0,0,0,null,8,0,0,0]

{"sheet":"Лист1 (12)","index":12,"n_rows":49,"n_cols":13,"rows_kept":49,"cut":false,"hidden":false,"merged":[]}
["Form 4",null,null,null,null,"Form 4"]
[{"$f":"J2","v":1},{"$f":"K2","v":"fridge"},{"$f":"L2","v":"фрідж"},{"$f":"M2","v":"холодильник"},null,{"$f":"A2","v":1},{"$f":"B2","v":"fridge"},{"$f":"C2","v":"фрідж"},{"$f":"D2","v":"холодильник"},1,"fridge","фрідж","холодильник"]
[{"$f":"J3","v":2},"gas cooker","♦","газова плита",null,{"$f":"A3","v":2},"gas cooker","♦","газова плита",2,"gas cooker","ґес куке","газова плита"]
[3,"cup ","кап","чашка",null,3,"cup ","кап","чашка",3,"cup ","кап","чашка"]
[4,"cupboard","капбо:в","шафа для посуду",null,4,"cupboard","капбо:в","шафа для посуду",4,"cupboard","капбо:в","шафа для посуду"]
[5,"dishwasher","дішвоше","посудомийна машина",null,5,{"$f":"B6","v":"dishwasher"},"дішвоше","посудомийна машина",5,"dishwasher","дішвоше","посудомийна машина"]
[6,{"$f":"K7","v":"mirror"},"міре","дзеркало",null,6,"mirror","міре","дзеркало",6,"mirror","міре","дзеркало"]
[7,0,0,0,null,7,0,0,0,7]
[8,0,0,0,null,8,0,0,0,8]
[]
["Form 4",null,null,null,null,"Form 4"]
[1,{"$f":"B2","v":"fridge"},"фрідж","холодильник",null,1,{"$f":"B12","v":"fridge"},{"$f":"C12","v":"фрідж"},{"$f":"D12","v":"холодильник"}]
[2,"gas cooker","♦","газова плита",null,2,{"$f":"B13","v":"gas cooker"},"♦","газова плита"]
[3,"cup ","кап","чашка",null,3,"cup ","кап","чашка"]
[4,"cupboard","капбо:в","шафа для посуду",null,4,"cupboard","капбо:в","шафа для посуду"]
[5,"dishwasher","дішвоше","посудомийна машина",null,5,"dishwasher","дішвоше","посудомийна машина"]
[6,"mirror","міре","дзеркало",null,6,"mirror","міре","дзеркало"]
[7,0,0,0,null,7,0,0,0]
[8,0,0,0,null,8,0,0,0]
[]
["Form 4",null,null,null,null,"Form 4"]
[1,{"$f":"B12","v":"fridge"},"фрідж","холодильник",null,1,{"$f":"B22","v":"fridge"},{"$f":"C22","v":"фрідж"},{"$f":"D22","v":"холодильник"}]
[2,"gas cooker","♦","газова плита",null,2,{"$f":"B23","v":"gas cooker"},"♦","газова плита"]
[3,"cup ","кап","чашка",null,3,"cup ","кап","чашка"]
[4,"cupboard","капбо:в","шафа для посуду",null,4,"cupboard","капбо:в","шафа для посуду"]
[5,"dishwasher","дішвоше","посудомийна машина",null,5,"dishwasher","дішвоше","посудомийна машина"]
[6,"mirror","міре","дзеркало",null,6,"mirror","міре","дзеркало"]
[7,0,0,0,null,7,0,0,0]
[8,0,0,0,null,8,0,0,0]
[]
["Form 4",null,null,null,null,"Form 4"]
[1,{"$f":"B22","v":"fridge"},"фрідж","холодильник",null,1,{"$f":"B32","v":"fridge"},{"$f":"C32","v":"фрідж"},{"$f":"D32","v":"холодильник"}]
[2,"gas cooker","♦","газова плита",null,2,{"$f":"B33","v":"gas cooker"},"♦","газова плита"]
[3,"cup ","кап","чашка",null,3,"cup ","кап","чашка"]
[4,"cupboard","капбо:в","шафа для посуду",null,4,"cupboard","капбо:в","шафа для посуду"]
[5,"dishwasher","дішвоше","посудомийна машина",null,5,"dishwasher","дішвоше","посудомийна машина"]
[6,"mirror","міре","дзеркало",null,6,"mirror","міре","дзеркало"]
[7,0,0,0,null,7,0,0,0]
[8,0,0,0,null,8,0,0,0]
[]
["Form 4",null,null,null,null,"Form 4"]
[1,{"$f":"B32","v":"fridge"},"фрідж","холодильник",null,1,{"$f":"B42","v":"fridge"},{"$f":"C42","v":"фрідж"},{"$f":"D42","v":"холодильник"}]
[2,"gas cooker","♦","газова плита",null,2,{"$f":"B43","v":"gas cooker"},"♦","газова плита"]
[3,"cup ","кап","чашка",null,3,"cup ","кап","чашка"]
[4,"cupboard","капбо:в","шафа для посуду",null,4,"cupboard","капбо:в","шафа для посуду"]
[5,"dishwasher","дішвоше","посудомийна машина",null,5,"dishwasher","дішвоше","посудомийна машина"]
[6,"mirror","міре","дзеркало",null,6,"mirror","міре","дзеркало"]
[7,0,0,0,null,7,0,0,0]
[8,0,0,0,null,8,0,0,0]

{"sheet":"Лист1 (6)","index":13,"n_rows":44,"n_cols":17,"rows_kept":44,"cut":false,"hidden":false,"merged":[]}
[{"$f":"J1","v":1},{"$f":"K1","v":"badge"},{"$f":"L1","v":"бедж"},{"$f":"M1","v":"значок"},null,{"$f":"A1","v":1},{"$f":"B1","v":"badge"},{"$f":"C1","v":"бедж"},{"$f":"D1","v":"значок"},1,"badge","бедж","значок"]
[{"$f":"J2","v":2},"coin","коін","монета",null,{"$f":"A2","v":2},"coin","коін","монета",2,"coin","коін","монета"]
[3,"stamp","стемп","марка",null,3,"stamp","стемп","марка",3,"stamp","стемп","марка"]
[4,"collect","келект","колекціонувати, збирати",null,4,"collect","келект","колекціонувати, збирати",4,"collect","келект","колекціонувати, збирати",null,null,null,"weather"]
[5,"collection","келекшен","колекція",null,5,{"$f":"B5","v":"collection"},"келекшен","колекція",5,"collection","келекшен","колекція",null,null,null,"warm"]
[6,{"$f":"K6","v":"postcard"},"поустка:д","поштова листівка",null,6,"postcard","поустка:д","поштова листівка",6,"postcard","поустка:д","поштова листівка",null,null,null,"nice"]
[7,0,0,0,null,7,0,0,0,7,null,null,null,null,null,null,"hot"]
[8,0,0,0,null,8,0,0,0,8,null,null,null,null,null,null,"evening"]
[null,null,null,null,null,null,null,null,null,null,null,null,null,null,null,null,"cold"]
[1,{"$f":"B1","v":"badge"},"бедж","значок",null,1,{"$f":"B10","v":"badge"},{"$f":"C10","v":"бедж"},{"$f":"D10","v":"значок"}]
[2,"coin","коін","монета",null,2,{"$f":"B11","v":"coin"},"коін","монета"]
[3,"stamp","стемп","марка",null,3,"stamp","стемп","марка"]
[4,"collect","келект","колекціонувати, збирати",null,4,"collect","келект","колекціонувати, збирати"]
[5,"collection","келекшен","колекція",null,5,"collection","келекшен","колекція"]
[6,"postcard","поустка:д","поштова листівка",null,6,"postcard","поустка:д","поштова листівка"]
[7,0,0,0,null,7,0,0,0]
[8,0,0,0,null,8,0,0,0]
[]
[1,{"$f":"B10","v":"badge"},"бедж","значок",null,1,{"$f":"B19","v":"badge"},{"$f":"C19","v":"бедж"},{"$f":"D19","v":"значок"}]
[2,"coin","коін","монета",null,2,{"$f":"B20","v":"coin"},"коін","монета"]
[3,"stamp","стемп","марка",null,3,"stamp","стемп","марка"]
[4,"collect","келект","колекціонувати, збирати",null,4,"collect","келект","колекціонувати, збирати"]
[5,"collection","келекшен","колекція",null,5,"collection","келекшен","колекція"]
[6,"postcard","поустка:д","поштова листівка",null,6,"postcard","поустка:д","поштова листівка"]
[7,0,0,0,null,7,0,0,0]
[8,0,0,0,null,8,0,0,0]
[]
[1,{"$f":"B19","v":"badge"},"бедж","значок",null,1,{"$f":"B28","v":"badge"},{"$f":"C28","v":"бедж"},{"$f":"D28","v":"значок"}]
[2,"coin","коін","монета",null,2,{"$f":"B29","v":"coin"},"коін","монета"]
[3,"stamp","стемп","марка",null,3,"stamp","стемп","марка"]
[4,"collect","келект","колекціонувати, збирати",null,4,"collect","келект","колекціонувати, збирати"]
[5,"collection","келекшен","колекція",null,5,"collection","келекшен","колекція"]
[6,"postcard","поустка:д","поштова листівка",null,6,"postcard","поустка:д","поштова листівка"]
[7,0,0,0,null,7,0,0,0]
[8,0,0,0,null,8,0,0,0]
[]
[1,{"$f":"B28","v":"badge"},"бедж","значок",null,1,{"$f":"B37","v":"badge"},{"$f":"C37","v":"бедж"},{"$f":"D37","v":"значок"}]
[2,"coin","коін","монета",null,2,{"$f":"B38","v":"coin"},"коін","монета"]
[3,"stamp","стемп","марка",null,3,"stamp","стемп","марка"]
[4,"collect","келект","колекціонувати, збирати",null,4,"collect","келект","колекціонувати, збирати"]
[5,"collection","келекшен","колекція",null,5,"collection","келекшен","колекція"]
[6,"postcard","поустка:д","поштова листівка",null,6,"postcard","поустка:д","поштова листівка"]
[7,0,0,0,null,7,0,0,0]
[8,0,0,0,null,8,0,0,0]

{"sheet":"Лист1 (5)","index":14,"n_rows":44,"n_cols":13,"rows_kept":44,"cut":false,"hidden":false,"merged":[]}
[{"$f":"J1","v":1},{"$f":"K1","v":"Italian"},{"$f":"L1","v":"ітеліен"},{"$f":"M1","v":"італійський"},null,{"$f":"A1","v":1},{"$f":"B1","v":"Italian"},{"$f":"C1","v":"ітеліен"},{"$f":"D1","v":"італійський"},1,"Italian","ітеліен","італійський"]
[{"$f":"J2","v":2},"Canadian","кенейдіен","канадський",null,{"$f":"A2","v":2},"Canadian","кенейдіен","канадський",2,"Canadian","кенейдіен","канадський"]
[3,"German","джьомен","німецький",null,3,"German","джьомен","німецький",3,"German","джьомен","німецький"]
[4,"French","френч","французький",null,4,"French","френч","французький",4,"French","френч","французький"]
[5,0,0,0,null,5,{"$f":"B5","v":0},0,0,5]
[6,{"$f":"K6","v":0},0,0,null,6,0,0,0,6]
[7,0,0,0,null,7,0,0,0,7]
[8,0,0,0,null,8,0,0,0,8]
[]
[1,{"$f":"B1","v":"Italian"},"ітеліен","італійський",null,1,{"$f":"B10","v":"Italian"},{"$f":"C10","v":"ітеліен"},{"$f":"D10","v":"італійський"}]
[2,"Canadian","кенейдіен","канадський",null,2,{"$f":"B11","v":"Canadian"},"кенейдіен","канадський"]
[3,"German","джьомен","німецький",null,3,"German","джьомен","німецький"]
[4,"French","френч","французький",null,4,"French","френч","французький"]
[5,0,0,0,null,5,0,0,0]
[6,0,0,0,null,6,0,0,0]
[7,0,0,0,null,7,0,0,0]
[8,0,0,0,null,8,0,0,0]
[]
[1,{"$f":"B10","v":"Italian"},"ітеліен","італійський",null,1,{"$f":"B19","v":"Italian"},{"$f":"C19","v":"ітеліен"},{"$f":"D19","v":"італійський"}]
[2,"Canadian","кенейдіен","канадський",null,2,{"$f":"B20","v":"Canadian"},"кенейдіен","канадський"]
[3,"German","джьомен","німецький",null,3,"German","джьомен","німецький"]
[4,"French","френч","французький",null,4,"French","френч","французький"]
[5,0,0,0,null,5,0,0,0]
[6,0,0,0,null,6,0,0,0]
[7,0,0,0,null,7,0,0,0]
[8,0,0,0,null,8,0,0,0]
[]
[1,{"$f":"B19","v":"Italian"},"ітеліен","італійський",null,1,{"$f":"B28","v":"Italian"},{"$f":"C28","v":"ітеліен"},{"$f":"D28","v":"італійський"}]
[2,"Canadian","кенейдіен","канадський",null,2,{"$f":"B29","v":"Canadian"},"кенейдіен","канадський"]
[3,"German","джьомен","німецький",null,3,"German","джьомен","німецький"]
[4,"French","френч","французький",null,4,"French","френч","французький"]
[5,0,0,0,null,5,0,0,0]
[6,0,0,0,null,6,0,0,0]
[7,0,0,0,null,7,0,0,0]
[8,0,0,0,null,8,0,0,0]
[]
[1,{"$f":"B28","v":"Italian"},"ітеліен","італійський",null,1,{"$f":"B37","v":"Italian"},{"$f":"C37","v":"ітеліен"},{"$f":"D37","v":"італійський"}]
[2,"Canadian","кенейдіен","канадський",null,2,{"$f":"B38","v":"Canadian"},"кенейдіен","канадський"]
[3,"German","джьомен","німецький",null,3,"German","джьомен","німецький"]
[4,"French","френч","французький",null,4,"French","френч","французький"]
[5,0,0,0,null,5,0,0,0]
[6,0,0,0,null,6,0,0,0]
[7,0,0,0,null,7,0,0,0]
[8,0,0,0,null,8,0,0,0]

{"sheet":"Лист1 (4)","index":15,"n_rows":44,"n_cols":21,"rows_kept":44,"cut":false,"hidden":false,"merged":[]}
[{"$f":"J1","v":1},{"$f":"K1","v":"chess club"},{"$f":"L1","v":"чес клаб"},{"$f":"M1","v":"шахматний клуб"},null,{"$f":"A1","v":1},{"$f":"B1","v":"chess club"},{"$f":"C1","v":"чес клаб"},{"$f":"D1","v":"шахматний клуб"},1,"chess club","чес клаб","шахматний клуб"]
[{"$f":"J2","v":2},"karate club","кера:ті клаб","клуб карате",null,{"$f":"A2","v":2},"karate club","кера:ті клаб","клуб карате",2,"karate club","кера:ті клаб","клуб карате"]
[3,"fitness club","фітнес клаб","фітнесклуб",null,3,"fitness club","фітнес клаб","фітнесклуб",3,"fitness club","фітнес клаб","фітнесклуб"]
[4,"basketball club","бa:скетбо:л ","баскетбольний клуб",null,4,"basketball club","бa:скетбо:л ","баскетбольний клуб",4,"basketball club","бa:скетбо:л ","баскетбольний клуб",null,null,null,"weather"]
[5,"computer club","кемп'юте клаб","комп'ютерний клуб",null,5,{"$f":"B5","v":"computer club"},"кемп'юте клаб","комп'ютерний клуб",5,"computer club","кемп'юте клаб","комп'ютерний клуб",null,null,null,"warm"]
[6,{"$f":"K6","v":"yoga club"},"йога клаб","клуб йоги",null,6,"yoga club","йога клаб","клуб йоги",6,"yoga club","йога клаб","клуб йоги",null,null,null,"nice"]
[7,"tennis club","теніс клаб","тенісний клуб",null,7,"tennis club","теніс клаб","тенісний клуб",7,"tennis club","теніс клаб","тенісний клуб",null,null,null,"hot"]
[8,0,0,0,null,8,0,0,0,8,null,null,null,null,null,null,"evening"]
[null,null,null,null,null,null,null,null,null,null,null,null,null,null,null,null,"cold"]
[1,{"$f":"B1","v":"chess club"},"чес клаб","шахматний клуб",null,1,{"$f":"B10","v":"chess club"},{"$f":"C10","v":"чес клаб"},{"$f":"D10","v":"шахматний клуб"}]
[2,"karate club","кера:ті клаб","клуб карате",null,2,{"$f":"B11","v":"karate club"},"кера:ті клаб","клуб карате"]
[3,"fitness club","фітнес клаб","фітнесклуб",null,3,"fitness club","фітнес клаб","фітнесклуб"]
[4,"basketball club","бa:скетбо:л ","баскетбольний клуб",null,4,"basketball club","бa:скетбо:л ","баскетбольний клуб"]
[5,"computer club","кемп'юте клаб","комп'ютерний клуб",null,5,"computer club","кемп'юте клаб","комп'ютерний клуб"]
[6,"yoga club","йога клаб","клуб йоги",null,6,"yoga club","йога клаб","клуб йоги",null,null,null,null,null,null,null,null,null,null,null,"chess club"]
[7,"tennis club","теніс клаб","тенісний клуб",null,7,"tennis club","теніс клаб","тенісний клуб",null,null,null,null,null,null,null,null,null,null,null,"2 karate club"]
[8,0,0,0,null,8,0,0,0,null,null,null,null,null,null,null,null,null,null,null,"3 fitness club"]
[null,null,null,null,null,null,null,null,null,null,null,null,null,null,null,null,null,null,null,null,"4 basketball club"]
[1,{"$f":"B10","v":"chess club"},"чес клаб","шахматний клуб",null,1,{"$f":"B19","v":"chess club"},{"$f":"C19","v":"чес клаб"},{"$f":"D19","v":"шахматний клуб"},null,null,null,null,null,null,null,null,null,null,null,"5 computer club"]
[2,"karate club","кера:ті клаб","клуб карате",null,2,{"$f":"B20","v":"karate club"},"кера:ті клаб","клуб карате"]
[3,"fitness club","фітнес клаб","фітнесклуб",null,3,"fitness club","фітнес клаб","фітнесклуб"]
[4,"basketball club","бa:скетбо:л ","баскетбольний клуб",null,4,"basketball club","бa:скетбо:л ","баскетбольний клуб"]
[5,"computer club","кемп'юте клаб","комп'ютерний клуб",null,5,"computer club","кемп'юте клаб","комп'ютерний клуб"]
[6,"yoga club","йога клаб","клуб йоги",null,6,"yoga club","йога клаб","клуб йоги"]
[7,"tennis club","теніс клаб","тенісний клуб",null,7,"tennis club","теніс клаб","тенісний клуб"]
[8,0,0,0,null,8,0,0,0]
[]
[1,{"$f":"B19","v":"chess club"},"чес клаб","шахматний клуб",null,1,{"$f":"B28","v":"chess club"},{"$f":"C28","v":"чес клаб"},{"$f":"D28","v":"шахматний клуб"}]
[2,"karate club","кера:ті клаб","клуб карате",null,2,{"$f":"B29","v":"karate club"},"кера:ті клаб","клуб карате"]
[3,"fitness club","фітнес клаб","фітнесклуб",null,3,"fitness club","фітнес клаб","фітнесклуб"]
[4,"basketball club","бa:скетбо:л ","баскетбольний клуб",null,4,"basketball club","бa:скетбо:л ","баскетбольний клуб"]
[5,"computer club","кемп'юте клаб","комп'ютерний клуб",null,5,"computer club","кемп'юте клаб","комп'ютерний клуб"]
[6,"yoga club","йога клаб","клуб йоги",null,6,"yoga club","йога клаб","клуб йоги"]
[7,"tennis club","теніс клаб","тенісний клуб",null,7,"tennis club","теніс клаб","тенісний клуб"]
[8,0,0,0,null,8,0,0,0]
[]
[1,{"$f":"B28","v":"chess club"},"чес клаб","шахматний клуб",null,1,{"$f":"B37","v":"chess club"},{"$f":"C37","v":"чес клаб"},{"$f":"D37","v":"шахматний клуб"}]
[2,"karate club","кера:ті клаб","клуб карате",null,2,{"$f":"B38","v":"karate club"},"кера:ті клаб","клуб карате"]
[3,"fitness club","фітнес клаб","фітнесклуб",null,3,"fitness club","фітнес клаб","фітнесклуб"]
[4,"basketball club","бa:скетбо:л ","баскетбольний клуб",null,4,"basketball club","бa:скетбо:л ","баскетбольний клуб"]
[5,"computer club","кемп'юте клаб","комп'ютерний клуб",null,5,"computer club","кемп'юте клаб","комп'ютерний клуб"]
[6,"yoga club","йога клаб","клуб йоги",null,6,"yoga club","йога клаб","клуб йоги"]
[7,"tennis club","теніс клаб","тенісний клуб",null,7,"tennis club","теніс клаб","тенісний клуб"]
[8,0,0,0,null,8,0,0,0]

{"sheet":"Лист1 (13)","index":16,"n_rows":49,"n_cols":13,"rows_kept":49,"cut":false,"hidden":false,"merged":[]}
["Form 4",null,null,null,null,"Form 4"]
[{"$f":"J2","v":1},{"$f":"K2","v":"dining room"},{"$f":"L2","v":"дайнін ру:м"},{"$f":"M2","v":"їдальня"},null,{"$f":"A2","v":1},{"$f":"B2","v":"dining room"},{"$f":"C2","v":"дайнін ру:м"},{"$f":"D2","v":"їдальня"},1,"dining room","дайнін ру:м","їдальня"]
[{"$f":"J3","v":2},"washing machine","вошін меші:н","пральна машина",null,{"$f":"A3","v":2},"washing machine","вошін меші:н","пральна машина",2,"washing machine","вошін меші:н","пральна машина"]
[3,"washbasin","вошбейзін","ра́ковина",null,3,"washbasin","вошбейзін","ра́ковина",3,"washbasin","вошбейзін","ра́ковина"]
[4,"clothes","клеузс","одяг",null,4,"clothes","клеузс","одяг",4,"clothes","клеузс","одяг"]
[5,"food","фу:д","їжа",null,5,{"$f":"B6","v":"food"},"фу:д","їжа",5,"food","фу:д","їжа"]
[6,{"$f":"K7","v":"plate"},"плейт","тарілка",null,6,"plate","плейт","тарілка",6,"plate","плейт","тарілка"]
[7,"eat","і:т","їсти",null,7,"eat","і:т","їсти",7,"eat","і:т","їсти"]
[8,"face","фейс","лице",null,8,"face","фейс","лице",8,"face","фейс","лице"]
[]
["Form 4",null,null,null,null,"Form 4"]
[1,{"$f":"B2","v":"dining room"},"дайнін ру:м","їдальня",null,1,{"$f":"B12","v":"dining room"},{"$f":"C12","v":"дайнін ру:м"},{"$f":"D12","v":"їдальня"}]
[2,"washing machine","вошін меші:н","пральна машина",null,2,{"$f":"B13","v":"washing machine"},"вошін меші:н","пральна машина"]
[3,"washbasin","вошбейзін","ра́ковина",null,3,"washbasin","вошбейзін","ра́ковина"]
[4,"clothes","клеузс","одяг",null,4,"clothes","клеузс","одяг"]
[5,"food","фу:д","їжа",null,5,"food","фу:д","їжа"]
[6,"plate","плейт","тарілка",null,6,"plate","плейт","тарілка"]
[7,"eat","і:т","їсти",null,7,"eat","і:т","їсти"]
[8,"face","фейс","лице",null,8,"face","фейс","лице"]
[]
["Form 4",null,null,null,null,"Form 4"]
[1,{"$f":"B12","v":"dining room"},"дайнін ру:м","їдальня",null,1,{"$f":"B22","v":"dining room"},{"$f":"C22","v":"дайнін ру:м"},{"$f":"D22","v":"їдальня"}]
[2,"washing machine","вошін меші:н","пральна машина",null,2,{"$f":"B23","v":"washing machine"},"вошін меші:н","пральна машина"]
[3,"washbasin","вошбейзін","ра́ковина",null,3,"washbasin","вошбейзін","ра́ковина"]
[4,"clothes","клеузс","одяг",null,4,"clothes","клеузс","одяг"]
[5,"food","фу:д","їжа",null,5,"food","фу:д","їжа"]
[6,"plate","плейт","тарілка",null,6,"plate","плейт","тарілка"]
[7,"eat","і:т","їсти",null,7,"eat","і:т","їсти"]
[8,"face","фейс","лице",null,8,"face","фейс","лице"]
[]
["Form 4",null,null,null,null,"Form 4"]
[1,{"$f":"B22","v":"dining room"},"дайнін ру:м","їдальня",null,1,{"$f":"B32","v":"dining room"},{"$f":"C32","v":"дайнін ру:м"},{"$f":"D32","v":"їдальня"}]
[2,"washing machine","вошін меші:н","пральна машина",null,2,{"$f":"B33","v":"washing machine"},"вошін меші:н","пральна машина"]
[3,"washbasin","вошбейзін","ра́ковина",null,3,"washbasin","вошбейзін","ра́ковина"]
[4,"clothes","клеузс","одяг",null,4,"clothes","клеузс","одяг"]
[5,"food","фу:д","їжа",null,5,"food","фу:д","їжа"]
[6,"plate","плейт","тарілка",null,6,"plate","плейт","тарілка"]
[7,"eat","і:т","їсти",null,7,"eat","і:т","їсти"]
[8,"face","фейс","лице",null,8,"face","фейс","лице"]
[]
["Form 4",null,null,null,null,"Form 4"]
[1,{"$f":"B32","v":"dining room"},"дайнін ру:м","їдальня",null,1,{"$f":"B42","v":"dining room"},{"$f":"C42","v":"дайнін ру:м"},{"$f":"D42","v":"їдальня"}]
[2,"washing machine","вошін меші:н","пральна машина",null,2,{"$f":"B43","v":"washing machine"},"вошін меші:н","пральна машина"]
[3,"washbasin","вошбейзін","ра́ковина",null,3,"washbasin","вошбейзін","ра́ковина"]
[4,"clothes","клеузс","одяг",null,4,"clothes","клеузс","одяг"]
[5,"food","фу:д","їжа",null,5,"food","фу:д","їжа"]
[6,"plate","плейт","тарілка",null,6,"plate","плейт","тарілка"]
[7,"eat","і:т","їсти",null,7,"eat","і:т","їсти"]
[8,"face","фейс","лице",null,8,"face","фейс","лице"]

{"sheet":"Лист1 (14)","index":17,"n_rows":49,"n_cols":13,"rows_kept":49,"cut":false,"hidden":false,"merged":[]}
["Form 4",null,null,null,null,"Form 4"]
[{"$f":"J2","v":1},{"$f":"K2","v":"downstairs"},{"$f":"L2","v":"даунстеаз"},{"$f":"M2","v":" внизу; на ни́жньому по́версі"},null,{"$f":"A2","v":1},{"$f":"B2","v":"downstairs"},{"$f":"C2","v":"даунстеаз"},{"$f":"D2","v":" внизу; на ни́жньому по́версі"},1,"downstairs","даунстеаз"," внизу; на ни́жньому по́версі"]
[{"$f":"J3","v":2},"hall","хо:л"," зал, за́ла,",null,{"$f":"A3","v":2},"hall","хо:л"," зал, за́ла,",2,"hall","хо:л"," зал, за́ла,"]
[3,"sitting room","сітін рум","вітальня",null,3,"sitting room","сітін рум","вітальня",3,"sitting room","сітін рум","вітальня"]
[4,"upstairs","апстеаз","на ве́рхньому по́версі, нагорі́",null,4,"upstairs","апстеаз","на ве́рхньому по́версі, нагорі́",4,"upstairs","апстеаз","на ве́рхньому по́версі, нагорі́"]
[5,"first","фьост","перший",null,5,{"$f":"B6","v":"first"},"фьост","перший",5,"first","фьост","перший"]
[6,{"$f":"K7","v":"call"},"ко:л","називати; гукати",null,6,"call","ко:л","називати; гукати",6,"call","ко:л","називати; гукати"]
[7,"wardrobe","во:дроуб","шафа для одягу",null,7,"wardrobe","во:дроуб","шафа для одягу",7,"wardrobe","во:дроуб","шафа для одягу"]
[8,0,0,0,null,8,0,0,0,8]
[]
["Form 4",null,null,null,null,"Form 4"]
[1,{"$f":"B2","v":"downstairs"},"даунстеаз"," внизу; на ни́жньому по́версі",null,1,{"$f":"B12","v":"downstairs"},{"$f":"C12","v":"даунстеаз"},{"$f":"D12","v":" внизу; на ни́жньому по́версі"}]
[2,"hall","хо:л"," зал, за́ла,",null,2,{"$f":"B13","v":"hall"},"хо:л"," зал, за́ла,"]
[3,"sitting room","сітін рум","вітальня",null,3,"sitting room","сітін рум","вітальня"]
[4,"upstairs","апстеаз","на ве́рхньому по́версі, нагорі́",null,4,"upstairs","апстеаз","на ве́рхньому по́версі, нагорі́"]
[5,"first","фьост","перший",null,5,"first","фьост","перший"]
[6,"call","ко:л","називати; гукати",null,6,"call","ко:л","називати; гукати"]
[7,"wardrobe","во:дроуб","шафа для одягу",null,7,"wardrobe","во:дроуб","шафа для одягу"]
[8,0,0,0,null,8,0,0,0]
[]
["Form 4",null,null,null,null,"Form 4"]
[1,{"$f":"B12","v":"downstairs"},"даунстеаз"," внизу; на ни́жньому по́версі",null,1,{"$f":"B22","v":"downstairs"},{"$f":"C22","v":"даунстеаз"},{"$f":"D22","v":" внизу; на ни́жньому по́версі"}]
[2,"hall","хо:л"," зал, за́ла,",null,2,{"$f":"B23","v":"hall"},"хо:л"," зал, за́ла,"]
[3,"sitting room","сітін рум","вітальня",null,3,"sitting room","сітін рум","вітальня"]
[4,"upstairs","апстеаз","на ве́рхньому по́версі, нагорі́",null,4,"upstairs","апстеаз","на ве́рхньому по́версі, нагорі́"]
[5,"first","фьост","перший",null,5,"first","фьост","перший"]
[6,"call","ко:л","називати; гукати",null,6,"call","ко:л","називати; гукати"]
[7,"wardrobe","во:дроуб","шафа для одягу",null,7,"wardrobe","во:дроуб","шафа для одягу"]
[8,0,0,0,null,8,0,0,0]
[]
["Form 4",null,null,null,null,"Form 4"]
[1,{"$f":"B22","v":"downstairs"},"даунстеаз"," внизу; на ни́жньому по́версі",null,1,{"$f":"B32","v":"downstairs"},{"$f":"C32","v":"даунстеаз"},{"$f":"D32","v":" внизу; на ни́жньому по́версі"}]
[2,"hall","хо:л"," зал, за́ла,",null,2,{"$f":"B33","v":"hall"},"хо:л"," зал, за́ла,"]
[3,"sitting room","сітін рум","вітальня",null,3,"sitting room","сітін рум","вітальня"]
[4,"upstairs","апстеаз","на ве́рхньому по́версі, нагорі́",null,4,"upstairs","апстеаз","на ве́рхньому по́версі, нагорі́"]
[5,"first","фьост","перший",null,5,"first","фьост","перший"]
[6,"call","ко:л","називати; гукати",null,6,"call","ко:л","називати; гукати"]
[7,"wardrobe","во:дроуб","шафа для одягу",null,7,"wardrobe","во:дроуб","шафа для одягу"]
[8,0,0,0,null,8,0,0,0]
[]
["Form 4",null,null,null,null,"Form 4"]
[1,{"$f":"B32","v":"downstairs"},"даунстеаз"," внизу; на ни́жньому по́версі",null,1,{"$f":"B42","v":"downstairs"},{"$f":"C42","v":"даунстеаз"},{"$f":"D42","v":" внизу; на ни́жньому по́версі"}]
[2,"hall","хо:л"," зал, за́ла,",null,2,{"$f":"B43","v":"hall"},"хо:л"," зал, за́ла,"]
[3,"sitting room","сітін рум","вітальня",null,3,"sitting room","сітін рум","вітальня"]
[4,"upstairs","апстеаз","на ве́рхньому по́версі, нагорі́",null,4,"upstairs","апстеаз","на ве́рхньому по́версі, нагорі́"]
[5,"first","фьост","перший",null,5,"first","фьост","перший"]
[6,"call","ко:л","називати; гукати",null,6,"call","ко:л","називати; гукати"]
[7,"wardrobe","во:дроуб","шафа для одягу",null,7,"wardrobe","во:дроуб","шафа для одягу"]
[8,0,0,0,null,8,0,0,0]

{"sheet":"Лист1 (15)","index":18,"n_rows":49,"n_cols":13,"rows_kept":49,"cut":false,"hidden":false,"merged":[]}
["Form 4",null,null,null,null,"Form 4"]
[{"$f":"J2","v":1},{"$f":"K2","v":"museum"},{"$f":"L2","v":"мюзіем"},{"$f":"M2","v":"музе́й"},null,{"$f":"A2","v":1},{"$f":"B2","v":"museum"},{"$f":"C2","v":"мюзіем"},{"$f":"D2","v":"музе́й"},1,"museum","мюзіем","музе́й"]
[{"$f":"J3","v":2},"circus","секес","цирк",null,{"$f":"A3","v":2},"circus","секес","цирк",2,"circus","секес","цирк"]
[3,"theatre","сіете","театр",null,3,"theatre","сіете","театр",3,"theatre","сіете","театр"]
[4,"gallery","ґелері","галере́я",null,4,"gallery","ґелері","галере́я",4,"gallery","ґелері","галере́я"]
[5,"cinema","сінема","кінотеа́тр",null,5,{"$f":"B6","v":"cinema"},"сінема","кінотеа́тр",5,"cinema","сінема","кінотеа́тр"]
[6,{"$f":"K7","v":"a big cinema"},".","великий кінотеатр",null,6,"a big cinema",".","великий кінотеатр",6,"a big cinema",".","великий кінотеатр"]
[7,"a nice gallery",".","гарна галерея",null,7,"a nice gallery",".","гарна галерея",7,"a nice gallery",".","гарна галерея"]
[8,0,0,0,null,8,0,0,0,8]
[]
["Form 4",null,null,null,null,"Form 4"]
[1,{"$f":"B2","v":"museum"},"мюзіем","музе́й",null,1,{"$f":"B12","v":"museum"},{"$f":"C12","v":"мюзіем"},{"$f":"D12","v":"музе́й"}]
[2,"circus","секес","цирк",null,2,{"$f":"B13","v":"circus"},"секес","цирк"]
[3,"theatre","сіете","театр",null,3,"theatre","сіете","театр"]
[4,"gallery","ґелері","галере́я",null,4,"gallery","ґелері","галере́я"]
[5,"cinema","сінема","кінотеа́тр",null,5,"cinema","сінема","кінотеа́тр"]
[6,"a big cinema",".","великий кінотеатр",null,6,"a big cinema",".","великий кінотеатр"]
[7,"a nice gallery",".","гарна галерея",null,7,"a nice gallery",".","гарна галерея"]
[8,0,0,0,null,8,0,0,0]
[]
["Form 4",null,null,null,null,"Form 4"]
[1,{"$f":"B12","v":"museum"},"мюзіем","музе́й",null,1,{"$f":"B22","v":"museum"},{"$f":"C22","v":"мюзіем"},{"$f":"D22","v":"музе́й"}]
[2,"circus","секес","цирк",null,2,{"$f":"B23","v":"circus"},"секес","цирк"]
[3,"theatre","сіете","театр",null,3,"theatre","сіете","театр"]
[4,"gallery","ґелері","галере́я",null,4,"gallery","ґелері","галере́я"]
[5,"cinema","сінема","кінотеа́тр",null,5,"cinema","сінема","кінотеа́тр"]
[6,"a big cinema",".","великий кінотеатр",null,6,"a big cinema",".","великий кінотеатр"]
[7,"a nice gallery",".","гарна галерея",null,7,"a nice gallery",".","гарна галерея"]
[8,0,0,0,null,8,0,0,0]
[]
["Form 4",null,null,null,null,"Form 4"]
[1,{"$f":"B22","v":"museum"},"мюзіем","музе́й",null,1,{"$f":"B32","v":"museum"},{"$f":"C32","v":"мюзіем"},{"$f":"D32","v":"музе́й"}]
[2,"circus","секес","цирк",null,2,{"$f":"B33","v":"circus"},"секес","цирк"]
[3,"theatre","сіете","театр",null,3,"theatre","сіете","театр"]
[4,"gallery","ґелері","галере́я",null,4,"gallery","ґелері","галере́я"]
[5,"cinema","сінема","кінотеа́тр",null,5,"cinema","сінема","кінотеа́тр"]
[6,"a big cinema",".","великий кінотеатр",null,6,"a big cinema",".","великий кінотеатр"]
[7,"a nice gallery",".","гарна галерея",null,7,"a nice gallery",".","гарна галерея"]
[8,0,0,0,null,8,0,0,0]
[]
["Form 4",null,null,null,null,"Form 4"]
[1,{"$f":"B32","v":"museum"},"мюзіем","музе́й",null,1,{"$f":"B42","v":"museum"},{"$f":"C42","v":"мюзіем"},{"$f":"D42","v":"музе́й"}]
[2,"circus","секес","цирк",null,2,{"$f":"B43","v":"circus"},"секес","цирк"]
[3,"theatre","сіете","театр",null,3,"theatre","сіете","театр"]
[4,"gallery","ґелері","галере́я",null,4,"gallery","ґелері","галере́я"]
[5,"cinema","сінема","кінотеа́тр",null,5,"cinema","сінема","кінотеа́тр"]
[6,"a big cinema",".","великий кінотеатр",null,6,"a big cinema",".","великий кінотеатр"]
[7,"a nice gallery",".","гарна галерея",null,7,"a nice gallery",".","гарна галерея"]
[8,0,0,0,null,8,0,0,0]

{"sheet":"Лист1 (16)","index":19,"n_rows":49,"n_cols":23,"rows_kept":49,"cut":false,"hidden":false,"merged":[]}
["Form 4",null,null,null,null,"Form 4"]
[{"$f":"J2","v":1},{"$f":"K2","v":"bus stop"},{"$f":"L2","v":"бас стоп"},{"$f":"M2","v":"автобусна зупинка"},null,{"$f":"A2","v":1},{"$f":"B2","v":"bus stop"},{"$f":"C2","v":"бас стоп"},{"$f":"D2","v":"автобусна зупинка"},1,"bus stop","бас стоп","автобусна зупинка"]
[{"$f":"J3","v":2},{"$f":"K3","v":"post office"},"пеуст офіс","пошта",null,{"$f":"A3","v":2},"post office","пеуст офіс","пошта",2,"post office","пеуст офіс","пошта"]
[3,{"$f":"K4","v":"bank"},"бенк","банк",null,3,"bank","бенк","банк",3,"bank","бенк","банк"]
[4,{"$f":"K5","v":"police station"},"релі:с стейшн","поліце́йський ві́дділок",null,4,"police station","релі:с стейшн","поліце́йський ві́дділок",4,"police station","релі:с стейшн","поліце́йський ві́дділок"]
[5,"opposite","опезіт","навпро́ти",null,5,{"$f":"B6","v":"opposite"},"опезіт","навпро́ти",5,"opposite","опезіт","навпро́ти"]
[6,{"$f":"K7","v":0},0,0,null,6,0,0,0,6]
[7,0,0,0,null,7,0,0,0,7]
[8,0,0,0,null,8,0,0,0,8]
[]
["Form 4",null,null,null,null,"Form 4"]
[1,{"$f":"B2","v":"bus stop"},"бас стоп","автобусна зупинка",null,1,{"$f":"B12","v":"bus stop"},{"$f":"C12","v":"бас стоп"},{"$f":"D12","v":"автобусна зупинка"}]
[2,"post office","пеуст офіс","пошта",null,2,{"$f":"B13","v":"post office"},"пеуст офіс","пошта"]
[3,"bank","бенк","банк",null,3,"bank","бенк","банк"]
[4,"police station","релі:с стейшн","поліце́йський ві́дділок",null,4,"police station","релі:с стейшн","поліце́йський ві́дділок",null,null,null,null,null,null,null,null,null,null,"police "]
[5,"opposite","опезіт","навпро́ти",null,5,"opposite","опезіт","навпро́ти"]
[6,0,0,0,null,6,0,0,0]
[7,0,0,0,null,7,0,0,0]
[8,0,0,0,null,8,0,0,0]
[null,null,null,null,null,null,null,null,null,null,null,null,null,null,null,null,"bus","stop","post","office","bank","station","opposite"]
["Form 4",null,null,null,null,"Form 4"]
[1,{"$f":"B12","v":"bus stop"},"бас стоп","автобусна зупинка",null,1,{"$f":"B22","v":"bus stop"},{"$f":"C22","v":"бас стоп"},{"$f":"D22","v":"автобусна зупинка"}]
[2,"post office","пеуст офіс","пошта",null,2,{"$f":"B23","v":"post office"},"пеуст офіс","пошта"]
[3,"bank","бенк","банк",null,3,"bank","бенк","банк"]
[4,"police station","релі:с стейшн","поліце́йський ві́дділок",null,4,"police station","релі:с стейшн","поліце́йський ві́дділок"]
[5,"opposite","опезіт","навпро́ти",null,5,"opposite","опезіт","навпро́ти"]
[6,0,0,0,null,6,0,0,0]
[7,0,0,0,null,7,0,0,0]
[8,0,0,0,null,8,0,0,0]
[]
["Form 4",null,null,null,null,"Form 4"]
[1,{"$f":"B22","v":"bus stop"},"бас стоп","автобусна зупинка",null,1,{"$f":"B32","v":"bus stop"},{"$f":"C32","v":"бас стоп"},{"$f":"D32","v":"автобусна зупинка"}]
[2,"post office","пеуст офіс","пошта",null,2,{"$f":"B33","v":"post office"},"пеуст офіс","пошта"]
[3,"bank","бенк","банк",null,3,"bank","бенк","банк"]
[4,"police station","релі:с стейшн","поліце́йський ві́дділок",null,4,"police station","релі:с стейшн","поліце́йський ві́дділок"]
[5,"opposite","опезіт","навпро́ти",null,5,"opposite","опезіт","навпро́ти"]
[6,0,0,0,null,6,0,0,0]
[7,0,0,0,null,7,0,0,0]
[8,0,0,0,null,8,0,0,0]
[]
["Form 4",null,null,null,null,"Form 4"]
[1,{"$f":"B32","v":"bus stop"},"бас стоп","автобусна зупинка",null,1,{"$f":"B42","v":"bus stop"},{"$f":"C42","v":"бас стоп"},{"$f":"D42","v":"автобусна зупинка"}]
[2,"post office","пеуст офіс","пошта",null,2,{"$f":"B43","v":"post office"},"пеуст офіс","пошта"]
[3,"bank","бенк","банк",null,3,"bank","бенк","банк"]
[4,"police station","релі:с стейшн","поліце́йський ві́дділок",null,4,"police station","релі:с стейшн","поліце́йський ві́дділок"]
[5,"opposite","опезіт","навпро́ти",null,5,"opposite","опезіт","навпро́ти"]
[6,0,0,0,null,6,0,0,0]
[7,0,0,0,null,7,0,0,0]
[8,0,0,0,null,8,0,0,0]

{"sheet":"Лист (2)","index":20,"n_rows":44,"n_cols":13,"rows_kept":44,"cut":false,"hidden":false,"merged":[]}
[{"$f":"J1","v":1},{"$f":"K1","v":"street"},{"$f":"L1","v":"стрі:т"},{"$f":"M1","v":"вулиця"},null,{"$f":"A1","v":1},{"$f":"B1","v":"street"},{"$f":"C1","v":"стрі:т"},{"$f":"D1","v":"вулиця"},1,"street","стрі:т","вулиця"]
[{"$f":"J2","v":2},"food","фу:д","їжа",null,{"$f":"A2","v":2},"food","фу:д","їжа",2,"food","фу:д","їжа"]
[3,"shop","шоп","магазин",null,3,"shop","шоп","магазин",3,"shop","шоп","магазин"]
[4,"down","даун","вниз",null,4,"down","даун","вниз",4,"down","даун","вниз"]
[5,"where","вее","де",null,5,{"$f":"B5","v":"where"},"вее","де",5,"where","вее","де"]
[6,{"$f":"K6","v":"library"},"лайбрері","бібліотека",null,6,"library","лайбрері","бібліотека",6,"library","лайбрері","бібліотека"]
[7,0,0,0,null,7,0,0,0,7]
[8,0,0,0,null,8,0,0,0,8]
[]
[1,{"$f":"B1","v":"street"},"стрі:т","вулиця",null,1,{"$f":"B10","v":"street"},{"$f":"C10","v":"стрі:т"},{"$f":"D10","v":"вулиця"}]
[2,"food","фу:д","їжа",null,2,{"$f":"B11","v":"food"},"фу:д","їжа"]
[3,"shop","шоп","магазин",null,3,"shop","шоп","магазин"]
[4,"down","даун","вниз",null,4,"down","даун","вниз"]
[5,"where","вее","де",null,5,"where","вее","де"]
[6,"library","лайбрері","бібліотека",null,6,"library","лайбрері","бібліотека"]
[7,0,0,0,null,7,0,0,0]
[8,0,0,0,null,8,0,0,0]
[]
[1,{"$f":"B10","v":"street"},"стрі:т","вулиця",null,1,{"$f":"B19","v":"street"},{"$f":"C19","v":"стрі:т"},{"$f":"D19","v":"вулиця"}]
[2,"food","фу:д","їжа",null,2,{"$f":"B20","v":"food"},"фу:д","їжа"]
[3,"shop","шоп","магазин",null,3,"shop","шоп","магазин"]
[4,"down","даун","вниз",null,4,"down","даун","вниз"]
[5,"where","вее","де",null,5,"where","вее","де"]
[6,"library","лайбрері","бібліотека",null,6,"library","лайбрері","бібліотека"]
[7,0,0,0,null,7,0,0,0]
[8,0,0,0,null,8,0,0,0]
[]
[1,{"$f":"B19","v":"street"},"стрі:т","вулиця",null,1,{"$f":"B28","v":"street"},{"$f":"C28","v":"стрі:т"},{"$f":"D28","v":"вулиця"}]
[2,"food","фу:д","їжа",null,2,{"$f":"B29","v":"food"},"фу:д","їжа"]
[3,"shop","шоп","магазин",null,3,"shop","шоп","магазин"]
[4,"down","даун","вниз",null,4,"down","даун","вниз"]
[5,"where","вее","де",null,5,"where","вее","де"]
[6,"library","лайбрері","бібліотека",null,6,"library","лайбрері","бібліотека"]
[7,0,0,0,null,7,0,0,0]
[8,0,0,0,null,8,0,0,0]
[]
[1,{"$f":"B28","v":"street"},"стрі:т","вулиця",null,1,{"$f":"B37","v":"street"},{"$f":"C37","v":"стрі:т"},{"$f":"D37","v":"вулиця"}]
[2,"food","фу:д","їжа",null,2,{"$f":"B38","v":"food"},"фу:д","їжа"]
[3,"shop","шоп","магазин",null,3,"shop","шоп","магазин"]
[4,"down","даун","вниз",null,4,"down","даун","вниз"]
[5,"where","вее","де",null,5,"where","вее","де"]
[6,"library","лайбрері","бібліотека",null,6,"library","лайбрері","бібліотека"]
[7,0,0,0,null,7,0,0,0]
[8,0,0,0,null,8,0,0,0]

{"sheet":"Лист1","index":21,"n_rows":49,"n_cols":11,"rows_kept":49,"cut":false,"hidden":false,"merged":[]}
["Form 4",null,null,null,null,"Form 4"]
[{"$f":"J2","v":1},{"$f":"K2","v":"in the middle"},{"$f":"L2","v":0},{"$f":"M2","v":0},null,{"$f":"A2","v":1},{"$f":"B2","v":"in the middle"},{"$f":"C2","v":0},{"$f":"D2","v":0},1,"in the middle"]
[{"$f":"J3","v":2},"in the corner",0,0,null,{"$f":"A3","v":2},"in the corner",0,0,2,"in the corner"]
[3,"between",0,0,null,3,"between",0,0,3,"between"]
[4,0,0,0,null,4,0,0,0,4]
[5,0,0,0,null,5,{"$f":"B6","v":0},0,0,5]
[6,{"$f":"K7","v":0},0,0,null,6,0,0,0,6]
[7,0,0,0,null,7,0,0,0,7]
[8,0,0,0,null,8,0,0,0,8]
[]
["Form 4",null,null,null,null,"Form 4"]
[1,{"$f":"B2","v":"in the middle"},0,0,null,1,{"$f":"B12","v":"in the middle"},{"$f":"C12","v":0},{"$f":"D12","v":0}]
[2,"in the corner",0,0,null,2,{"$f":"B13","v":"in the corner"},0,0]
[3,"between",0,0,null,3,"between",0,0]
[4,0,0,0,null,4,0,0,0]
[5,0,0,0,null,5,0,0,0]
[6,0,0,0,null,6,0,0,0]
[7,0,0,0,null,7,0,0,0]
[8,0,0,0,null,8,0,0,0]
[]
["Form 4",null,null,null,null,"Form 4"]
[1,{"$f":"B12","v":"in the middle"},0,0,null,1,{"$f":"B22","v":"in the middle"},{"$f":"C22","v":0},{"$f":"D22","v":0}]
[2,"in the corner",0,0,null,2,{"$f":"B23","v":"in the corner"},0,0]
[3,"between",0,0,null,3,"between",0,0]
[4,0,0,0,null,4,0,0,0]
[5,0,0,0,null,5,0,0,0]
[6,0,0,0,null,6,0,0,0]
[7,0,0,0,null,7,0,0,0]
[8,0,0,0,null,8,0,0,0]
[]
["Form 4",null,null,null,null,"Form 4"]
[1,{"$f":"B22","v":"in the middle"},0,0,null,1,{"$f":"B32","v":"in the middle"},{"$f":"C32","v":0},{"$f":"D32","v":0}]
[2,"in the corner",0,0,null,2,{"$f":"B33","v":"in the corner"},0,0]
[3,"between",0,0,null,3,"between",0,0]
[4,0,0,0,null,4,0,0,0]
[5,0,0,0,null,5,0,0,0]
[6,0,0,0,null,6,0,0,0]
[7,0,0,0,null,7,0,0,0]
[8,0,0,0,null,8,0,0,0]
[]
["Form 4",null,null,null,null,"Form 4"]
[1,{"$f":"B32","v":"in the middle"},0,0,null,1,{"$f":"B42","v":"in the middle"},{"$f":"C42","v":0},{"$f":"D42","v":0}]
[2,"in the corner",0,0,null,2,{"$f":"B43","v":"in the corner"},0,0]
[3,"between",0,0,null,3,"between",0,0]
[4,0,0,0,null,4,0,0,0]
[5,0,0,0,null,5,0,0,0]
[6,0,0,0,null,6,0,0,0]
[7,0,0,0,null,7,0,0,0]
[8,0,0,0,null,8,0,0,0]

{"sheet":"Лист (3)","index":22,"n_rows":44,"n_cols":17,"rows_kept":44,"cut":false,"hidden":false,"merged":[]}
[{"$f":"J1","v":1},{"$f":"K1","v":"bridge"},{"$f":"L1","v":"брідж"},{"$f":"M1","v":"міст"},null,{"$f":"A1","v":1},{"$f":"B1","v":"bridge"},{"$f":"C1","v":"брідж"},{"$f":"D1","v":"міст"},1,"bridge","брідж","міст"]
[{"$f":"J2","v":2},"statue","стетйу","ста́туя",null,{"$f":"A2","v":2},"statue","стетйу","ста́туя",2,"statue","стетйу","ста́туя"]
[3,"double-decker","дабл деке"," двоповерхо́вий автобус",null,3,"double-decker","дабл деке"," двоповерхо́вий автобус",3,"double-decker","дабл деке"," двоповерхо́вий автобус"]
[4,"castle","ка:сл","за́мок",null,4,"castle","ка:сл","за́мок",4,"castle","ка:сл","за́мок",null,null,null,"weather"]
[5,"underground","андеґраунд","метро",null,5,{"$f":"B5","v":"underground"},"андеґраунд","метро",5,"underground","андеґраунд","метро",null,null,null,"warm"]
[6,{"$f":"K6","v":"fountain"},"фаунтін","фонта́н,",null,6,"fountain","фаунтін","фонта́н,",6,"fountain","фаунтін","фонта́н,","фонта́н,",null,null,"nice"]
[7,0,0,0,null,7,0,0,0,7,null,null,null,null,null,null,"hot"]
[8,0,0,0,null,8,0,0,0,8,null,null,null,null,null,null,"evening"]
[null,null,null,null,null,null,null,null,null,null,null,null,null,null,null,null,"cold"]
[1,{"$f":"B1","v":"bridge"},"брідж","міст",null,1,{"$f":"B10","v":"bridge"},{"$f":"C10","v":"брідж"},{"$f":"D10","v":"міст"}]
[2,"statue","стетйу","ста́туя",null,2,{"$f":"B11","v":"statue"},"стетйу","ста́туя"]
[3,"double-decker","дабл деке"," двоповерхо́вий автобус",null,3,"double-decker","дабл деке"," двоповерхо́вий автобус"]
[4,"castle","ка:сл","за́мок",null,4,"castle","ка:сл","за́мок"]
[5,"underground","андеґраунд","метро",null,5,"underground","андеґраунд","метро"]
[6,"fountain","фаунтін","фонта́н,",null,6,"fountain","фаунтін","фонта́н,"]
[7,0,0,0,null,7,0,0,0]
[8,0,0,0,null,8,0,0,0]
[]
[1,{"$f":"B10","v":"bridge"},"брідж","міст",null,1,{"$f":"B19","v":"bridge"},{"$f":"C19","v":"брідж"},{"$f":"D19","v":"міст"}]
[2,"statue","стетйу","ста́туя",null,2,{"$f":"B20","v":"statue"},"стетйу","ста́туя"]
[3,"double-decker","дабл деке"," двоповерхо́вий автобус",null,3,"double-decker","дабл деке"," двоповерхо́вий автобус"]
[4,"castle","ка:сл","за́мок",null,4,"castle","ка:сл","за́мок"]
[5,"underground","андеґраунд","метро",null,5,"underground","андеґраунд","метро"]
[6,"fountain","фаунтін","фонта́н,",null,6,"fountain","фаунтін","фонта́н,"]
[7,0,0,0,null,7,0,0,0]
[8,0,0,0,null,8,0,0,0]
[]
[1,{"$f":"B19","v":"bridge"},"брідж","міст",null,1,{"$f":"B28","v":"bridge"},{"$f":"C28","v":"брідж"},{"$f":"D28","v":"міст"}]
[2,"statue","стетйу","ста́туя",null,2,{"$f":"B29","v":"statue"},"стетйу","ста́туя"]
[3,"double-decker","дабл деке"," двоповерхо́вий автобус",null,3,"double-decker","дабл деке"," двоповерхо́вий автобус"]
[4,"castle","ка:сл","за́мок",null,4,"castle","ка:сл","за́мок"]
[5,"underground","андеґраунд","метро",null,5,"underground","андеґраунд","метро"]
[6,"fountain","фаунтін","фонта́н,",null,6,"fountain","фаунтін","фонта́н,"]
[7,0,0,0,null,7,0,0,0]
[8,0,0,0,null,8,0,0,0]
[]
[1,{"$f":"B28","v":"bridge"},"брідж","міст",null,1,{"$f":"B37","v":"bridge"},{"$f":"C37","v":"брідж"},{"$f":"D37","v":"міст"}]
[2,"statue","стетйу","ста́туя",null,2,{"$f":"B38","v":"statue"},"стетйу","ста́туя"]
[3,"double-decker","дабл деке"," двоповерхо́вий автобус",null,3,"double-decker","дабл деке"," двоповерхо́вий автобус"]
[4,"castle","ка:сл","за́мок",null,4,"castle","ка:сл","за́мок"]
[5,"underground","андеґраунд","метро",null,5,"underground","андеґраунд","метро"]
[6,"fountain","фаунтін","фонта́н,",null,6,"fountain","фаунтін","фонта́н,"]
[7,0,0,0,null,7,0,0,0]
[8,0,0,0,null,8,0,0,0]

{"sheet":"Лист (4)","index":23,"n_rows":49,"n_cols":13,"rows_kept":49,"cut":false,"hidden":false,"merged":[]}
["Form 4",null,null,null,null,"Form 4"]
[{"$f":"J2","v":1},{"$f":"K2","v":"holiday"},{"$f":"L2","v":"холідей"},{"$f":"M2","v":"свя́то"},null,{"$f":"A2","v":1},{"$f":"B2","v":"holiday"},{"$f":"C2","v":"холідей"},{"$f":"D2","v":"свя́то"},1,"holiday","холідей","свя́то"]
[{"$f":"J3","v":2},"Easter","і:сте","Вели́кдень; Па́сха",null,{"$f":"A3","v":2},"Easter","і:сте","Вели́кдень; Па́сха",2,"Easter","і:сте","Вели́кдень; Па́сха"]
[3,"New Year","нью: йе:","Нови́й рік",null,3,"New Year","нью: йе:","Нови́й рік",3,"New Year","нью: йе:","Нови́й рік"]
[4,"Mother's Day","мазез дей","День матері",null,4,"Mother's Day","мазез дей","День матері",4,"Mother's Day","мазез дей","День матері"]
[5,"Christmas Day","крісмес дей"," Різдво́",null,5,{"$f":"B6","v":"Christmas Day"},"крісмес дей"," Різдво́",5,"Christmas Day","крісмес дей"," Різдво́"]
[6,{"$f":"K7","v":"sant (St.)"},"сент","святий",null,6,"sant (St.)","сент","святий",6,"sant (St.)","сент","святий"]
[7,"St. Nicholas Day","сент нікелес дей","День св. Миколая",null,7,"St. Nicholas Day","сент нікелес дей","День св. Миколая",7,"St. Nicholas Day","сент нікелес дей","День св. Миколая"]
[8,0,0,0,null,8,0,0,0,8]
[]
["Form 4",null,null,null,null,"Form 4"]
[1,{"$f":"B2","v":"holiday"},"холідей","свя́то",null,1,{"$f":"B12","v":"holiday"},{"$f":"C12","v":"холідей"},{"$f":"D12","v":"свя́то"}]
[2,"Easter","і:сте","Вели́кдень; Па́сха",null,2,{"$f":"B13","v":"Easter"},"і:сте","Вели́кдень; Па́сха"]
[3,"New Year","нью: йе:","Нови́й рік",null,3,"New Year","нью: йе:","Нови́й рік"]
[4,"Mother's Day","мазез дей","День матері",null,4,"Mother's Day","мазез дей","День матері"]
[5,"Christmas Day","крісмес дей"," Різдво́",null,5,"Christmas Day","крісмес дей"," Різдво́"]
[6,"sant (St.)","сент","святий",null,6,"sant (St.)","сент","святий"]
[7,"St. Nicholas Day","сент нікелес дей","День св. Миколая",null,7,"St. Nicholas Day","сент нікелес дей","День св. Миколая"]
[8,0,0,0,null,8,0,0,0]
[]
["Form 4",null,null,null,null,"Form 4"]
[1,{"$f":"B12","v":"holiday"},"холідей","свя́то",null,1,{"$f":"B22","v":"holiday"},{"$f":"C22","v":"холідей"},{"$f":"D22","v":"свя́то"}]
[2,"Easter","і:сте","Вели́кдень; Па́сха",null,2,{"$f":"B23","v":"Easter"},"і:сте","Вели́кдень; Па́сха"]
[3,"New Year","нью: йе:","Нови́й рік",null,3,"New Year","нью: йе:","Нови́й рік"]
[4,"Mother's Day","мазез дей","День матері",null,4,"Mother's Day","мазез дей","День матері"]
[5,"Christmas Day","крісмес дей"," Різдво́",null,5,"Christmas Day","крісмес дей"," Різдво́"]
[6,"sant (St.)","сент","святий",null,6,"sant (St.)","сент","святий"]
[7,"St. Nicholas Day","сент нікелес дей","День св. Миколая",null,7,"St. Nicholas Day","сент нікелес дей","День св. Миколая"]
[8,0,0,0,null,8,0,0,0]
[]
["Form 4",null,null,null,null,"Form 4"]
[1,{"$f":"B22","v":"holiday"},"холідей","свя́то",null,1,{"$f":"B32","v":"holiday"},{"$f":"C32","v":"холідей"},{"$f":"D32","v":"свя́то"}]
[2,"Easter","і:сте","Вели́кдень; Па́сха",null,2,{"$f":"B33","v":"Easter"},"і:сте","Вели́кдень; Па́сха"]
[3,"New Year","нью: йе:","Нови́й рік",null,3,"New Year","нью: йе:","Нови́й рік"]
[4,"Mother's Day","мазез дей","День матері",null,4,"Mother's Day","мазез дей","День матері"]
[5,"Christmas Day","крісмес дей"," Різдво́",null,5,"Christmas Day","крісмес дей"," Різдво́"]
[6,"sant (St.)","сент","святий",null,6,"sant (St.)","сент","святий"]
[7,"St. Nicholas Day","сент нікелес дей","День св. Миколая",null,7,"St. Nicholas Day","сент нікелес дей","День св. Миколая"]
[8,0,0,0,null,8,0,0,0]
[]
["Form 4",null,null,null,null,"Form 4"]
[1,{"$f":"B32","v":"holiday"},"холідей","свя́то",null,1,{"$f":"B42","v":"holiday"},{"$f":"C42","v":"холідей"},{"$f":"D42","v":"свя́то"}]
[2,"Easter","і:сте","Вели́кдень; Па́сха",null,2,{"$f":"B43","v":"Easter"},"і:сте","Вели́кдень; Па́сха"]
[3,"New Year","нью: йе:","Нови́й рік",null,3,"New Year","нью: йе:","Нови́й рік"]
[4,"Mother's Day","мазез дей","День матері",null,4,"Mother's Day","мазез дей","День матері"]
[5,"Christmas Day","крісмес дей"," Різдво́",null,5,"Christmas Day","крісмес дей"," Різдво́"]
[6,"sant (St.)","сент","святий",null,6,"sant (St.)","сент","святий"]
[7,"St. Nicholas Day","сент нікелес дей","День св. Миколая",null,7,"St. Nicholas Day","сент нікелес дей","День св. Миколая"]
[8,0,0,0,null,8,0,0,0]

{"sheet":"Лист2","index":24,"n_rows":0,"n_cols":0,"rows_kept":0,"cut":false,"hidden":false,"merged":[]}

{"sheet":"Лист (5)","index":25,"n_rows":49,"n_cols":13,"rows_kept":49,"cut":false,"hidden":false,"merged":[]}
["Form 4",null,null,null,null,"Form 4"]
[{"$f":"J2","v":1},{"$f":"K2","v":"pillow"},{"$f":"L2","v":"пілеу"},{"$f":"M2","v":"поду́шка"},null,{"$f":"A2","v":1},{"$f":"B2","v":"pillow"},{"$f":"C2","v":"пілеу"},{"$f":"D2","v":"поду́шка"},1,"pillow","пілеу","поду́шка"]
[{"$f":"J3","v":2},"visit","візіт","відві́дувати",null,{"$f":"A3","v":2},"visit","візіт","відві́дувати",2,"visit","візіт","відві́дувати"]
[3,"celebrate","селебрейт","святкува́ти",null,3,"celebrate","селебрейт","святкува́ти",3,"celebrate","селебрейт","святкува́ти"]
[4,"find","файнд","нахо́дити",null,4,"find","файнд","нахо́дити",4,"find","файнд","нахо́дити"]
[5,"month","манс","мі́сяць",null,5,{"$f":"B6","v":"month"},"манс","мі́сяць",5,"month","манс","мі́сяць"]
[6,{"$f":"K7","v":"December"},"десембе","гру́день",null,6,"December","десембе","гру́день",6,"December","десембе","гру́день"]
[7,"when","ввен","коли́",null,7,"when","ввен","коли́",7,"when","ввен","коли́"]
[8,"why","ввай","чому́",null,8,"why","ввай","чому́",8,"why","ввай","чому́"]
[]
["Form 4",null,null,null,null,"Form 4"]
[1,{"$f":"B2","v":"pillow"},"пілеу","поду́шка",null,1,{"$f":"B12","v":"pillow"},{"$f":"C12","v":"пілеу"},{"$f":"D12","v":"поду́шка"}]
[2,"visit","візіт","відві́дувати",null,2,{"$f":"B13","v":"visit"},"візіт","відві́дувати"]
[3,"celebrate","селебрейт","святкува́ти",null,3,"celebrate","селебрейт","святкува́ти"]
[4,"find","файнд","нахо́дити",null,4,"find","файнд","нахо́дити"]
[5,"month","манс","мі́сяць",null,5,"month","манс","мі́сяць"]
[6,"December","десембе","гру́день",null,6,"December","десембе","гру́день"]
[7,"when","ввен","коли́",null,7,"when","ввен","коли́"]
[8,"why","ввай","чому́",null,8,"why","ввай","чому́"]
[]
["Form 4",null,null,null,null,"Form 4"]
[1,{"$f":"B12","v":"pillow"},"пілеу","поду́шка",null,1,{"$f":"B22","v":"pillow"},{"$f":"C22","v":"пілеу"},{"$f":"D22","v":"поду́шка"}]
[2,"visit","візіт","відві́дувати",null,2,{"$f":"B23","v":"visit"},"візіт","відві́дувати"]
[3,"celebrate","селебрейт","святкува́ти",null,3,"celebrate","селебрейт","святкува́ти"]
[4,"find","файнд","нахо́дити",null,4,"find","файнд","нахо́дити"]
[5,"month","манс","мі́сяць",null,5,"month","манс","мі́сяць"]
[6,"December","десембе","гру́день",null,6,"December","десембе","гру́день"]
[7,"when","ввен","коли́",null,7,"when","ввен","коли́"]
[8,"why","ввай","чому́",null,8,"why","ввай","чому́"]
[]
["Form 4",null,null,null,null,"Form 4"]
[1,{"$f":"B22","v":"pillow"},"пілеу","поду́шка",null,1,{"$f":"B32","v":"pillow"},{"$f":"C32","v":"пілеу"},{"$f":"D32","v":"поду́шка"}]
[2,"visit","візіт","відві́дувати",null,2,{"$f":"B33","v":"visit"},"візіт","відві́дувати"]
[3,"celebrate","селебрейт","святкува́ти",null,3,"celebrate","селебрейт","святкува́ти"]
[4,"find","файнд","нахо́дити",null,4,"find","файнд","нахо́дити"]
[5,"month","манс","мі́сяць",null,5,"month","манс","мі́сяць"]
[6,"December","десембе","гру́день",null,6,"December","десембе","гру́день"]
[7,"when","ввен","коли́",null,7,"when","ввен","коли́"]
[8,"why","ввай","чому́",null,8,"why","ввай","чому́"]
[]
["Form 4",null,null,null,null,"Form 4"]
[1,{"$f":"B32","v":"pillow"},"пілеу","поду́шка",null,1,{"$f":"B42","v":"pillow"},{"$f":"C42","v":"пілеу"},{"$f":"D42","v":"поду́шка"}]
[2,"visit","візіт","відві́дувати",null,2,{"$f":"B43","v":"visit"},"візіт","відві́дувати"]
[3,"celebrate","селебрейт","святкува́ти",null,3,"celebrate","селебрейт","святкува́ти"]
[4,"find","файнд","нахо́дити",null,4,"find","файнд","нахо́дити"]
[5,"month","манс","мі́сяць",null,5,"month","манс","мі́сяць"]
[6,"December","десембе","гру́день",null,6,"December","десембе","гру́день"]
[7,"when","ввен","коли́",null,7,"when","ввен","коли́"]
[8,"why","ввай","чому́",null,8,"why","ввай","чому́"]

{"sheet":"самос1 (2)","index":26,"n_rows":52,"n_cols":22,"rows_kept":52,"cut":false,"hidden":false,"merged":[]}
[" Form 4   Name_________________________    Date_______",null,null,null,null," Form 4   Name_________________________    Date_______",null,null,null," Form 4   Name_________________________    Date_______",null,null,null," Form 4   Name_________________________    Date_______"]
[]
[null,{"$f":"S3","v":0},1,{"$f":"V3","v":0},null,null,{"$f":"S3","v":0},1,{"$f":"V3","v":0},{"$f":"S16","v":"celebrate"},null,null,null,{"$f":"J3","v":"celebrate"},null,null,null,null,null,null,1]
[null,0,2,0,null,null,{"$f":"S4","v":0},2,{"$f":"V4","v":0},{"$f":"S17","v":"December"},null,null,null,{"$f":"J4","v":"December"},null,null,null,null,null,null,2]
[null,0,3,0,null,null,0,3,0,"find",null,null,null,"find",null,null,null,null,null,null,3]
[null,0,4,0,null,null,0,4,0,"month",null,null,null,"month",null,null,null,null,null,null,4]
[null,0,5,0,null,null,0,5,0,{"$f":"S20","v":"why"},null,null,null,"why",null,null,null,null,null,null,5]
[null,0,6,0,null,null,0,6,0,{"$f":"S21","v":"visit"},null,null,null,"visit",null,null,null,null,null,null,6]
[null,0,7,0,null,null,0,7,0,"when",null,null,null,"when",null,null,null,null,null,null,7]
[null,0,8,0,null,null,0,8,0,{"$f":"S23","v":"pillow"},null,null,null,"pillow",null,null,null,null,null,null,8]
[null,0,9,0,null,null,0,9,0,{"$f":"S24","v":0},null,null,null,0,null,null,null,null,null,null,9]
[null,0,10,0,null,null,0,10,0,0,null,null,null,0,null,null,null,null,null,null,10]
[null,0,11,0,null,null,0,11,0,0,null,null,null,0,null,null,null,null,null,null,11]
[]
[" Form 4   Name_________________________    Date_______",null,null,null,null," Form 4   Name_________________________    Date_______",null,null,null," Form 4   Name_________________________    Date_______",null,null,null," Form 4   Name_________________________    Date_______"]
[null,null,null,null,null,null,null,null,null,null,null,null,null,null,null,null,null,null,"celebrate",null,null,"celebrate"]
[null,{"$f":"S3","v":0},1,{"$f":"V3","v":0},null,null,{"$f":"B17","v":0},1,{"$f":"D17","v":0},{"$f":"J3","v":"celebrate"},null,null,null,{"$f":"J17","v":"celebrate"},null,null,null,null,"December",null,null,"December"]
[null,{"$f":"S4","v":0},2,{"$f":"V4","v":0},null,null,{"$f":"B18","v":0},2,{"$f":"D18","v":0},{"$f":"J4","v":"December"},null,null,null,{"$f":"J18","v":"December"},null,null,null,null,"find",null,null,"find"]
[null,0,3,0,null,null,0,3,0,"find",null,null,null,"find",null,null,null,null,"month",null,null,"month"]
[null,0,4,0,null,null,0,4,0,"month",null,null,null,"month",null,null,null,null,"why",null,null,"pillow"]
[null,0,5,0,null,null,0,5,0,"why",null,null,null,"why",null,null,null,null,"visit",null,null,"visit"]
[null,0,6,0,null,null,0,6,0,"visit",null,null,null,"visit",null,null,null,null,"when",null,null,"when"]
[null,0,7,0,null,null,0,7,0,"when",null,null,null,"when",null,null,null,null,"pillow"]
[null,0,8,0,null,null,0,8,0,"pillow",null,null,null,"pillow",null,null,null,null,null,null,null,"why"]
[null,0,9,0,null,null,0,9,0,0,null,null,null,0]
[null,0,10,0,null,null,0,10,0,0,null,null,null,0]
[null,0,11,0,null,null,0,11,0,0,null,null,null,0]
[]
[" Form 4   Name_________________________    Date_______",null,null,null,null," Form 4   Name_________________________    Date_______",null,null,null," Form 4   Name_________________________    Date_______",null,null,null," Form 4   Name_________________________    Date_______"]
[]
[null,{"$f":"B17","v":0},1,{"$f":"D17","v":0},null,null,{"$f":"B31","v":0},1,{"$f":"D31","v":0},{"$f":"J17","v":"celebrate"},null,null,null,{"$f":"J31","v":"celebrate"}]
[null,{"$f":"B18","v":0},2,{"$f":"D18","v":0},null,null,{"$f":"B32","v":0},2,{"$f":"D32","v":0},{"$f":"J18","v":"December"},null,null,null,{"$f":"J32","v":"December"}]
[null,0,3,0,null,null,0,3,0,"find",null,null,null,"find"]
[null,0,4,0,null,null,0,4,0,"month",null,null,null,"month"]
[null,0,5,0,null,null,0,5,0,"why",null,null,null,"why"]
[null,0,6,0,null,null,0,6,0,"visit",null,null,null,"visit"]
[null,0,7,0,null,null,0,7,0,"when",null,null,null,"when"]
[null,0,8,0,null,null,0,8,0,"pillow",null,null,null,"pillow"]
[null,0,9,0,null,null,0,9,0,0,null,null,null,0]
[null,0,10,0,null,null,0,10,0,0,null,null,null,0]
[null,0,11,0,null,null,0,11,0,0,null,null,null,0]
[]
[" Form 4   Name_________________________    Date_______",null,null,null,null,null,null,null,null," Form 4   Name_________________________    Date_______"]
[]
[null,{"$f":"B31","v":0},1,{"$f":"D31","v":0},null,null,{"$f":"B39","v":0},9,{"$f":"D39","v":0},{"$f":"J31","v":"celebrate"},null,null,null,{"$f":"J39","v":0}]
[null,{"$f":"B32","v":0},2,{"$f":"D32","v":0},null,null,{"$f":"B40","v":0},10,{"$f":"D40","v":0},{"$f":"J32","v":"December"},null,null,null,{"$f":"J40","v":0}]
[null,0,3,0,null,null,{"$f":"B41","v":0},11,{"$f":"D41","v":0},"find",null,null,null,{"$f":"J41","v":0}]
[null,0,4,0,null,null,null,null,null,"month"]
[null,0,5,0,null,null,null,null,null,"why"]
[null,0,6,0,null,null,null,null,null,"visit"]
[null,{"$f":"B37","v":0},7,{"$f":"D37","v":0},null,null,null,null,null,{"$f":"J37","v":"when"}]
[null,{"$f":"B38","v":0},8,{"$f":"D38","v":0},null,null,null,null,null,{"$f":"J38","v":"pillow"}]

{"sheet":"Лист (6)","index":27,"n_rows":49,"n_cols":13,"rows_kept":49,"cut":false,"hidden":false,"merged":[]}
["Form 4",null,null,null,null,"Form 4"]
[{"$f":"J2","v":1},{"$f":"K2","v":"apple pie  "},{"$f":"L2","v":"епл пай"},{"$f":"M2","v":"яблучний пиріг"},null,{"$f":"A2","v":1},{"$f":"B2","v":"apple pie  "},{"$f":"C2","v":"епл пай"},{"$f":"D2","v":"яблучний пиріг"},1,"apple pie  ","епл пай","яблучний пиріг"]
[{"$f":"J3","v":2},"flour","флауе","бо́рошно",null,{"$f":"A3","v":2},"flour","флауе","бо́рошно",2,"flour","флауе","бо́рошно"]
[3,"shop","шоп","крамни́ця, магази́н",null,3,"shop","шоп","крамни́ця, магази́н",3,"shop","шоп","крамни́ця, магази́н"]
[4,"fridge ","фрідж","холоди́льник",null,4,"fridge ","фрідж","холоди́льник",4,"fridge ","фрідж","холоди́льник"]
[5,"list  ","ліст","спи́сок",null,5,{"$f":"B6","v":"list  "},"ліст","спи́сок",5,"list  ","ліст","спи́сок"]
[6,{"$f":"K7","v":0},0,0,null,6,0,0,0,6]
[7,0,0,0,null,7,0,0,0,7]
[8,0,0,0,null,8,0,0,0,8]
[]
["Form 4",null,null,null,null,"Form 4"]
[1,{"$f":"B2","v":"apple pie  "},"епл пай","яблучний пиріг",null,1,{"$f":"B12","v":"apple pie  "},{"$f":"C12","v":"епл пай"},{"$f":"D12","v":"яблучний пиріг"}]
[2,"flour","флауе","бо́рошно",null,2,{"$f":"B13","v":"flour"},"флауе","бо́рошно"]
[3,"shop","шоп","крамни́ця, магази́н",null,3,"shop","шоп","крамни́ця, магази́н"]
[4,"fridge ","фрідж","холоди́льник",null,4,"fridge ","фрідж","холоди́льник"]
[5,"list  ","ліст","спи́сок",null,5,"list  ","ліст","спи́сок"]
[6,0,0,0,null,6,0,0,0]
[7,0,0,0,null,7,0,0,0]
[8,0,0,0,null,8,0,0,0]
[]
["Form 4",null,null,null,null,"Form 4"]
[1,{"$f":"B12","v":"apple pie  "},"епл пай","яблучний пиріг",null,1,{"$f":"B22","v":"apple pie  "},{"$f":"C22","v":"епл пай"},{"$f":"D22","v":"яблучний пиріг"}]
[2,"flour","флауе","бо́рошно",null,2,{"$f":"B23","v":"flour"},"флауе","бо́рошно"]
[3,"shop","шоп","крамни́ця, магази́н",null,3,"shop","шоп","крамни́ця, магази́н"]
[4,"fridge ","фрідж","холоди́льник",null,4,"fridge ","фрідж","холоди́льник"]
[5,"list  ","ліст","спи́сок",null,5,"list  ","ліст","спи́сок"]
[6,0,0,0,null,6,0,0,0]
[7,0,0,0,null,7,0,0,0]
[8,0,0,0,null,8,0,0,0]
[]
["Form 4",null,null,null,null,"Form 4"]
[1,{"$f":"B22","v":"apple pie  "},"епл пай","яблучний пиріг",null,1,{"$f":"B32","v":"apple pie  "},{"$f":"C32","v":"епл пай"},{"$f":"D32","v":"яблучний пиріг"}]
[2,"flour","флауе","бо́рошно",null,2,{"$f":"B33","v":"flour"},"флауе","бо́рошно"]
[3,"shop","шоп","крамни́ця, магази́н",null,3,"shop","шоп","крамни́ця, магази́н"]
[4,"fridge ","фрідж","холоди́льник",null,4,"fridge ","фрідж","холоди́льник"]
[5,"list  ","ліст","спи́сок",null,5,"list  ","ліст","спи́сок"]
[6,0,0,0,null,6,0,0,0]
[7,0,0,0,null,7,0,0,0]
[8,0,0,0,null,8,0,0,0]
[]
["Form 4",null,null,null,null,"Form 4"]
[1,{"$f":"B32","v":"apple pie  "},"епл пай","яблучний пиріг",null,1,{"$f":"B42","v":"apple pie  "},{"$f":"C42","v":"епл пай"},{"$f":"D42","v":"яблучний пиріг"}]
[2,"flour","флауе","бо́рошно",null,2,{"$f":"B43","v":"flour"},"флауе","бо́рошно"]
[3,"shop","шоп","крамни́ця, магази́н",null,3,"shop","шоп","крамни́ця, магази́н"]
[4,"fridge ","фрідж","холоди́льник",null,4,"fridge ","фрідж","холоди́льник"]
[5,"list  ","ліст","спи́сок",null,5,"list  ","ліст","спи́сок"]
[6,0,0,0,null,6,0,0,0]
[7,0,0,0,null,7,0,0,0]
[8,0,0,0,null,8,0,0,0]

{"sheet":"Лист (7)","index":28,"n_rows":49,"n_cols":13,"rows_kept":49,"cut":false,"hidden":false,"merged":[]}
["Form 4",null,null,null,null,"Form 4"]
[{"$f":"J2","v":1},{"$f":"K2","v":"birthday"},{"$f":"L2","v":"епл пай"},{"$f":"M2","v":"день народження"},null,{"$f":"A2","v":1},{"$f":"B2","v":"birthday"},{"$f":"C2","v":"епл пай"},{"$f":"D2","v":"день народження"},1,"birthday","епл пай","день народження"]
[{"$f":"J3","v":2},"party","флауе","вечірка",null,{"$f":"A3","v":2},"party","флауе","вечірка",2,"party","флауе","вечірка"]
[3,"parties","шоп","вечірки",null,3,"parties","шоп","вечірки",3,"parties","шоп","вечірки"]
[4,"celebrate","фрідж","святкувати",null,4,"celebrate","фрідж","святкувати",4,"celebrate","фрідж","святкувати"]
[5,"present","ліст","подарунок",null,5,{"$f":"B6","v":"present"},"ліст","подарунок",5,"present","ліст","подарунок"]
[6,{"$f":"K7","v":"cook"},0,"готувати",null,6,"cook",0,"готувати",6,"cook",null,"готувати"]
[7,"special",0,"спеціальний, особливий",null,7,"special",0,"спеціальний, особливий",7,"special",null,"спеціальний, особливий"]
[8,"usually ",0,"зазвичай",null,8,"usually ",0,"зазвичай",8,"usually ",null,"зазвичай"]
[null,null,null,"завтра",null,null,null,null,"завтра",null,"tomorrow",null,"завтра"]
["Form 4",null,null,null,null,"Form 4"]
[1,{"$f":"B2","v":"birthday"},"епл пай","день народження",null,1,{"$f":"B12","v":"birthday"},{"$f":"C12","v":"епл пай"},{"$f":"D12","v":"день народження"}]
[2,"party","флауе","вечірка",null,2,{"$f":"B13","v":"party"},"флауе","вечірка"]
[3,"parties","шоп","вечірки",null,3,"parties","шоп","вечірки"]
[4,"celebrate","фрідж","святкувати",null,4,"celebrate","фрідж","святкувати"]
[5,"present","ліст","подарунок",null,5,"present","ліст","подарунок"]
[6,"cook",0,"готувати",null,6,"cook",0,"готувати"]
[7,"special",0,"спеціальний, особливий",null,7,"special",0,"спеціальний, особливий"]
[8,"usually ",0,"зазвичай",null,8,"usually ",0,"зазвичай"]
[]
["Form 4",null,null,null,null,"Form 4"]
[1,{"$f":"B12","v":"birthday"},"епл пай","день народження",null,1,{"$f":"B22","v":"birthday"},{"$f":"C22","v":"епл пай"},{"$f":"D22","v":"день народження"}]
[2,"party","флауе","вечірка",null,2,{"$f":"B23","v":"party"},"флауе","вечірка"]
[3,"parties","шоп","вечірки",null,3,"parties","шоп","вечірки"]
[4,"celebrate","фрідж","святкувати",null,4,"celebrate","фрідж","святкувати"]
[5,"present","ліст","подарунок",null,5,"present","ліст","подарунок"]
[6,"cook",0,"готувати",null,6,"cook",0,"готувати"]
[7,"special",0,"спеціальний, особливий",null,7,"special",0,"спеціальний, особливий"]
[8,"usually ",0,"зазвичай",null,8,"usually ",0,"зазвичай"]
[]
["Form 4",null,null,null,null,"Form 4"]
[1,{"$f":"B22","v":"birthday"},"епл пай","день народження",null,1,{"$f":"B32","v":"birthday"},{"$f":"C32","v":"епл пай"},{"$f":"D32","v":"день народження"}]
[2,"party","флауе","вечірка",null,2,{"$f":"B33","v":"party"},"флауе","вечірка"]
[3,"parties","шоп","вечірки",null,3,"parties","шоп","вечірки"]
[4,"celebrate","фрідж","святкувати",null,4,"celebrate","фрідж","святкувати"]
[5,"present","ліст","подарунок",null,5,"present","ліст","подарунок"]
[6,"cook",0,"готувати",null,6,"cook",0,"готувати"]
[7,"special",0,"спеціальний, особливий",null,7,"special",0,"спеціальний, особливий"]
[8,"usually ",0,"зазвичай",null,8,"usually ",0,"зазвичай"]
[]
["Form 4",null,null,null,null,"Form 4"]
[1,{"$f":"B32","v":"birthday"},"епл пай","день народження",null,1,{"$f":"B42","v":"birthday"},{"$f":"C42","v":"епл пай"},{"$f":"D42","v":"день народження"}]
[2,"party","флауе","вечірка",null,2,{"$f":"B43","v":"party"},"флауе","вечірка"]
[3,"parties","шоп","вечірки",null,3,"parties","шоп","вечірки"]
[4,"celebrate","фрідж","святкувати",null,4,"celebrate","фрідж","святкувати"]
[5,"present","ліст","подарунок",null,5,"present","ліст","подарунок"]
[6,"cook",0,"готувати",null,6,"cook",0,"готувати"]
[7,"special",0,"спеціальний, особливий",null,7,"special",0,"спеціальний, особливий"]
[8,"usually ",0,"зазвичай",null,8,"usually ",0,"зазвичай"]

{"sheet":"Лист (8)","index":29,"n_rows":49,"n_cols":13,"rows_kept":49,"cut":false,"hidden":false,"merged":[]}
["Form 4",null,null,null,null,"Form 4"]
[{"$f":"J2","v":1},{"$f":"K2","v":"birthday"},{"$f":"L2","v":"бьо:здей"},{"$f":"M2","v":"день народження"},null,{"$f":"A2","v":1},{"$f":"B2","v":"birthday"},{"$f":"C2","v":"бьо:здей"},{"$f":"D2","v":"день народження"},1,"birthday","бьо:здей","день народження"]
[{"$f":"J3","v":2},"party","па:ті","вечірка",null,{"$f":"A3","v":2},"party","па:ті","вечірка",2,"party","па:ті","вечірка"]
[3,"parties","па:тіс","вечірки",null,3,"parties","па:тіс","вечірки",3,"parties","па:тіс","вечірки"]
[4,"celebrate","селебрейт","святкувати",null,4,"celebrate","селебрейт","святкувати",4,"celebrate","селебрейт","святкувати"]
[5,"present","презент","подарунок",null,5,{"$f":"B6","v":"present"},"презент","подарунок",5,"present","презент","подарунок"]
[6,{"$f":"K7","v":"cook"},"кук","готувати",null,6,"cook","кук","готувати",6,"cook","кук","готувати"]
[7,"special","спешел","спеціальний, особливий",null,7,"special","спешел","спеціальний, особливий",7,"special","спешел","спеціальний, особливий"]
[8,"usually ","южвелі","зазвичай",null,8,"usually ","южвелі","зазвичай",8,"usually ","южвелі","зазвичай"]
[9,null,"тумореу",null,null,9,{"$f":"K10","v":"tomorrow"},"тумореу",{"$f":"M10","v":"завтра"},9,"tomorrow","тумореу","завтра"]
["Form 4",null,null,null,null,"Form 4"]
[1,{"$f":"B2","v":"birthday"},"бьо:здей","день народження",null,1,{"$f":"B12","v":"birthday"},{"$f":"C12","v":"бьо:здей"},{"$f":"D12","v":"день народження"}]
[2,"party","па:ті","вечірка",null,2,{"$f":"B13","v":"party"},"па:ті","вечірка"]
[3,"parties","па:тіс","вечірки",null,3,"parties","па:тіс","вечірки"]
[4,"celebrate","селебрейт","святкувати",null,4,"celebrate","селебрейт","святкувати"]
[5,"present","презент","подарунок",null,5,"present","презент","подарунок"]
[6,"cook","кук","готувати",null,6,"cook","кук","готувати"]
[7,"special","спешел","спеціальний, особливий",null,7,"special","спешел","спеціальний, особливий"]
[8,"usually ","южвелі","зазвичай",null,8,"usually ","южвелі","зазвичай"]
[]
["Form 4",null,null,null,null,"Form 4"]
[1,{"$f":"B12","v":"birthday"},"бьо:здей","день народження",null,1,{"$f":"B22","v":"birthday"},{"$f":"C22","v":"бьо:здей"},{"$f":"D22","v":"день народження"}]
[2,"party","па:ті","вечірка",null,2,{"$f":"B23","v":"party"},"па:ті","вечірка"]
[3,"parties","па:тіс","вечірки",null,3,"parties","па:тіс","вечірки"]
[4,"celebrate","селебрейт","святкувати",null,4,"celebrate","селебрейт","святкувати"]
[5,"present","презент","подарунок",null,5,"present","презент","подарунок"]
[6,"cook","кук","готувати",null,6,"cook","кук","готувати"]
[7,"special","спешел","спеціальний, особливий",null,7,"special","спешел","спеціальний, особливий"]
[8,"usually ","южвелі","зазвичай",null,8,"usually ","южвелі","зазвичай"]
[]
["Form 4",null,null,null,null,"Form 4"]
[1,{"$f":"B22","v":"birthday"},"бьо:здей","день народження",null,1,{"$f":"B32","v":"birthday"},{"$f":"C32","v":"бьо:здей"},{"$f":"D32","v":"день народження"}]
[2,"party","па:ті","вечірка",null,2,{"$f":"B33","v":"party"},"па:ті","вечірка"]
[3,"parties","па:тіс","вечірки",null,3,"parties","па:тіс","вечірки"]
[4,"celebrate","селебрейт","святкувати",null,4,"celebrate","селебрейт","святкувати"]
[5,"present","презент","подарунок",null,5,"present","презент","подарунок"]
[6,"cook","кук","готувати",null,6,"cook","кук","готувати"]
[7,"special","спешел","спеціальний, особливий",null,7,"special","спешел","спеціальний, особливий"]
[8,"usually ","южвелі","зазвичай",null,8,"usually ","южвелі","зазвичай"]
[]
["Form 4",null,null,null,null,"Form 4"]
[1,{"$f":"B32","v":"birthday"},"бьо:здей","день народження",null,1,{"$f":"B42","v":"birthday"},{"$f":"C42","v":"бьо:здей"},{"$f":"D42","v":"день народження"}]
[2,"party","па:ті","вечірка",null,2,{"$f":"B43","v":"party"},"па:ті","вечірка"]
[3,"parties","па:тіс","вечірки",null,3,"parties","па:тіс","вечірки"]
[4,"celebrate","селебрейт","святкувати",null,4,"celebrate","селебрейт","святкувати"]
[5,"present","презент","подарунок",null,5,"present","презент","подарунок"]
[6,"cook","кук","готувати",null,6,"cook","кук","готувати"]
[7,"special","спешел","спеціальний, особливий",null,7,"special","спешел","спеціальний, особливий"]
[8,"usually ","южвелі","зазвичай",null,8,"usually ","южвелі","зазвичай"]

{"sheet":"самос1 (3)","index":30,"n_rows":52,"n_cols":22,"rows_kept":52,"cut":false,"hidden":false,"merged":[]}
[" Form 4   Name_________________________    Date_______",null,null,null,null," Form 4   Name_________________________    Date_______",null,null,null," Form 4   Name_________________________    Date_______",null,null,null," Form 4   Name_________________________    Date_______"]
[]
[null,{"$f":"S3","v":0},1,{"$f":"V3","v":0},null,null,{"$f":"S3","v":0},1,{"$f":"V3","v":0},{"$f":"S16","v":"usually "},null,null,null,{"$f":"J3","v":"usually "},null,null,null,null,null,null,1]
[null,0,2,0,null,null,{"$f":"S4","v":0},2,{"$f":"V4","v":0},{"$f":"S17","v":"tomorrow"},null,null,null,{"$f":"J4","v":"tomorrow"},null,null,null,null,null,null,2]
[null,0,3,0,null,null,0,3,0,"special",null,null,null,"special",null,null,null,null,null,null,3]
[null,0,4,0,null,null,0,4,0,"present",null,null,null,"present",null,null,null,null,null,null,4]
[null,0,5,0,null,null,0,5,0,"party",null,null,null,"party",null,null,null,null,null,null,5]
[null,0,6,0,null,null,0,6,0,"parties",null,null,null,"parties",null,null,null,null,null,null,6]
[null,0,7,0,null,null,0,7,0,"cook",null,null,null,"cook",null,null,null,null,null,null,7]
[null,0,8,0,null,null,0,8,0,"celebrate",null,null,null,"celebrate",null,null,null,null,null,null,8]
[null,0,9,0,null,null,0,9,0,"birthday",null,null,null,"birthday",null,null,null,null,null,null,9]
[null,0,10,0,null,null,0,10,0,0,null,null,null,0,null,null,null,null,null,null,10]
[null,0,11,0,null,null,0,11,0,0,null,null,null,0,null,null,null,null,null,null,11]
[]
[" Form 4   Name_________________________    Date_______",null,null,null,null," Form 4   Name_________________________    Date_______",null,null,null," Form 4   Name_________________________    Date_______",null,null,null," Form 4   Name_________________________    Date_______"]
[null,null,null,null,null,null,null,null,null,null,null,null,null,null,null,null,null,null,"usually ",null,null,"usually "]
[null,{"$f":"S3","v":0},1,{"$f":"V3","v":0},null,null,{"$f":"B17","v":0},1,{"$f":"D17","v":0},{"$f":"J3","v":"usually "},null,null,null,{"$f":"J17","v":"usually "},null,null,null,null,"tomorrow",null,null,"tomorrow"]
[null,{"$f":"S4","v":0},2,{"$f":"V4","v":0},null,null,{"$f":"B18","v":0},2,{"$f":"D18","v":0},{"$f":"J4","v":"tomorrow"},null,null,null,{"$f":"J18","v":"tomorrow"},null,null,null,null,"special",null,null,"special"]
[null,0,3,0,null,null,0,3,0,"special",null,null,null,"special",null,null,null,null,"present",null,null,"present"]
[null,0,4,0,null,null,0,4,0,"present",null,null,null,"present",null,null,null,null,"party",null,null,"party"]
[null,0,5,0,null,null,0,5,0,"party",null,null,null,"party",null,null,null,null,"parties",null,null,"parties"]
[null,0,6,0,null,null,0,6,0,"parties",null,null,null,"parties",null,null,null,null,"cook",null,null,"cook"]
[null,0,7,0,null,null,0,7,0,"cook",null,null,null,"cook",null,null,null,null,"celebrate",null,null,"celebrate"]
[null,0,8,0,null,null,0,8,0,"celebrate",null,null,null,"celebrate",null,null,null,null,"birthday",null,null,"birthday"]
[null,0,9,0,null,null,0,9,0,"birthday",null,null,null,"birthday"]
[null,0,10,0,null,null,0,10,0,0,null,null,null,0]
[null,0,11,0,null,null,0,11,0,0,null,null,null,0]
[]
[" Form 4   Name_________________________    Date_______",null,null,null,null," Form 4   Name_________________________    Date_______",null,null,null," Form 4   Name_________________________    Date_______",null,null,null," Form 4   Name_________________________    Date_______"]
[]
[null,{"$f":"B17","v":0},1,{"$f":"D17","v":0},null,null,{"$f":"B31","v":0},1,{"$f":"D31","v":0},{"$f":"J17","v":"usually "},null,null,null,{"$f":"J31","v":"usually "}]
[null,{"$f":"B18","v":0},2,{"$f":"D18","v":0},null,null,{"$f":"B32","v":0},2,{"$f":"D32","v":0},{"$f":"J18","v":"tomorrow"},null,null,null,{"$f":"J32","v":"tomorrow"}]
[null,0,3,0,null,null,0,3,0,"special",null,null,null,"special"]
[null,0,4,0,null,null,0,4,0,"present",null,null,null,"present"]
[null,0,5,0,null,null,0,5,0,"party",null,null,null,"party"]
[null,0,6,0,null,null,0,6,0,"parties",null,null,null,"parties"]
[null,0,7,0,null,null,0,7,0,"cook",null,null,null,"cook"]
[null,0,8,0,null,null,0,8,0,"celebrate",null,null,null,"celebrate"]
[null,0,9,0,null,null,0,9,0,"birthday",null,null,null,"birthday"]
[null,0,10,0,null,null,0,10,0,0,null,null,null,0]
[null,0,11,0,null,null,0,11,0,0,null,null,null,0]
[]
[" Form 4   Name_________________________    Date_______",null,null,null,null,null,null,null,null," Form 4   Name_________________________    Date_______"]
[]
[null,{"$f":"B31","v":0},1,{"$f":"D31","v":0},null,null,{"$f":"B39","v":0},9,{"$f":"D39","v":0},{"$f":"J31","v":"usually "},null,null,null,{"$f":"J39","v":"birthday"}]
[null,{"$f":"B32","v":0},2,{"$f":"D32","v":0},null,null,{"$f":"B40","v":0},10,{"$f":"D40","v":0},{"$f":"J32","v":"tomorrow"},null,null,null,{"$f":"J40","v":0}]
[null,0,3,0,null,null,{"$f":"B41","v":0},11,{"$f":"D41","v":0},"special",null,null,null,{"$f":"J41","v":0}]
[null,0,4,0,null,null,null,null,null,"present"]
[null,0,5,0,null,null,null,null,null,"party"]
[null,0,6,0,null,null,null,null,null,"parties"]
[null,{"$f":"B37","v":0},7,{"$f":"D37","v":0},null,null,null,null,null,{"$f":"J37","v":"cook"}]
[null,{"$f":"B38","v":0},8,{"$f":"D38","v":0},null,null,null,null,null,{"$f":"J38","v":"celebrate"}]

{"sheet":"Лист (9)","index":31,"n_rows":49,"n_cols":13,"rows_kept":49,"cut":false,"hidden":false,"merged":[]}
["Form 4",null,null,null,null,"Form 4"]
[{"$f":"J2","v":1},{"$f":"K2","v":"bar"},{"$f":"L2","v":"ба:"},{"$f":"M2","v":"плитка"},null,{"$f":"A2","v":1},{"$f":"B2","v":"bar"},{"$f":"C2","v":"ба:"},{"$f":"D2","v":"плитка"},1,"bar","ба:","плитка"]
[{"$f":"J3","v":2},"pack","пек","пачка",null,{"$f":"A3","v":2},"pack","пек","пачка",2,"pack","пек","пачка"]
[3,"bottle","ботл","пляшка",null,3,"bottle","ботл","пляшка",3,"bottle","ботл","пляшка"]
[4,"jar","джа:","банка",null,4,"jar","джа:","банка",4,"jar","джа:","банка"]
[5,"bag","беґ","пакет",null,5,{"$f":"B6","v":"bag"},"беґ","пакет",5,"bag","беґ","пакет"]
[6,{"$f":"K7","v":"carton"},"ка:тн","картонная коробка",null,6,"carton","ка:тн","картонная коробка",6,"carton","ка:тн","картонная коробка"]
[7,0,0,0,null,7,0,0,0,7]
[8,0,0,0,null,8,0,0,0,8]
[]
["Form 4",null,null,null,null,"Form 4"]
[1,{"$f":"B2","v":"bar"},"ба:","плитка",null,1,{"$f":"B12","v":"bar"},{"$f":"C12","v":"ба:"},{"$f":"D12","v":"плитка"}]
[2,"pack","пек","пачка",null,2,{"$f":"B13","v":"pack"},"пек","пачка"]
[3,"bottle","ботл","пляшка",null,3,"bottle","ботл","пляшка"]
[4,"jar","джа:","банка",null,4,"jar","джа:","банка"]
[5,"bag","беґ","пакет",null,5,"bag","беґ","пакет"]
[6,"carton","ка:тн","картонная коробка",null,6,"carton","ка:тн","картонная коробка"]
[7,0,0,0,null,7,0,0,0]
[8,0,0,0,null,8,0,0,0]
[]
["Form 4",null,null,null,null,"Form 4"]
[1,{"$f":"B12","v":"bar"},"ба:","плитка",null,1,{"$f":"B22","v":"bar"},{"$f":"C22","v":"ба:"},{"$f":"D22","v":"плитка"}]
[2,"pack","пек","пачка",null,2,{"$f":"B23","v":"pack"},"пек","пачка"]
[3,"bottle","ботл","пляшка",null,3,"bottle","ботл","пляшка"]
[4,"jar","джа:","банка",null,4,"jar","джа:","банка"]
[5,"bag","беґ","пакет",null,5,"bag","беґ","пакет"]
[6,"carton","ка:тн","картонная коробка",null,6,"carton","ка:тн","картонная коробка"]
[7,0,0,0,null,7,0,0,0]
[8,0,0,0,null,8,0,0,0]
[]
["Form 4",null,null,null,null,"Form 4"]
[1,{"$f":"B22","v":"bar"},"ба:","плитка",null,1,{"$f":"B32","v":"bar"},{"$f":"C32","v":"ба:"},{"$f":"D32","v":"плитка"}]
[2,"pack","пек","пачка",null,2,{"$f":"B33","v":"pack"},"пек","пачка"]
[3,"bottle","ботл","пляшка",null,3,"bottle","ботл","пляшка"]
[4,"jar","джа:","банка",null,4,"jar","джа:","банка"]
[5,"bag","беґ","пакет",null,5,"bag","беґ","пакет"]
[6,"carton","ка:тн","картонная коробка",null,6,"carton","ка:тн","картонная коробка"]
[7,0,0,0,null,7,0,0,0]
[8,0,0,0,null,8,0,0,0]
[]
["Form 4",null,null,null,null,"Form 4"]
[1,{"$f":"B32","v":"bar"},"ба:","плитка",null,1,{"$f":"B42","v":"bar"},{"$f":"C42","v":"ба:"},{"$f":"D42","v":"плитка"}]
[2,"pack","пек","пачка",null,2,{"$f":"B43","v":"pack"},"пек","пачка"]
[3,"bottle","ботл","пляшка",null,3,"bottle","ботл","пляшка"]
[4,"jar","джа:","банка",null,4,"jar","джа:","банка"]
[5,"bag","беґ","пакет",null,5,"bag","беґ","пакет"]
[6,"carton","ка:тн","картонная коробка",null,6,"carton","ка:тн","картонная коробка"]
[7,0,0,0,null,7,0,0,0]
[8,0,0,0,null,8,0,0,0]

{"sheet":"самос1 (4)","index":32,"n_rows":52,"n_cols":24,"rows_kept":52,"cut":false,"hidden":false,"merged":[]}
[" Form 4   Name_________________________    Date_______",null,null,null,null," Form 4   Name_________________________    Date_______",null,null,null," Form 4   Name_________________________    Date_______",null,null,null," Form 4   Name_________________________    Date_______"]
[]
[null,{"$f":"S3","v":0},1,{"$f":"V3","v":0},null,null,{"$f":"S3","v":0},1,{"$f":"V3","v":0},{"$f":"S16","v":"pack"},null,null,null,{"$f":"J3","v":"pack"},null,null,null,null,null,null,1]
[null,0,2,0,null,null,{"$f":"S4","v":0},2,{"$f":"V4","v":0},{"$f":"S17","v":"jar"},null,null,null,{"$f":"J4","v":"jar"},null,null,null,null,null,null,2]
[null,0,3,0,null,null,0,3,0,"carton",null,null,null,"carton",null,null,null,null,null,null,3]
[null,0,4,0,null,null,0,4,0,"bottle",null,null,null,"bottle",null,null,null,null,null,null,4]
[null,0,5,0,null,null,0,5,0,"bar",null,null,null,"bar",null,null,null,null,null,null,5]
[null,0,6,0,null,null,0,6,0,"bag",null,null,null,"bag",null,null,null,null,null,null,6]
[null,0,7,0,null,null,0,7,0,0,null,null,null,0,null,null,null,null,null,null,7]
[null,0,8,0,null,null,0,8,0,0,null,null,null,0,null,null,null,null,null,null,8]
[null,0,9,0,null,null,0,9,0,0,null,null,null,0,null,null,null,null,null,null,9]
[null,0,10,0,null,null,0,10,0,0,null,null,null,0,null,null,null,null,null,null,10]
[null,0,11,0,null,null,0,11,0,0,null,null,null,0,null,null,null,null,null,null,11]
[]
[" Form 4   Name_________________________    Date_______",null,null,null,null," Form 4   Name_________________________    Date_______",null,null,null," Form 4   Name_________________________    Date_______",null,null,null," Form 4   Name_________________________    Date_______"]
[null,null,null,null,null,null,null,null,null,null,null,null,null,null,null,null,null,null,"pack",null,null,"usually "]
[null,{"$f":"S3","v":0},1,{"$f":"V3","v":0},null,null,{"$f":"B17","v":0},1,{"$f":"D17","v":0},{"$f":"J3","v":"pack"},null,null,null,{"$f":"J17","v":"pack"},null,null,null,null,"jar",null,null,"tomorrow"]
[null,{"$f":"S4","v":0},2,{"$f":"V4","v":0},null,null,{"$f":"B18","v":0},2,{"$f":"D18","v":0},{"$f":"J4","v":"jar"},null,null,null,{"$f":"J18","v":"jar"},null,null,null,null,"carton",null,null,"special"]
[null,0,3,0,null,null,0,3,0,"carton",null,null,null,"carton",null,null,null,null,"bottle",null,null,"present"]
[null,0,4,0,null,null,0,4,0,"bottle",null,null,null,"bottle",null,null,null,null,"bar",null,null,"party"]
[null,0,5,0,null,null,0,5,0,"bar",null,null,null,"bar",null,null,null,null,"bag",null,null,"parties"]
[null,0,6,0,null,null,0,6,0,"bag",null,null,null,"bag"]
[null,0,7,0,null,null,0,7,0,0,null,null,null,0]
[null,0,8,0,null,null,0,8,0,0,null,null,null,0]
[null,0,9,0,null,null,0,9,0,0,null,null,null,0]
[null,0,10,0,null,null,0,10,0,0,null,null,null,0]
[null,0,11,0,null,null,0,11,0,0,null,null,null,0,null,null,null,null,null,null,null,null,null,"pack"]
[null,null,null,null,null,null,null,null,null,null,null,null,null,null,null,null,null,null,null,null,null,null,null,"jar"]
[" Form 4   Name_________________________    Date_______",null,null,null,null," Form 4   Name_________________________    Date_______",null,null,null," Form 4   Name_________________________    Date_______",null,null,null," Form 4   Name_________________________    Date_______",null,null,null,null,null,null,null,null,null,"carton"]
[null,null,null,null,null,null,null,null,null,null,null,null,null,null,null,null,null,null,null,null,null,null,null,"bottle"]
[null,{"$f":"B17","v":0},1,{"$f":"D17","v":0},null,null,{"$f":"B31","v":0},1,{"$f":"D31","v":0},{"$f":"J17","v":"pack"},null,null,null,{"$f":"J31","v":"pack"},null,null,null,null,null,null,null,null,null,"bar"]
[null,{"$f":"B18","v":0},2,{"$f":"D18","v":0},null,null,{"$f":"B32","v":0},2,{"$f":"D32","v":0},{"$f":"J18","v":"jar"},null,null,null,{"$f":"J32","v":"jar"},null,null,null,null,null,null,null,null,null,"bag"]
[null,0,3,0,null,null,0,3,0,"carton",null,null,null,"carton"]
[null,0,4,0,null,null,0,4,0,"bottle",null,null,null,"bottle"]
[null,0,5,0,null,null,0,5,0,"bar",null,null,null,"bar"]
[null,0,6,0,null,null,0,6,0,"bag",null,null,null,"bag"]
[null,0,7,0,null,null,0,7,0,0,null,null,null,0]
[null,0,8,0,null,null,0,8,0,0,null,null,null,0]
[null,0,9,0,null,null,0,9,0,0,null,null,null,0]
[null,0,10,0,null,null,0,10,0,0,null,null,null,0]
[null,0,11,0,null,null,0,11,0,0,null,null,null,0]
[]
[" Form 4   Name_________________________    Date_______",null,null,null,null,null,null,null,null," Form 4   Name_________________________    Date_______"]
[]
[null,{"$f":"B31","v":0},1,{"$f":"D31","v":0},null,null,{"$f":"B39","v":0},9,{"$f":"D39","v":0},{"$f":"J31","v":"pack"},null,null,null,{"$f":"J39","v":0}]
[null,{"$f":"B32","v":0},2,{"$f":"D32","v":0},null,null,{"$f":"B40","v":0},10,{"$f":"D40","v":0},{"$f":"J32","v":"jar"},null,null,null,{"$f":"J40","v":0}]
[null,0,3,0,null,null,{"$f":"B41","v":0},11,{"$f":"D41","v":0},"carton",null,null,null,{"$f":"J41","v":0}]
[null,0,4,0,null,null,null,null,null,"bottle"]
[null,0,5,0,null,null,null,null,null,"bar"]
[null,0,6,0,null,null,null,null,null,"bag"]
[null,{"$f":"B37","v":0},7,{"$f":"D37","v":0},null,null,null,null,null,{"$f":"J37","v":0}]
[null,{"$f":"B38","v":0},8,{"$f":"D38","v":0},null,null,null,null,null,{"$f":"J38","v":0}]

{"sheet":"Лист (10)","index":33,"n_rows":49,"n_cols":13,"rows_kept":49,"cut":false,"hidden":false,"merged":[]}
["Form 4",null,null,null,null,"Form 4"]
[{"$f":"J2","v":1},{"$f":"K2","v":"luck"},{"$f":"L2","v":"лак"},{"$f":"M2","v":"уда́ча"},null,{"$f":"A2","v":1},{"$f":"B2","v":"luck"},{"$f":"C2","v":"лак"},{"$f":"D2","v":"уда́ча"},1,"luck","лак","уда́ча"]
[{"$f":"J3","v":2},"party","па:ті","вечірка",null,{"$f":"A3","v":2},"party","па:ті","вечірка",2,"party","па:ті","вечірка"]
[3,"sweet","сві:т","цукерка",null,3,"sweet","сві:т","цукерка",3,"sweet","сві:т","цукерка"]
[4,"biscuit","біскіт","печево",null,4,"biscuit","біскіт","печево",4,"biscuit","біскіт","печево"]
[5,"candle","кендл","свічка",null,5,{"$f":"B6","v":"candle"},"кендл","свічка",5,"candle","кендл","свічка"]
[6,{"$f":"K7","v":0},0,0,null,6,0,0,0,6]
[7,0,0,0,null,7,0,0,0,7]
[8,0,0,0,null,8,0,0,0,8]
[]
["Form 4",null,null,null,null,"Form 4"]
[1,{"$f":"B2","v":"luck"},"лак","уда́ча",null,1,{"$f":"B12","v":"luck"},{"$f":"C12","v":"лак"},{"$f":"D12","v":"уда́ча"}]
[2,"party","па:ті","вечірка",null,2,{"$f":"B13","v":"party"},"па:ті","вечірка"]
[3,"sweet","сві:т","цукерка",null,3,"sweet","сві:т","цукерка"]
[4,"biscuit","біскіт","печево",null,4,"biscuit","біскіт","печево"]
[5,"candle","кендл","свічка",null,5,"candle","кендл","свічка"]
[6,0,0,0,null,6,0,0,0]
[7,0,0,0,null,7,0,0,0]
[8,0,0,0,null,8,0,0,0]
[]
["Form 4",null,null,null,null,"Form 4"]
[1,{"$f":"B12","v":"luck"},"лак","уда́ча",null,1,{"$f":"B22","v":"luck"},{"$f":"C22","v":"лак"},{"$f":"D22","v":"уда́ча"}]
[2,"party","па:ті","вечірка",null,2,{"$f":"B23","v":"party"},"па:ті","вечірка"]
[3,"sweet","сві:т","цукерка",null,3,"sweet","сві:т","цукерка"]
[4,"biscuit","біскіт","печево",null,4,"biscuit","біскіт","печево"]
[5,"candle","кендл","свічка",null,5,"candle","кендл","свічка"]
[6,0,0,0,null,6,0,0,0]
[7,0,0,0,null,7,0,0,0]
[8,0,0,0,null,8,0,0,0]
[]
["Form 4",null,null,null,null,"Form 4"]
[1,{"$f":"B22","v":"luck"},"лак","уда́ча",null,1,{"$f":"B32","v":"luck"},{"$f":"C32","v":"лак"},{"$f":"D32","v":"уда́ча"}]
[2,"party","па:ті","вечірка",null,2,{"$f":"B33","v":"party"},"па:ті","вечірка"]
[3,"sweet","сві:т","цукерка",null,3,"sweet","сві:т","цукерка"]
[4,"biscuit","біскіт","печево",null,4,"biscuit","біскіт","печево"]
[5,"candle","кендл","свічка",null,5,"candle","кендл","свічка"]
[6,0,0,0,null,6,0,0,0]
[7,0,0,0,null,7,0,0,0]
[8,0,0,0,null,8,0,0,0]
[]
["Form 4",null,null,null,null,"Form 4"]
[1,{"$f":"B32","v":"luck"},"лак","уда́ча",null,1,{"$f":"B42","v":"luck"},{"$f":"C42","v":"лак"},{"$f":"D42","v":"уда́ча"}]
[2,"party","па:ті","вечірка",null,2,{"$f":"B43","v":"party"},"па:ті","вечірка"]
[3,"sweet","сві:т","цукерка",null,3,"sweet","сві:т","цукерка"]
[4,"biscuit","біскіт","печево",null,4,"biscuit","біскіт","печево"]
[5,"candle","кендл","свічка",null,5,"candle","кендл","свічка"]
[6,0,0,0,null,6,0,0,0]
[7,0,0,0,null,7,0,0,0]
[8,0,0,0,null,8,0,0,0]

{"sheet":"Лист (12)","index":34,"n_rows":49,"n_cols":13,"rows_kept":49,"cut":false,"hidden":false,"merged":[]}
["Form 4",null,null,null,null,"Form 4"]
[{"$f":"J2","v":1},{"$f":"K2","v":"never "},{"$f":"L2","v":"[ˈnevə]"},{"$f":"M2","v":"ніколи"},null,{"$f":"A2","v":1},{"$f":"B2","v":"never "},{"$f":"C2","v":"[ˈnevə]"},{"$f":"D2","v":"ніколи"},1,"never ","[ˈnevə]","ніколи"]
[{"$f":"J3","v":2},"always ","[ˈɔːlw(ə)ɪz]","завжди ",null,{"$f":"A3","v":2},"always ","[ˈɔːlw(ə)ɪz]","завжди ",2,"always ","[ˈɔːlw(ə)ɪz]","завжди "]
[3,"usually ","[ˈjuːʒuəlɪ]","зазвичай ",null,3,"usually ","[ˈjuːʒuəlɪ]","зазвичай ",3,"usually ","[ˈjuːʒuəlɪ]","зазвичай "]
[4,"sometime ","[ˈsʌmtaɪm]","інколи  ",null,4,"sometime ","[ˈsʌmtaɪm]","інколи  ",4,"sometime ","[ˈsʌmtaɪm]","інколи  "]
[5,"evening","[ˈiːvnɪŋ]","вечір",null,5,{"$f":"B6","v":"evening"},"[ˈiːvnɪŋ]","вечір",5,"evening","[ˈiːvnɪŋ]","вечір"]
[6,{"$f":"K7","v":0},0,0,null,6,0,0,0,6]
[7,0,0,0,null,7,0,0,0,7]
[8,0,0,0,null,8,0,0,0,8]
[]
["Form 4",null,null,null,null,"Form 4"]
[1,{"$f":"B2","v":"never "},"[ˈnevə]","ніколи",null,1,{"$f":"B12","v":"never "},{"$f":"C12","v":"[ˈnevə]"},{"$f":"D12","v":"ніколи"}]
[2,"always ","[ˈɔːlw(ə)ɪz]","завжди ",null,2,{"$f":"B13","v":"always "},"[ˈɔːlw(ə)ɪz]","завжди "]
[3,"usually ","[ˈjuːʒuəlɪ]","зазвичай ",null,3,"usually ","[ˈjuːʒuəlɪ]","зазвичай "]
[4,"sometime ","[ˈsʌmtaɪm]","інколи  ",null,4,"sometime ","[ˈsʌmtaɪm]","інколи  "]
[5,"evening","[ˈiːvnɪŋ]","вечір",null,5,"evening","[ˈiːvnɪŋ]","вечір"]
[6,0,0,0,null,6,0,0,0]
[7,0,0,0,null,7,0,0,0]
[8,0,0,0,null,8,0,0,0]
[]
["Form 4",null,null,null,null,"Form 4"]
[1,{"$f":"B12","v":"never "},"[ˈnevə]","ніколи",null,1,{"$f":"B22","v":"never "},{"$f":"C22","v":"[ˈnevə]"},{"$f":"D22","v":"ніколи"}]
[2,"always ","[ˈɔːlw(ə)ɪz]","завжди ",null,2,{"$f":"B23","v":"always "},"[ˈɔːlw(ə)ɪz]","завжди "]
[3,"usually ","[ˈjuːʒuəlɪ]","зазвичай ",null,3,"usually ","[ˈjuːʒuəlɪ]","зазвичай "]
[4,"sometime ","[ˈsʌmtaɪm]","інколи  ",null,4,"sometime ","[ˈsʌmtaɪm]","інколи  "]
[5,"evening","[ˈiːvnɪŋ]","вечір",null,5,"evening","[ˈiːvnɪŋ]","вечір"]
[6,0,0,0,null,6,0,0,0]
[7,0,0,0,null,7,0,0,0]
[8,0,0,0,null,8,0,0,0]
[]
["Form 4",null,null,null,null,"Form 4"]
[1,{"$f":"B22","v":"never "},"[ˈnevə]","ніколи",null,1,{"$f":"B32","v":"never "},{"$f":"C32","v":"[ˈnevə]"},{"$f":"D32","v":"ніколи"}]
[2,"always ","[ˈɔːlw(ə)ɪz]","завжди ",null,2,{"$f":"B33","v":"always "},"[ˈɔːlw(ə)ɪz]","завжди "]
[3,"usually ","[ˈjuːʒuəlɪ]","зазвичай ",null,3,"usually ","[ˈjuːʒuəlɪ]","зазвичай "]
[4,"sometime ","[ˈsʌmtaɪm]","інколи  ",null,4,"sometime ","[ˈsʌmtaɪm]","інколи  "]
[5,"evening","[ˈiːvnɪŋ]","вечір",null,5,"evening","[ˈiːvnɪŋ]","вечір"]
[6,0,0,0,null,6,0,0,0]
[7,0,0,0,null,7,0,0,0]
[8,0,0,0,null,8,0,0,0]
[]
["Form 4",null,null,null,null,"Form 4"]
[1,{"$f":"B32","v":"never "},"[ˈnevə]","ніколи",null,1,{"$f":"B42","v":"never "},{"$f":"C42","v":"[ˈnevə]"},{"$f":"D42","v":"ніколи"}]
[2,"always ","[ˈɔːlw(ə)ɪz]","завжди ",null,2,{"$f":"B43","v":"always "},"[ˈɔːlw(ə)ɪz]","завжди "]
[3,"usually ","[ˈjuːʒuəlɪ]","зазвичай ",null,3,"usually ","[ˈjuːʒuəlɪ]","зазвичай "]
[4,"sometime ","[ˈsʌmtaɪm]","інколи  ",null,4,"sometime ","[ˈsʌmtaɪm]","інколи  "]
[5,"evening","[ˈiːvnɪŋ]","вечір",null,5,"evening","[ˈiːvnɪŋ]","вечір"]
[6,0,0,0,null,6,0,0,0]
[7,0,0,0,null,7,0,0,0]
[8,0,0,0,null,8,0,0,0]

{"sheet":"Лист (11)","index":35,"n_rows":49,"n_cols":13,"rows_kept":49,"cut":false,"hidden":false,"merged":[]}
["Form 4",null,null,null,null,"Form 4"]
[{"$f":"J2","v":1},{"$f":"K2","v":"health"},{"$f":"L2","v":"[helθ]"},{"$f":"M2","v":"здоро́в'я"},null,{"$f":"A2","v":1},{"$f":"B2","v":"health"},{"$f":"C2","v":"[helθ]"},{"$f":"D2","v":"здоро́в'я"},1,"health","[helθ]","здоро́в'я"]
[{"$f":"J3","v":2},"food","[fuːd]","ї́жа",null,{"$f":"A3","v":2},"food","[fuːd]","ї́жа",2,"food","[fuːd]","ї́жа"]
[3,"recipe","[ˈresɪpɪ]","реце́пт",null,3,"recipe","[ˈresɪpɪ]","реце́пт",3,"recipe","[ˈresɪpɪ]","реце́пт"]
[4,"letter","[ˈletə]","бу́ква; лист",null,4,"letter","[ˈletə]","бу́ква; лист",4,"letter","[ˈletə]","бу́ква; лист"]
[5,"fruit","[fruːt]","фрукт, фрукти",null,5,{"$f":"B6","v":"fruit"},"[fruːt]","фрукт, фрукти",5,"fruit","[fruːt]","фрукт, фрукти"]
[6,{"$f":"K7","v":"sell"},"[sel]","продава́ти(ся)",null,6,"sell","[sel]","продава́ти(ся)",6,"sell","[sel]","продава́ти(ся)"]
[7,0,0,0,null,7,0,0,0,7]
[8,0,0,0,null,8,0,0,0,8]
[]
["Form 4",null,null,null,null,"Form 4"]
[1,{"$f":"B2","v":"health"},"[helθ]","здоро́в'я",null,1,{"$f":"B12","v":"health"},{"$f":"C12","v":"[helθ]"},{"$f":"D12","v":"здоро́в'я"}]
[2,"food","[fuːd]","ї́жа",null,2,{"$f":"B13","v":"food"},"[fuːd]","ї́жа"]
[3,"recipe","[ˈresɪpɪ]","реце́пт",null,3,"recipe","[ˈresɪpɪ]","реце́пт"]
[4,"letter","[ˈletə]","бу́ква; лист",null,4,"letter","[ˈletə]","бу́ква; лист"]
[5,"fruit","[fruːt]","фрукт, фрукти",null,5,"fruit","[fruːt]","фрукт, фрукти"]
[6,"sell","[sel]","продава́ти(ся)",null,6,"sell","[sel]","продава́ти(ся)"]
[7,0,0,0,null,7,0,0,0]
[8,0,0,0,null,8,0,0,0]
[]
["Form 4",null,null,null,null,"Form 4"]
[1,{"$f":"B12","v":"health"},"[helθ]","здоро́в'я",null,1,{"$f":"B22","v":"health"},{"$f":"C22","v":"[helθ]"},{"$f":"D22","v":"здоро́в'я"}]
[2,"food","[fuːd]","ї́жа",null,2,{"$f":"B23","v":"food"},"[fuːd]","ї́жа"]
[3,"recipe","[ˈresɪpɪ]","реце́пт",null,3,"recipe","[ˈresɪpɪ]","реце́пт"]
[4,"letter","[ˈletə]","бу́ква; лист",null,4,"letter","[ˈletə]","бу́ква; лист"]
[5,"fruit","[fruːt]","фрукт, фрукти",null,5,"fruit","[fruːt]","фрукт, фрукти"]
[6,"sell","[sel]","продава́ти(ся)",null,6,"sell","[sel]","продава́ти(ся)"]
[7,0,0,0,null,7,0,0,0]
[8,0,0,0,null,8,0,0,0]
[]
["Form 4",null,null,null,null,"Form 4"]
[1,{"$f":"B22","v":"health"},"[helθ]","здоро́в'я",null,1,{"$f":"B32","v":"health"},{"$f":"C32","v":"[helθ]"},{"$f":"D32","v":"здоро́в'я"}]
[2,"food","[fuːd]","ї́жа",null,2,{"$f":"B33","v":"food"},"[fuːd]","ї́жа"]
[3,"recipe","[ˈresɪpɪ]","реце́пт",null,3,"recipe","[ˈresɪpɪ]","реце́пт"]
[4,"letter","[ˈletə]","бу́ква; лист",null,4,"letter","[ˈletə]","бу́ква; лист"]
[5,"fruit","[fruːt]","фрукт, фрукти",null,5,"fruit","[fruːt]","фрукт, фрукти"]
[6,"sell","[sel]","продава́ти(ся)",null,6,"sell","[sel]","продава́ти(ся)"]
[7,0,0,0,null,7,0,0,0]
[8,0,0,0,null,8,0,0,0]
[]
["Form 4",null,null,null,null,"Form 4"]
[1,{"$f":"B32","v":"health"},"[helθ]","здоро́в'я",null,1,{"$f":"B42","v":"health"},{"$f":"C42","v":"[helθ]"},{"$f":"D42","v":"здоро́в'я"}]
[2,"food","[fuːd]","ї́жа",null,2,{"$f":"B43","v":"food"},"[fuːd]","ї́жа"]
[3,"recipe","[ˈresɪpɪ]","реце́пт",null,3,"recipe","[ˈresɪpɪ]","реце́пт"]
[4,"letter","[ˈletə]","бу́ква; лист",null,4,"letter","[ˈletə]","бу́ква; лист"]
[5,"fruit","[fruːt]","фрукт, фрукти",null,5,"fruit","[fruːt]","фрукт, фрукти"]
[6,"sell","[sel]","продава́ти(ся)",null,6,"sell","[sel]","продава́ти(ся)"]
[7,0,0,0,null,7,0,0,0]
[8,0,0,0,null,8,0,0,0]

{"sheet":"Лист (13)","index":36,"n_rows":49,"n_cols":13,"rows_kept":49,"cut":false,"hidden":false,"merged":[]}
["Form 4",null,null,null,null,"Form 4"]
[{"$f":"J2","v":1},{"$f":"K2","v":"stomach"},{"$f":"L2","v":"[ˈstʌmək]"},{"$f":"M2","v":"шлу́нок; живі́т"},null,{"$f":"A2","v":1},{"$f":"B2","v":"stomach"},{"$f":"C2","v":"[ˈstʌmək]"},{"$f":"D2","v":"шлу́нок; живі́т"},1,"stomach","[ˈstʌmək]","шлу́нок; живі́т"]
[{"$f":"J3","v":2},"head","[hed]","голова́",null,{"$f":"A3","v":2},"head","[hed]","голова́",2,"head","[hed]","голова́"]
[3,"tooth","[tuːθ]","зуб",null,3,"tooth","[tuːθ]","зуб",3,"tooth","[tuːθ]","зуб"]
[4,"teeth","[tiːθ]","зуби",null,4,"teeth","[tiːθ]","зуби",4,"teeth","[tiːθ]","зуби"]
[5,"ear","[ɪə]","ву́хо",null,5,{"$f":"B6","v":"ear"},"[ɪə]","ву́хо",5,"ear","[ɪə]","ву́хо"]
[6,{"$f":"K7","v":"ache"},"[eɪk]","біль;  болі́ти",null,6,"ache","[eɪk]","біль;  болі́ти",6,"ache","[eɪk]","біль;  болі́ти"]
[7,0,0,0,null,7,0,0,0,7]
[8,0,0,0,null,8,0,0,0,8]
[]
["Form 4",null,null,null,null,"Form 4"]
[1,{"$f":"B2","v":"stomach"},"[ˈstʌmək]","шлу́нок; живі́т",null,1,{"$f":"B12","v":"stomach"},{"$f":"C12","v":"[ˈstʌmək]"},{"$f":"D12","v":"шлу́нок; живі́т"}]
[2,"head","[hed]","голова́",null,2,{"$f":"B13","v":"head"},"[hed]","голова́"]
[3,"tooth","[tuːθ]","зуб",null,3,"tooth","[tuːθ]","зуб"]
[4,"teeth","[tiːθ]","зуби",null,4,"teeth","[tiːθ]","зуби"]
[5,"ear","[ɪə]","ву́хо",null,5,"ear","[ɪə]","ву́хо"]
[6,"ache","[eɪk]","біль;  болі́ти",null,6,"ache","[eɪk]","біль;  болі́ти"]
[7,0,0,0,null,7,0,0,0]
[8,0,0,0,null,8,0,0,0]
[]
["Form 4",null,null,null,null,"Form 4"]
[1,{"$f":"B12","v":"stomach"},"[ˈstʌmək]","шлу́нок; живі́т",null,1,{"$f":"B22","v":"stomach"},{"$f":"C22","v":"[ˈstʌmək]"},{"$f":"D22","v":"шлу́нок; живі́т"}]
[2,"head","[hed]","голова́",null,2,{"$f":"B23","v":"head"},"[hed]","голова́"]
[3,"tooth","[tuːθ]","зуб",null,3,"tooth","[tuːθ]","зуб"]
[4,"teeth","[tiːθ]","зуби",null,4,"teeth","[tiːθ]","зуби"]
[5,"ear","[ɪə]","ву́хо",null,5,"ear","[ɪə]","ву́хо"]
[6,"ache","[eɪk]","біль;  болі́ти",null,6,"ache","[eɪk]","біль;  болі́ти"]
[7,0,0,0,null,7,0,0,0]
[8,0,0,0,null,8,0,0,0]
[]
["Form 4",null,null,null,null,"Form 4"]
[1,{"$f":"B22","v":"stomach"},"[ˈstʌmək]","шлу́нок; живі́т",null,1,{"$f":"B32","v":"stomach"},{"$f":"C32","v":"[ˈstʌmək]"},{"$f":"D32","v":"шлу́нок; живі́т"}]
[2,"head","[hed]","голова́",null,2,{"$f":"B33","v":"head"},"[hed]","голова́"]
[3,"tooth","[tuːθ]","зуб",null,3,"tooth","[tuːθ]","зуб"]
[4,"teeth","[tiːθ]","зуби",null,4,"teeth","[tiːθ]","зуби"]
[5,"ear","[ɪə]","ву́хо",null,5,"ear","[ɪə]","ву́хо"]
[6,"ache","[eɪk]","біль;  болі́ти",null,6,"ache","[eɪk]","біль;  болі́ти"]
[7,0,0,0,null,7,0,0,0]
[8,0,0,0,null,8,0,0,0]
[]
["Form 4",null,null,null,null,"Form 4"]
[1,{"$f":"B32","v":"stomach"},"[ˈstʌmək]","шлу́нок; живі́т",null,1,{"$f":"B42","v":"stomach"},{"$f":"C42","v":"[ˈstʌmək]"},{"$f":"D42","v":"шлу́нок; живі́т"}]
[2,"head","[hed]","голова́",null,2,{"$f":"B43","v":"head"},"[hed]","голова́"]
[3,"tooth","[tuːθ]","зуб",null,3,"tooth","[tuːθ]","зуб"]
[4,"teeth","[tiːθ]","зуби",null,4,"teeth","[tiːθ]","зуби"]
[5,"ear","[ɪə]","ву́хо",null,5,"ear","[ɪə]","ву́хо"]
[6,"ache","[eɪk]","біль;  болі́ти",null,6,"ache","[eɪk]","біль;  болі́ти"]
[7,0,0,0,null,7,0,0,0]
[8,0,0,0,null,8,0,0,0]

{"sheet":"Лист (15)","index":37,"n_rows":49,"n_cols":13,"rows_kept":49,"cut":false,"hidden":false,"merged":[]}
["Form 4",null,null,null,null,"Form 4"]
[{"$f":"J2","v":1},{"$f":"K2","v":"headache "},{"$f":"L2","v":"[ˈhedeɪk]"},{"$f":"M2","v":"головний біль"},null,{"$f":"A2","v":1},{"$f":"B2","v":"headache "},{"$f":"C2","v":"[ˈhedeɪk]"},{"$f":"D2","v":"головний біль"},1,"headache ","[ˈhedeɪk]","головний біль"]
[{"$f":"J3","v":2},"toothache","[ˈtuːθeɪk]","зубний біль",null,{"$f":"A3","v":2},"toothache","[ˈtuːθeɪk]","зубний біль",2,"toothache","[ˈtuːθeɪk]","зубний біль"]
[3,"stomachache","[ˈstʌməkeɪk]","біль у шлунку",null,3,"stomachache","[ˈstʌməkeɪk]","біль у шлунку",3,"stomachache","[ˈstʌməkeɪk]","біль у шлунку"]
[4,"earache","[ˈɪəreɪk]","біль у вусі",null,4,"earache","[ˈɪəreɪk]","біль у вусі",4,"earache","[ˈɪəreɪk]","біль у вусі"]
[5,"backache","[ˈbækeɪk]","біль у спині",null,5,{"$f":"B6","v":"backache"},"[ˈbækeɪk]","біль у спині",5,"backache","[ˈbækeɪk]","біль у спині"]
[6,{"$f":"K7","v":0},0,0,null,6,0,0,0,6]
[7,0,0,0,null,7,0,0,0,7]
[8,0,0,0,null,8,0,0,0,8]
[]
["Form 4",null,null,null,null,"Form 4"]
[1,{"$f":"B2","v":"headache "},"[ˈhedeɪk]","головний біль",null,1,{"$f":"B12","v":"headache "},{"$f":"C12","v":"[ˈhedeɪk]"},{"$f":"D12","v":"головний біль"}]
[2,"toothache","[ˈtuːθeɪk]","зубний біль",null,2,{"$f":"B13","v":"toothache"},"[ˈtuːθeɪk]","зубний біль",null,"headache ","[ˈhedeɪk]","головний біль"]
[3,"stomachache","[ˈstʌməkeɪk]","біль у шлунку",null,3,"stomachache","[ˈstʌməkeɪk]","біль у шлунку",null,"toothache","[ˈtuːθeɪk]","зубний біль"]
[4,"earache","[ˈɪəreɪk]","біль у вусі",null,4,"earache","[ˈɪəreɪk]","біль у вусі",null,"stomachache","[ˈstʌməkeɪk]","біль у шлунку"]
[5,"backache","[ˈbækeɪk]","біль у спині",null,5,"backache","[ˈbækeɪk]","біль у спині",null,"earache","[ˈɪəreɪk]","біль у вусі"]
[6,0,0,0,null,6,0,0,0,null,"backache","[ˈbækeɪk]","біль у спині"]
[7,0,0,0,null,7,0,0,0]
[8,0,0,0,null,8,0,0,0]
[]
["Form 4",null,null,null,null,"Form 4"]
[1,{"$f":"B12","v":"headache "},"[ˈhedeɪk]","головний біль",null,1,{"$f":"B22","v":"headache "},{"$f":"C22","v":"[ˈhedeɪk]"},{"$f":"D22","v":"головний біль"}]
[2,"toothache","[ˈtuːθeɪk]","зубний біль",null,2,{"$f":"B23","v":"toothache"},"[ˈtuːθeɪk]","зубний біль"]
[3,"stomachache","[ˈstʌməkeɪk]","біль у шлунку",null,3,"stomachache","[ˈstʌməkeɪk]","біль у шлунку"]
[4,"earache","[ˈɪəreɪk]","біль у вусі",null,4,"earache","[ˈɪəreɪk]","біль у вусі"]
[5,"backache","[ˈbækeɪk]","біль у спині",null,5,"backache","[ˈbækeɪk]","біль у спині"]
[6,0,0,0,null,6,0,0,0]
[7,0,0,0,null,7,0,0,0]
[8,0,0,0,null,8,0,0,0]
[]
["Form 4",null,null,null,null,"Form 4"]
[1,{"$f":"B22","v":"headache "},"[ˈhedeɪk]","головний біль",null,1,{"$f":"B32","v":"headache "},{"$f":"C32","v":"[ˈhedeɪk]"},{"$f":"D32","v":"головний біль"}]
[2,"toothache","[ˈtuːθeɪk]","зубний біль",null,2,{"$f":"B33","v":"toothache"},"[ˈtuːθeɪk]","зубний біль"]
[3,"stomachache","[ˈstʌməkeɪk]","біль у шлунку",null,3,"stomachache","[ˈstʌməkeɪk]","біль у шлунку"]
[4,"earache","[ˈɪəreɪk]","біль у вусі",null,4,"earache","[ˈɪəreɪk]","біль у вусі"]
[5,"backache","[ˈbækeɪk]","біль у спині",null,5,"backache","[ˈbækeɪk]","біль у спині"]
[6,0,0,0,null,6,0,0,0]
[7,0,0,0,null,7,0,0,0]
[8,0,0,0,null,8,0,0,0]
[]
["Form 4",null,null,null,null,"Form 4"]
[1,{"$f":"B32","v":"headache "},"[ˈhedeɪk]","головний біль",null,1,{"$f":"B42","v":"headache "},{"$f":"C42","v":"[ˈhedeɪk]"},{"$f":"D42","v":"головний біль"}]
[2,"toothache","[ˈtuːθeɪk]","зубний біль",null,2,{"$f":"B43","v":"toothache"},"[ˈtuːθeɪk]","зубний біль"]
[3,"stomachache","[ˈstʌməkeɪk]","біль у шлунку",null,3,"stomachache","[ˈstʌməkeɪk]","біль у шлунку"]
[4,"earache","[ˈɪəreɪk]","біль у вусі",null,4,"earache","[ˈɪəreɪk]","біль у вусі"]
[5,"backache","[ˈbækeɪk]","біль у спині",null,5,"backache","[ˈbækeɪk]","біль у спині"]
[6,0,0,0,null,6,0,0,0]
[7,0,0,0,null,7,0,0,0]
[8,0,0,0,null,8,0,0,0]

{"sheet":"Лист (16)","index":38,"n_rows":49,"n_cols":13,"rows_kept":49,"cut":false,"hidden":false,"merged":[]}
["Form 4",null,null,null,null,"Form 4"]
[{"$f":"J2","v":1},{"$f":"K2","v":"ski"},{"$f":"L2","v":"[skiː]"},{"$f":"M2","v":"ли́жа"},null,{"$f":"A2","v":1},{"$f":"B2","v":"ski"},{"$f":"C2","v":"[skiː]"},{"$f":"D2","v":"ли́жа"},1,"ski","[skiː]","ли́жа"]
[{"$f":"J3","v":2},"skate","[skeɪt]","ковза́н",null,{"$f":"A3","v":2},"skate","[skeɪt]","ковза́н",2,"skate","[skeɪt]","ковза́н"]
[3,"sledge","[sleʤ]","са́ни",null,3,"sledge","[sleʤ]","са́ни",3,"sledge","[sleʤ]","са́ни"]
[4,"snow","[snəu]"," сніг",null,4,"snow","[snəu]"," сніг",4,"snow","[snəu]"," сніг"]
[5,"snowball","[ˈsnəubɔːl]","сні́жка",null,5,{"$f":"B6","v":"snowball"},"[ˈsnəubɔːl]","сні́жка",5,"snowball","[ˈsnəubɔːl]","сні́жка"]
[6,{"$f":"K7","v":"snowman"},"[ˈsnəumæn]","снігови́к",null,6,"snowman","[ˈsnəumæn]","снігови́к",6,"snowman","[ˈsnəumæn]","снігови́к"]
[7,0,0,0,null,7,0,0,0,7]
[8,0,0,0,null,8,0,0,0,8]
[]
["Form 4",null,null,null,null,"Form 4"]
[1,{"$f":"B2","v":"ski"},"[skiː]","ли́жа",null,1,{"$f":"B12","v":"ski"},{"$f":"C12","v":"[skiː]"},{"$f":"D12","v":"ли́жа"}]
[2,"skate","[skeɪt]","ковза́н",null,2,{"$f":"B13","v":"skate"},"[skeɪt]","ковза́н"]
[3,"sledge","[sleʤ]","са́ни",null,3,"sledge","[sleʤ]","са́ни"]
[4,"snow","[snəu]"," сніг",null,4,"snow","[snəu]"," сніг"]
[5,"snowball","[ˈsnəubɔːl]","сні́жка",null,5,"snowball","[ˈsnəubɔːl]","сні́жка"]
[6,"snowman","[ˈsnəumæn]","снігови́к",null,6,"snowman","[ˈsnəumæn]","снігови́к"]
[7,0,0,0,null,7,0,0,0]
[8,0,0,0,null,8,0,0,0]
[]
["Form 4",null,null,null,null,"Form 4"]
[1,{"$f":"B12","v":"ski"},"[skiː]","ли́жа",null,1,{"$f":"B22","v":"ski"},{"$f":"C22","v":"[skiː]"},{"$f":"D22","v":"ли́жа"}]
[2,"skate","[skeɪt]","ковза́н",null,2,{"$f":"B23","v":"skate"},"[skeɪt]","ковза́н"]
[3,"sledge","[sleʤ]","са́ни",null,3,"sledge","[sleʤ]","са́ни"]
[4,"snow","[snəu]"," сніг",null,4,"snow","[snəu]"," сніг"]
[5,"snowball","[ˈsnəubɔːl]","сні́жка",null,5,"snowball","[ˈsnəubɔːl]","сні́жка"]
[6,"snowman","[ˈsnəumæn]","снігови́к",null,6,"snowman","[ˈsnəumæn]","снігови́к"]
[7,0,0,0,null,7,0,0,0]
[8,0,0,0,null,8,0,0,0]
[]
["Form 4",null,null,null,null,"Form 4"]
[1,{"$f":"B22","v":"ski"},"[skiː]","ли́жа",null,1,{"$f":"B32","v":"ski"},{"$f":"C32","v":"[skiː]"},{"$f":"D32","v":"ли́жа"}]
[2,"skate","[skeɪt]","ковза́н",null,2,{"$f":"B33","v":"skate"},"[skeɪt]","ковза́н"]
[3,"sledge","[sleʤ]","са́ни",null,3,"sledge","[sleʤ]","са́ни"]
[4,"snow","[snəu]"," сніг",null,4,"snow","[snəu]"," сніг"]
[5,"snowball","[ˈsnəubɔːl]","сні́жка",null,5,"snowball","[ˈsnəubɔːl]","сні́жка"]
[6,"snowman","[ˈsnəumæn]","снігови́к",null,6,"snowman","[ˈsnəumæn]","снігови́к"]
[7,0,0,0,null,7,0,0,0]
[8,0,0,0,null,8,0,0,0]
[]
["Form 4",null,null,null,null,"Form 4"]
[1,{"$f":"B32","v":"ski"},"[skiː]","ли́жа",null,1,{"$f":"B42","v":"ski"},{"$f":"C42","v":"[skiː]"},{"$f":"D42","v":"ли́жа"}]
[2,"skate","[skeɪt]","ковза́н",null,2,{"$f":"B43","v":"skate"},"[skeɪt]","ковза́н"]
[3,"sledge","[sleʤ]","са́ни",null,3,"sledge","[sleʤ]","са́ни"]
[4,"snow","[snəu]"," сніг",null,4,"snow","[snəu]"," сніг"]
[5,"snowball","[ˈsnəubɔːl]","сні́жка",null,5,"snowball","[ˈsnəubɔːl]","сні́жка"]
[6,"snowman","[ˈsnəumæn]","снігови́к",null,6,"snowman","[ˈsnəumæn]","снігови́к"]
[7,0,0,0,null,7,0,0,0]
[8,0,0,0,null,8,0,0,0]

{"sheet":"Лист3","index":39,"n_rows":13,"n_cols":3,"rows_kept":13,"cut":false,"hidden":false,"merged":[]}
["Sunday","санді","неділя"]
["Wednesday","вензді","середа"]
["Monday","манді","понеділок"]
["Wednesday","вензді","середа"]
["Monday","манді","понеділок"]
["Wednesday","вензді","середа"]
["Tuesday","тйузді","вівторок"]
["Sunday","санді","неділя"]
["Wednesday","вензді","середа"]
["Monday","манді","понеділок"]
["Wednesday","вензді","середа"]
["Tuesday","тйузді","вівторок"]
["Monday","манді","понеділок"]

{"sheet":"Лист (17)","index":40,"n_rows":49,"n_cols":14,"rows_kept":49,"cut":false,"hidden":false,"merged":[]}
["Form 4",null,null,null,null,"Form 4"]
[{"$f":"J2","v":1},{"$f":"K2","v":"Sunday"},{"$f":"L2","v":"санді"},{"$f":"M2","v":"неділя"},null,{"$f":"A2","v":1},{"$f":"B2","v":"Sunday"},{"$f":"C2","v":"санді"},{"$f":"D2","v":"неділя"},1,"Sunday","санді","неділя"]
[{"$f":"J3","v":2},"Monday","манді","понеділок",null,{"$f":"A3","v":2},"Monday","манді","понеділок",2,"Monday","манді","понеділок"]
[3,"Tuesday","тйузді","вівторок",null,3,"Tuesday","тйузді","вівторок",3,"Tuesday","тйузді","вівторок"]
[4,"Wednesday","вензді","середа",null,4,"Wednesday","вензді","середа",4,"Wednesday","вензді","середа"]
[5,0,0,0,null,5,{"$f":"B6","v":0},0,0,5]
[6,{"$f":"K7","v":0},0,0,null,6,0,0,0,6]
[7,0,0,0,null,7,0,0,0,7,null,null,null,"Thursday"]
[8,0,0,0,null,8,0,0,0,8,null,null,null,"Tuesday"]
[null,null,null,null,null,null,null,null,null,null,null,null,null,"Wednesday"]
["Form 4",null,null,null,null,"Form 4",null,null,null,null,null,null,null,"Monday"]
[1,{"$f":"B2","v":"Sunday"},"санді","неділя",null,1,{"$f":"B12","v":"Sunday"},{"$f":"C12","v":"санді"},{"$f":"D12","v":"неділя"},null,null,null,null,"Sunday"]
[2,"Monday","манді","понеділок",null,2,{"$f":"B13","v":"Monday"},"манді","понеділок"]
[3,"Tuesday","тйузді","вівторок",null,3,"Tuesday","тйузді","вівторок"]
[4,"Wednesday","вензді","середа",null,4,"Wednesday","вензді","середа"]
[5,0,0,0,null,5,0,0,0]
[6,0,0,0,null,6,0,0,0]
[7,0,0,0,null,7,0,0,0]
[8,0,0,0,null,8,0,0,0]
[]
["Form 4",null,null,null,null,"Form 4"]
[1,{"$f":"B12","v":"Sunday"},"санді","неділя",null,1,{"$f":"B22","v":"Sunday"},{"$f":"C22","v":"санді"},{"$f":"D22","v":"неділя"}]
[2,"Monday","манді","понеділок",null,2,{"$f":"B23","v":"Monday"},"манді","понеділок"]
[3,"Tuesday","тйузді","вівторок",null,3,"Tuesday","тйузді","вівторок"]
[4,"Wednesday","вензді","середа",null,4,"Wednesday","вензді","середа"]
[5,0,0,0,null,5,0,0,0]
[6,0,0,0,null,6,0,0,0]
[7,0,0,0,null,7,0,0,0]
[8,0,0,0,null,8,0,0,0]
[]
["Form 4",null,null,null,null,"Form 4"]
[1,{"$f":"B22","v":"Sunday"},"санді","неділя",null,1,{"$f":"B32","v":"Sunday"},{"$f":"C32","v":"санді"},{"$f":"D32","v":"неділя"}]
[2,"Monday","манді","понеділок",null,2,{"$f":"B33","v":"Monday"},"манді","понеділок"]
[3,"Tuesday","тйузді","вівторок",null,3,"Tuesday","тйузді","вівторок"]
[4,"Wednesday","вензді","середа",null,4,"Wednesday","вензді","середа"]
[5,0,0,0,null,5,0,0,0]
[6,0,0,0,null,6,0,0,0]
[7,0,0,0,null,7,0,0,0]
[8,0,0,0,null,8,0,0,0]
[]
["Form 4",null,null,null,null,"Form 4"]
[1,{"$f":"B32","v":"Sunday"},"санді","неділя",null,1,{"$f":"B42","v":"Sunday"},{"$f":"C42","v":"санді"},{"$f":"D42","v":"неділя"}]
[2,"Monday","манді","понеділок",null,2,{"$f":"B43","v":"Monday"},"манді","понеділок"]
[3,"Tuesday","тйузді","вівторок",null,3,"Tuesday","тйузді","вівторок"]
[4,"Wednesday","вензді","середа",null,4,"Wednesday","вензді","середа"]
[5,0,0,0,null,5,0,0,0]
[6,0,0,0,null,6,0,0,0]
[7,0,0,0,null,7,0,0,0]
[8,0,0,0,null,8,0,0,0]

{"sheet":"Лист4","index":41,"n_rows":5,"n_cols":4,"rows_kept":5,"cut":false,"hidden":false,"merged":[]}
[null,"     I","     II"]
[1,"swim","swam","плавати"]
[2,"run","ran","бігти"]
[3,"go","went","ходити"]
[4,"  wake up "," woke up ","прокидатися"]